Workbook

Sheet Concatination
A1: =+ROW()&")" -> 1) | B1: Ampersand, &, is the join symbol
A2: =+ROW()&")" -> 2) | B2: TEXT function converts a number to text and formats it when you tell it what Number Format you want
A3: =+ROW()&")" -> 3) | B3: DOLLAR function converts a number to text with Currency Format.
A5: 1 | B5: Fname | C5: Lname | F5: 2 | G5: ="The "&LOWER(G11)&" at an "&LOWER(G7)&" of "&H7*100&"% is $"&-H11 -> The monthly pmt at an annual rate of 12% is $1101.09
B6: JOE | C6: SMITH | D6: =CONCATENATE(B6," ",C6) -> JOE SMITH | G6: Loan | H6: 100000
B7: DENNIS | C7: HO | D7: =B7&" "&C7 -> DENNIS HO | G7: Annual Rate | H7: 0.12
B8: SUE | C8: CHIN | D8: =CONCATENATE(B8," ",C8) -> SUE CHIN | G8: Monthly Rate | H8: =H7/12 -> 0.01
B9: LUONG | C9: PHAM | D9: LUONG PHAM | G9: Years | H9: 20
B10: CLARRISSA | C10: JOHNS | D10: =CONCATENATE(B10," ",C10) -> CLARRISSA JOHNS | G10: Months | H10: =H9*12 -> 240
B11: FRANK | C11: TIMMITH | D11: FRANK TIMMITH | G11: Monthly PMT | H11: =ROUND(PMT(H8,H10,H6),2) -> -1101.09
B12: TON | C12: JACKS | D12: =CONCATENATE(B12," ",C12) -> TON JACKS
B13: SUE | C13: SMITH | D13: SUE SMITH | F13: 3 | G13: ="At a "&I15&" of "&TEXT(J15,"0.00%")&" the monthly PMT = "&DOLLAR(-H17) -> At a Monthly Interest Rate of 0.80% the monthly PMT = $521.43
B14: BRENDA | C14: DILLARD | D14: =CONCATENATE(B14," ",C14) -> BRENDA DILLARD | G14: Price of Car | H14: 34799 | I14: Annual Interest Rate | J14: 0.0955
B15: JOE | C15: SMITH | D15: JOE SMITH | G15: Down Payment | H15: 10000 | I15: Monthly Interest Rate | J15: =J14/12 -> 0.007958333333
B16: DENNIS | C16: HO | D16: =CONCATENATE(B16," ",C16) -> DENNIS HO | G16: Loan Amount | H16: =H14-H15 -> 24799 | I16: Years for Loan | J16: 5
B17: SUE | C17: CHIN | D17: SUE CHIN | G17: Monthly Payment | H17: =PMT(J15,J17,H16) -> -521.4313192 | I17: Total Months | J17: =J16*J18 -> 60
B18: LUONG | C18: PHAM | D18: =CONCATENATE(B18," ",C18) -> LUONG PHAM | G18: Monthly Payment | H18: =-H16/((1-(1+J14/J18)^(-J16*J18))/(J14/J18)) -> -521.4313192 | I18: Periods per Year | J18: 12 | M18: =M22 -> 39141
B19: CLARRISSA | C19: JOHNS | D19: CLARRISSA JOHNS
B20: FRANK | C20: TIMMITH | D20: =CONCATENATE(B20," ",C20) -> FRANK TIMMITH | K20: 4 | L20: Assumptions
B21: TON | C21: JACKS | D21: TON JACKS | L21: Period Start Date | M21: 2007-02-01
B22: SUE | C22: SMITH | D22: =CONCATENATE(B22," ",C22) -> SUE SMITH | L22: Period End Date | M22: =EOMONTH(M21,0) -> 2007-02-28 | N22: =DATE(YEAR(M21),MONTH(M21)+1,1)-1 -> 2007-02-28 | O22: =DATE(YEAR(M21),MONTH(M21)+1,0) -> 2007-02-28
B23: BRENDA | C23: DILLARD | D23: BRENDA DILLARD | L23: Period Length | M23: Month
B24: JOE | C24: SMITH | D24: =CONCATENATE(B24," ",C24) -> JOE SMITH | L24: Owner's First Name | M24: Chin
B25: DENNIS | C25: HO | D25: DENNIS HO | L25: Owner's Last Name | M25: Ho
B26: SUE | C26: CHIN | D26: =CONCATENATE(B26," ",C26) -> SUE CHIN | L26: Company Name | M26: Landscaping
B27: LUONG | C27: PHAM | D27: LUONG PHAM | L27: Title for Statements 1 | M27: =M24&" "&M25&"'s "&M26 -> Chin Ho's Landscaping
B28: CLARRISSA | C28: JOHNS | D28: =CONCATENATE(B28," ",C28) -> CLARRISSA JOHNS | L28: Title for Statements 2 | M28: =CONCATENATE("For the Month Ended ",TEXT(M22,"m/d/yyyy")) -> For the Month Ended 2/28/2007 | O28: For The Month Ended February 29, 2008
B29: FRANK | C29: TIMMITH | D29: FRANK TIMMITH
B30: TON | C30: JACKS | D30: =CONCATENATE(B30," ",C30) -> TON JACKS | L30: =M27 -> Chin Ho's Landscaping
B31: SUE | C31: SMITH | D31: SUE SMITH | L31: Income Statement
B32: BRENDA | C32: DILLARD | D32: =CONCATENATE(B32," ",C32) -> BRENDA DILLARD | L32: =M28 -> For the Month Ended 2/28/2007
B33: JOE | C33: SMITH | D33: JOE SMITH | L33: Revenues:
B34: DENNIS | C34: HO | D34: =CONCATENATE(B34," ",C34) -> DENNIS HO | L34: Compressor Service Revenue | N34: 39000
B35: SUE | C35: CHIN | D35: SUE CHIN | L35: Expenses:
B36: LUONG | C36: PHAM | D36: =CONCATENATE(B36," ",C36) -> LUONG PHAM | L36: Wage Expense | M36: 2500
B37: CLARRISSA | C37: JOHNS | D37: CLARRISSA JOHNS | L37: Depreciation, Building Expense | M37: 2000
B38: FRANK | C38: TIMMITH | D38: =CONCATENATE(B38," ",C38) -> FRANK TIMMITH | L38: Depreciation, Vehicles Expense | M38: 1920
B39: TON | C39: JACKS | D39: TON JACKS | L39: Mortgage Interest Expense | M39: 952
B40: SUE | C40: SMITH | D40: =CONCATENATE(B40," ",C40) -> SUE SMITH | L40: Utilities Expense | M40: 169
B41: BRENDA | C41: DILLARD | D41: BRENDA DILLARD | L41: Parts Expense | M41: 902
B42: JOE | C42: SMITH | D42: =CONCATENATE(B42," ",C42) -> JOE SMITH | L42: Total Expense | N42: =SUM(M36:M41) -> 8443
B43: DENNIS | C43: HO | D43: DENNIS HO | L43: Net Income | N43: =N34-N42 -> 30557
B44: SUE | C44: CHIN | D44: =CONCATENATE(B44," ",C44) -> SUE CHIN
B45: LUONG | C45: PHAM | D45: LUONG PHAM
B46: CLARRISSA | C46: JOHNS | D46: =CONCATENATE(B46," ",C46) -> CLARRISSA JOHNS
B47: FRANK | C47: TIMMITH | D47: FRANK TIMMITH
B48: TON | C48: JACKS | D48: =CONCATENATE(B48," ",C48) -> TON JACKS
B49: SUE | C49: SMITH | D49: SUE SMITH
B50: BRENDA | C50: DILLARD | D50: =CONCATENATE(B50," ",C50) -> BRENDA DILLARD
B81: PROPER ==> | C81: =PROPER(B50&" "&C50) -> Brenda Dillard

Sheet VLOOKUP w Concatenation
A1: =ROW()&")" -> 1) | B1: VLOOKUP function and the Ampersand, &, can be used together to create a new text item
A2: =ROW()&")" -> 2) | B2: Hiding a column temporarily will allow you to use the "Double-click the fill handle" trick
B4: Type | C4: Sales | D4: Customer | F4: Our Type | H4: Type | I4: Number
B5: Kite | C5: 1221 | D5: Yuliya | F5: =B5&" "&VLOOKUP(B5,$H$5:$I$8,2,0) -> Kite 5560 | H5: Kite | I5: 5560
B6: Boom | C6: 1101 | D6: Yuliya | F6: =B6&" "&VLOOKUP(B6,$H$5:$I$8,2,0) -> Boom 5590 | H6: Boom | I6: 5590
B7: Kite | C7: 1451 | D7: Yuliya | F7: Kite 5560 | H7: Toy | I7: 5510
B8: Toy | C8: 1293 | D8: Megan | F8: Toy 5510 | H8: Other | I8: 5540
B9: Kite | C9: 1950 | D9: Rasik | F9: Kite 5560
B10: Toy | C10: 1956 | D10: Joel | F10: Toy 5510
B11: Other | C11: 1163 | D11: Rasik | F11: Other 5540
B12: Boom | C12: 1177 | D12: Rasik | F12: Boom 5590
B13: Other | C13: 1105 | D13: Igor | F13: =B13&" "&VLOOKUP(B13,$H$5:$I$8,2,0) -> Other 5540
B14: Kite | C14: 1797 | D14: Megan | F14: Kite 5560
B15: Boom | C15: 1692 | D15: Debbie | F15: Boom 5590
B16: Kite | C16: 1874 | D16: Wendy | F16: Kite 5560
B17: Boom | C17: 1565 | D17: Olga | F17: Boom 5590
B18: Boom | C18: 1274 | D18: Igor | F18: Boom 5590
B19: Boom | C19: 1133 | D19: Igor | F19: Boom 5590
B20: Other | C20: 1687 | D20: Olga | F20: Other 5540
B21: Boom | C21: 1083 | D21: Igor | F21: Boom 5590
B22: Kite | C22: 1094 | D22: Suix | F22: Kite 5560
B23: Boom | C23: 1146 | D23: Joel | F23: Boom 5590
B24: Toy | C24: 1776 | D24: Al | F24: Toy 5510
B25: Other | C25: 1985 | D25: Al | F25: Other 5540
B26: Other | C26: 1334 | D26: Debbie | F26: Other 5540
B27: Toy | C27: 1602 | D27: Yuliya | F27: Toy 5510
B28: Kite | C28: 1163 | D28: Al | F28: Kite 5560
B29: Toy | C29: 1715 | D29: Joel | F29: Toy 5510
B30: Boom | C30: 1155 | D30: Rasik | F30: Boom 5590
B31: Toy | C31: 1330 | D31: Igor | F31: Toy 5510
B32: Other | C32: 1972 | D32: Debbie | F32: Other 5540
B33: Toy | C33: 1728 | D33: Suix | F33: Toy 5510
B34: Other | C34: 1698 | D34: Yuliya | F34: Other 5540
B35: Kite | C35: 1759 | D35: Wendy | F35: Kite 5560
B36: Toy | C36: 1238 | D36: Joel | F36: Toy 5510
B37: Kite | C37: 1440 | D37: Megan | F37: Kite 5560
B38: Boom | C38: 1990 | D38: Rasik | F38: Boom 5590
B39: Toy | C39: 1119 | D39: Yuliya | F39: Toy 5510
B40: Other | C40: 1109 | D40: Suix | F40: Other 5540
B41: Boom | C41: 1808 | D41: Rasik | F41: Boom 5590
B42: Kite | C42: 1240 | D42: Megan | F42: Kite 5560
B43: Kite | C43: 1964 | D43: Al | F43: Kite 5560
B44: Other | C44: 1872 | D44: Suix | F44: Other 5540
B45: Boom | C45: 1372 | D45: Suix | F45: Boom 5590
B46: Other | C46: 1390 | D46: Al | F46: Other 5540
B47: Boom | C47: 1158 | D47: Rasik | F47: Boom 5590
B48: Boom | C48: 1934 | D48: Yuliya | F48: Boom 5590
B49: Boom | C49: 1666 | D49: Joel | F49: Boom 5590
B50: Other | C50: 1647 | D50: Megan | F50: Other 5540
B51: Other | C51: 1085 | D51: Yuliya | F51: Other 5540
B52: Other | C52: 1359 | D52: Al | F52: Other 5540
B53: Toy | C53: 1293 | D53: Wendy | F53: Toy 5510
B54: Boom | C54: 1249 | D54: Megan | F54: Boom 5590
B55: Kite | C55: 1152 | D55: Yuliya | F55: Kite 5560
B56: Kite | C56: 1024 | D56: Debbie | F56: Kite 5560
B57: Other | C57: 1525 | D57: Suix | F57: Other 5540
B58: Other | C58: 1018 | D58: Rasik | F58: Other 5540
B59: Kite | C59: 1229 | D59: Al | F59: Kite 5560
B60: Other | C60: 1371 | D60: Megan | F60: Other 5540
B61: Toy | C61: 1208 | D61: Wendy | F61: Toy 5510
B62: Other | C62: 1785 | D62: Debbie | F62: Other 5540
B63: Boom | C63: 1832 | D63: Olga | F63: Boom 5590
B64: Other | C64: 1740 | D64: Olga | F64: Other 5540
B65: Boom | C65: 1142 | D65: Olga | F65: Boom 5590
B66: Kite | C66: 1499 | D66: Rasik | F66: Kite 5560
B67: Boom | C67: 1778 | D67: Debbie | F67: Boom 5590
B68: Other | C68: 1681 | D68: Igor | F68: Other 5540
B69: Boom | C69: 1624 | D69: Suix | F69: Boom 5590
B70: Kite | C70: 1314 | D70: Joel | F70: =B70&" "&VLOOKUP(B70,$H$5:$I$8,2,0) -> Kite 5560
B71: Other | C71: 1193 | D71: Joel | F71: Other 5540
B72: Other | C72: 1235 | D72: Al | F72: Other 5540
B73: Other | C73: 1227 | D73: Megan | F73: Other 5540
B74: Toy | C74: 1567 | D74: Debbie | F74: Toy 5510
B75: Other | C75: 1694 | D75: Olga | F75: Other 5540
B76: Kite | C76: 1664 | D76: Al | F76: Kite 5560
B77: Toy | C77: 1893 | D77: Debbie | F77: Toy 5510
B78: Other | C78: 1128 | D78: Al | F78: Other 5540
B79: Toy | C79: 1408 | D79: Olga | F79: Toy 5510
B80: Kite | C80: 1040 | D80: Rasik | F80: Kite 5560
B81: Toy | C81: 1992 | D81: Megan | F81: Toy 5510
B82: Other | C82: 1870 | D82: Joel | F82: Other 5540
B83: Toy | C83: 1376 | D83: Igor | F83: Toy 5510
B84: Boom | C84: 1559 | D84: Rasik | F84: Boom 5590
B85: Toy | C85: 1532 | D85: Rasik | F85: Toy 5510
B86: Other | C86: 1876 | D86: Olga | F86: Other 5540
B87: Toy | C87: 1033 | D87: Rasik | F87: Toy 5510
B88: Boom | C88: 1324 | D88: Wendy | F88: Boom 5590
B89: Other | C89: 1709 | D89: Rasik | F89: Other 5540
B90: Kite | C90: 1795 | D90: Suix | F90: Kite 5560
B91: Boom | C91: 1657 | D91: Megan | F91: Boom 5590
B92: Other | C92: 1434 | D92: Olga | F92: Other 5540
B93: Boom | C93: 1824 | D93: Debbie | F93: Boom 5590
B94: Toy | C94: 1043 | D94: Yuliya | F94: Toy 5510
B95: Toy | C95: 1756 | D95: Yuliya | F95: Toy 5510
B96: Kite | C96: 1023 | D96: Igor | F96: Kite 5560
B97: Toy | C97: 1376 | D97: Suix | F97: Toy 5510
B98: Other | C98: 1561 | D98: Al | F98: Other 5540
B99: Boom | C99: 1665 | D99: Rasik | F99: Boom 5590
B100: Kite | C100: 1452 | D100: Igor | F100: Kite 5560
B101: Toy | C101: 1305 | D101: Igor | F101: Toy 5510
B102: Toy | C102: 1965 | D102: Igor | F102: Toy 5510
B103: Toy | C103: 1919 | D103: Igor | F103: Toy 5510
B104: Toy | C104: 1826 | D104: Igor | F104: Toy 5510
B105: Other | C105: 1221 | D105: Megan | F105: Other 5540
B106: Boom | C106: 1193 | D106: Rasik | F106: Boom 5590
B107: Other | C107: 1639 | D107: Suix | F107: Other 5540
B108: Toy | C108: 1817 | D108: Igor | F108: Toy 5510
B109: Other | C109: 1288 | D109: Yuliya | F109: Other 5540
B110: Kite | C110: 1350 | D110: Igor | F110: Kite 5560
B111: Boom | C111: 1609 | D111: Rasik | F111: Boom 5590
B112: Other | C112: 1270 | D112: Yuliya | F112: Other 5540
B113: Kite | C113: 1143 | D113: Suix | F113: Kite 5560
B114: Boom | C114: 1931 | D114: Rasik | F114: Boom 5590
B115: Toy | C115: 1707 | D115: Debbie | F115: Toy 5510
B116: Boom | C116: 1983 | D116: Debbie | F116: Boom 5590
B117: Boom | C117: 1910 | D117: Debbie | F117: Boom 5590
B118: Kite | C118: 1303 | D118: Joel | F118: Kite 5560
B119: Other | C119: 1913 | D119: Megan | F119: Other 5540
B120: Boom | C120: 1972 | D120: Rasik | F120: Boom 5590
B121: Boom | C121: 1253 | D121: Al | F121: Boom 5590
B122: Kite | C122: 1034 | D122: Olga | F122: Kite 5560
B123: Boom | C123: 1517 | D123: Yuliya | F123: Boom 5590
B124: Kite | C124: 1071 | D124: Rasik | F124: Kite 5560
B125: Kite | C125: 1982 | D125: Joel | F125: Kite 5560
B126: Boom | C126: 1189 | D126: Wendy | F126: Boom 5590
B127: Toy | C127: 1009 | D127: Rasik | F127: Toy 5510
B128: Toy | C128: 1245 | D128: Igor | F128: Toy 5510
B129: Other | C129: 1973 | D129: Megan | F129: Other 5540
B130: Toy | C130: 1442 | D130: Debbie | F130: Toy 5510
B131: Toy | C131: 1873 | D131: Debbie | F131: Toy 5510
B132: Kite | C132: 1464 | D132: Igor | F132: Kite 5560
B133: Other | C133: 1159 | D133: Al | F133: Other 5540
B134: Boom | C134: 1529 | D134: Debbie | F134: =B134&" "&VLOOKUP(B134,$H$5:$I$8,2,0) -> Boom 5590
B135: Toy | C135: 1809 | D135: Joel | F135: Toy 5510
B136: Other | C136: 1832 | D136: Joel | F136: Other 5540
B137: Boom | C137: 1999 | D137: Suix | F137: Boom 5590
B138: Other | C138: 1115 | D138: Yuliya | F138: Other 5540
B139: Toy | C139: 1518 | D139: Megan | F139: Toy 5510
B140: Boom | C140: 1861 | D140: Al | F140: Boom 5590
B141: Toy | C141: 1289 | D141: Yuliya | F141: Toy 5510
B142: Boom | C142: 1390 | D142: Igor | F142: Boom 5590
B143: Boom | C143: 1375 | D143: Megan | F143: Boom 5590
B144: Other | C144: 1437 | D144: Megan | F144: Other 5540
B145: Boom | C145: 1333 | D145: Megan | F145: Boom 5590
B146: Other | C146: 1686 | D146: Olga | F146: Other 5540
B147: Toy | C147: 1938 | D147: Igor | F147: Toy 5510
B148: Toy | C148: 1685 | D148: Olga | F148: Toy 5510
B149: Kite | C149: 1947 | D149: Suix | F149: Kite 5560
B150: Kite | C150: 1248 | D150: Rasik | F150: Kite 5560
B151: Other | C151: 1573 | D151: Olga | F151: Other 5540
B152: Other | C152: 1811 | D152: Olga | F152: Other 5540
B153: Boom | C153: 1759 | D153: Rasik | F153: Boom 5590
B154: Kite | C154: 1727 | D154: Al | F154: Kite 5560
B155: Toy | C155: 1276 | D155: Al | F155: Toy 5510
B156: Other | C156: 1808 | D156: Olga | F156: Other 5540
B157: Other | C157: 1644 | D157: Yuliya | F157: Other 5540
B158: Toy | C158: 1872 | D158: Al | F158: Toy 5510
B159: Kite | C159: 1461 | D159: Olga | F159: Kite 5560
B160: Boom | C160: 1564 | D160: Wendy | F160: Boom 5590
B161: Kite | C161: 1589 | D161: Yuliya | F161: Kite 5560
B162: Other | C162: 1989 | D162: Olga | F162: Other 5540
B163: Toy | C163: 1194 | D163: Igor | F163: Toy 5510
B164: Toy | C164: 1116 | D164: Rasik | F164: Toy 5510
B165: Toy | C165: 1690 | D165: Debbie | F165: Toy 5510
B166: Kite | C166: 1493 | D166: Yuliya | F166: Kite 5560
B167: Boom | C167: 1680 | D167: Megan | F167: Boom 5590
B168: Kite | C168: 1916 | D168: Olga | F168: Kite 5560
B169: Kite | C169: 1973 | D169: Olga | F169: Kite 5560
B170: Boom | C170: 1378 | D170: Rasik | F170: Boom 5590
B171: Other | C171: 1182 | D171: Olga | F171: Other 5540
B172: Toy | C172: 1252 | D172: Yuliya | F172: Toy 5510
B173: Toy | C173: 1101 | D173: Al | F173: Toy 5510
B174: Boom | C174: 1394 | D174: Joel | F174: Boom 5590
B175: Other | C175: 1926 | D175: Debbie | F175: Other 5540
B176: Toy | C176: 1379 | D176: Debbie | F176: Toy 5510
B177: Toy | C177: 1528 | D177: Igor | F177: Toy 5510
B178: Toy | C178: 1931 | D178: Megan | F178: Toy 5510
B179: Boom | C179: 1780 | D179: Igor | F179: Boom 5590
B180: Kite | C180: 1374 | D180: Rasik | F180: Kite 5560
B181: Boom | C181: 1469 | D181: Joel | F181: Boom 5590
B182: Kite | C182: 1066 | D182: Yuliya | F182: Kite 5560
B183: Toy | C183: 1709 | D183: Joel | F183: Toy 5510
B184: Other | C184: 1901 | D184: Debbie | F184: Other 5540

Sheet Excel Table Format
A1: =ROW()&")" -> 1) | B1: Proper Data Format can be called: Excel List (2003), Excel Table(2007), Database Form.
A2: =ROW()&")" -> 2) | B2: Sorting, Filtering, Subtotals and PivotTables work optimally when Proper Data Format is used
A3: 3) | B3: Proper Data Format requires:
A4: 4) | B4: 1) Fields names and field elements in Columns
A5: 5) | B5: 2) Records in Rows
A6: 6) | B6: 3) No Blank:
A7: 7) | B7: Rows inside data
A8: 8) | B8: Columns inside data
A9: 9) | B9: Field Names
A10: 10) | B10: Try not to have blank cells
A11: 11) | B11: 4) Must have blank columns and rows between complete data set and any other cell content on the sheet

Sheet Excel Table
A1: =ROW()&")" -> 1) | B1: The New Excel Table Format adds 1) Format, 2) Sort, 3) Filter, and Dynamic Ranges that allow formulas and Charts to automatically update when you add new records to the Excel Table
B3: Date | C3: Region | D3: Sales Rep | E3: Sales | F3: Gross Profit | I3: Sum Jon Sales
B4: 2005-03-08 | C4: MidWest | D4: Jon | E4: 1936 | F4: 1219.68 | I4: =SUMIF(Table1[Sales Rep],"Jon",Table1[Sales]) -> 23956
B5: 2005-03-30 | C5: MidWest | D5: Troung | E5: 4400 | F5: 528
B6: 2005-05-13 | C6: MidWest | D6: Chin | E6: 3768 | F6: 2147.76
B7: 2005-06-01 | C7: MidWest | D7: Rhonda | E7: 1860 | F7: 120.9
B8: 2005-06-09 | C8: MidWest | D8: Rhonda | E8: 7959 | F8: 3342.78
B9: 2005-03-03 | C9: North | D9: Jon | E9: 7644 | F9: 917.28 | H9: Month | I9: Sales
B10: 2005-03-24 | C10: North | D10: Jeri | E10: 7392 | F10: 887.04 | H10: 2008-05-31 | I10: =RANDBETWEEN(10000,20000) -> 14433
B11: 2005-04-19 | C11: North | D11: Rhonda | E11: 3129 | F11: 1282.89 | H11: 6/31/2008 | I11: 15174
B12: 2005-05-13 | C12: North | D12: Rhonda | E12: 7634 | F12: 4809.42 | H12: 2008-07-31 | I12: 16031
B13: 2005-05-16 | C13: North | D13: Luke | E13: 3477 | F13: 1425.57 | H13: 2008-08-31 | I13: 13735
B14: 2005-05-26 | C14: North | D14: Jeri | E14: 6951 | F14: 1737.75 | H14: 2008-09-30 | I14: 12624
B15: 2005-05-27 | C15: North | D15: Chin | E15: 7623 | F15: 3430.35 | H15: 2008-10-31 | I15: 13628
B16: 2005-06-16 | C16: North | D16: Steven | E16: 4075 | F16: 2567.25 | H16: 2008-11-30 | I16: =RANDBETWEEN(10000,20000) -> 16311
B17: 2005-07-03 | C17: North | D17: Sheliadawn | E17: 2304 | F17: 1451.52 | H17: 2008-12-31 | I17: =RANDBETWEEN(10000,20000) -> 12916
B18: 2005-07-18 | C18: North | D18: Jon | E18: 5670 | F18: 2551.5
B19: 2005-03-01 | C19: NorthEast | D19: Steven | E19: 3738 | F19: 242.97
B20: 2005-03-05 | C20: NorthEast | D20: Chin | E20: 2299 | F20: 965.58
B21: 2005-03-24 | C21: NorthEast | D21: Rhonda | E21: 7315 | F21: 3291.75
B22: 2005-04-11 | C22: NorthEast | D22: Steven | E22: 9786 | F22: 4110.12
B23: 2005-04-17 | C23: NorthEast | D23: Jeri | E23: 5936 | F23: 2671.2
B24: 2005-06-11 | C24: NorthEast | D24: Steven | E24: 42 | F24: 18.9
B25: 2005-06-19 | C25: NorthEast | D25: Jon | E25: 3210 | F25: 208.65
B26: 2005-06-23 | C26: NorthEast | D26: Luke | E26: 8470 | F26: 4827.9
B27: 2005-07-12 | C27: NorthEast | D27: Troung | E27: 1968 | F27: 1082.4
B28: 2005-07-19 | C28: NorthEast | D28: Chin | E28: 4767 | F28: 1525.44
B29: 2005-02-27 | C29: SouthEast | D29: Sheliadawn | E29: 1414 | F29: 890.82
B30: 2005-02-28 | C30: SouthEast | D30: Troung | E30: 8883 | F30: 3730.86
B31: 2005-03-08 | C31: SouthEast | D31: Jeri | E31: 8883 | F31: 2842.56
B32: 2005-03-13 | C32: SouthEast | D32: Troung | E32: 2415 | F32: 1376.55
B33: 2005-04-14 | C33: SouthEast | D33: Jon | E33: 3496 | F33: 2202.48
B34: 2005-05-21 | C34: SouthEast | D34: Troung | E34: 3744 | F34: 936
B35: 2005-06-26 | C35: SouthEast | D35: Luke | E35: 3914 | F35: 469.68
B36: 2005-06-29 | C36: SouthEast | D36: Troung | E36: 7140 | F36: 4069.8
B37: 2005-07-06 | C37: SouthEast | D37: Troung | E37: 3892 | F37: 1595.72
B38: 2005-07-18 | C38: SouthEast | D38: Steven | E38: 5040 | F38: 327.6
B39: 2005-03-09 | C39: West | D39: Steven | E39: 686 | F39: 391.02
B40: 2005-05-14 | C40: West | D40: Jeri | E40: 4731 | F40: 307.515
B41: 2005-06-10 | C41: West | D41: Steven | E41: 4336 | F41: 1777.76
B42: 2005-06-16 | C42: West | D42: Luke | E42: 6489 | F42: 3698.73
B43: 2006-06-17 | C43: West | D43: Jon | E43: 2000 | F43: 1000

Sheet Excel Table with Formulas
A1: =ROW()&")" -> 1) | B1: The New Excel Table Format will fill formulas down a column automatically when you add new records.
B4: Date | C4: Item | D4: Units | E4: Price | F4: Total | L4: Items
B5: 2008-01-31 | C5: Bellen | D5: 10 | E5: 25 | F5: =E5*D5 -> 250 | L5: Bellen
B6: 2008-02-01 | C6: Carlota | D6: 12 | E6: 26 | F6: =E6*D6 -> 312 | L6: Carlota
B7: 2008-02-02 | C7: Quad | D7: 25 | E7: 31 | F7: =E7*D7 -> 775 | L7: Quad
F8: =E8*D8 -> 0

Sheet Sort
A1: =ROW()&")" -> 1) | B1: Select only one cell in Excel Table/List before Sorting
A2: 2) | B2: Major Sort means that all the elements in the field have the primary sort. For example, the field with the Major sort could have West, Midwest and East and all the West elements would be together, and all the Midwest elements would be together, and all the East elements would be together, but other fields would be sorted within each of the Major sort's elements (West, Midwest, East).
A3: 3) | B3: Sort buttons and dialog box are in the data Ribbon (2007) or the Data Menu (2003)
A4: 4) | B4: Sort with buttons, Major sort last
A5: 5) | B5: Sort with Dialog Box, Major sort First
A6: 6) | B6: Sort does not see format (like custom date number format)
A7: 7) | B7: You can sort horizontally, with Options button in Sort dialog box
A8: 8) | B8: Sort by color is new in Excel 2007
B10: Date | C10: Region | D10: Sales Rep | E10: Sales | F10: Gross Profit | H10: Date | I10: Sales | K10: Date | L10: 2008-05-26 | M10: 2008-05-24 | N10: 2008-05-18 | O10: 2008-05-25 | P10: 2008-05-23 | Q10: 2008-05-22 | R10: 2008-05-21 | S10: 2008-05-20 | T10: 2008-05-19 | U10: 2008-05-17 | V10: 2008-05-16
B11: 2007-01-05 | C11: SouthEast | D11: Jon | E11: 12100 | F11: 1452 | H11: 2008-05-21 | I11: 1936 | K11: Sales | L11: 7315 | M11: 2415 | N11: 3738 | O11: 7392 | P11: 686 | Q11: 8883 | R11: 1936 | S11: 2299 | T11: 7644 | U11: 8883 | V11: 1414
B12: 2006-12-08 | C12: SouthEast | D12: Steven | E12: 11900 | F12: 1428 | H12: 2008-05-16 | I12: 1414
B13: 2005-11-09 | C13: North | D13: Chin | E13: 11425 | F13: 742.625 | H13: 2008-05-17 | I13: 8883
B14: 2005-12-04 | C14: West | D14: Sheliadawn | E14: 11088 | F14: 4989.6 | H14: 2008-05-18 | I14: 3738
B15: 2005-08-28 | C15: West | D15: Rhonda | E15: 10185 | F15: 5601.75 | H15: 2008-05-19 | I15: 7644
B16: 2006-07-23 | C16: MidWest | D16: Steven | E16: 9807 | F16: 6178.41 | H16: 2008-05-20 | I16: 2299
B17: 2005-04-11 | C17: NorthEast | D17: Steven | E17: 9786 | F17: 4110.12 | H17: 2008-05-22 | I17: 8883
B18: 2007-02-23 | C18: North | D18: Steven | E18: 9534 | F18: 5434.38 | H18: 2008-05-23 | I18: 686
B19: 2006-07-13 | C19: NorthEast | D19: Luke | E19: 9400 | F19: 3008 | H19: 2008-05-24 | I19: 2415
B20: 2006-05-16 | C20: NorthEast | D20: Sheliadawn | E20: 9350 | F20: 607.75 | H20: 2008-05-25 | I20: 7392
B21: 2006-02-24 | C21: SouthEast | D21: Jeri | E21: 9282 | F21: 5105.1 | H21: 2008-05-26 | I21: 7315
B22: 2006-07-30 | C22: West | D22: Steven | E22: 8976 | F22: 2872.32
B23: 2006-09-27 | C23: NorthEast | D23: Jon | E23: 8946 | F23: 5635.98
B24: 2006-11-03 | C24: West | D24: Sheliadawn | E24: 8932 | F24: 4019.4
B25: 2005-03-08 | C25: SouthEast | D25: Jeri | E25: 8883 | F25: 2842.56
B26: 2005-02-28 | C26: SouthEast | D26: Troung | E26: 8883 | F26: 3730.86
B27: 2006-08-04 | C27: West | D27: Chin | E27: 8862 | F27: 3987.9
B28: 2006-01-05 | C28: West | D28: Rhonda | E28: 8625 | F28: 3536.25
B29: 2006-09-06 | C29: West | D29: Chin | E29: 8575 | F29: 2143.75
B30: 2006-05-07 | C30: SouthEast | D30: Rhonda | E30: 8547 | F30: 4871.79
B31: 2005-06-23 | C31: NorthEast | D31: Luke | E31: 8470 | F31: 4827.9
B32: 2005-07-31 | C32: North | D32: Sheliadawn | E32: 8382 | F32: 1005.84
B33: 2006-12-23 | C33: SouthEast | D33: Troung | E33: 8379 | F33: 3435.39
B34: 2005-12-08 | C34: NorthEast | D34: Steven | E34: 8352 | F34: 2672.64
B35: 2007-02-18 | C35: SouthEast | D35: Sheliadawn | E35: 8352 | F35: 3758.4
B36: 2006-02-11 | C36: North | D36: Jon | E36: 8340 | F36: 4753.8
B37: 2006-11-14 | C37: West | D37: Rhonda | E37: 8320 | F37: 2662.4
B38: 2006-02-15 | C38: North | D38: Jon | E38: 8043 | F38: 4423.65
B39: 2005-10-31 | C39: North | D39: Chin | E39: 8030 | F39: 3292.3
B40: 2005-06-09 | C40: MidWest | D40: Rhonda | E40: 7959 | F40: 3342.78
B41: 2006-02-21 | C41: North | D41: Jon | E41: 7847 | F41: 3531.15
B42: 2005-07-25 | C42: NorthEast | D42: Luke | E42: 7847 | F42: 4943.61
B43: 2006-08-01 | C43: West | D43: Jeri | E43: 7790 | F43: 934.8
B44: 2005-03-03 | C44: North | D44: Jon | E44: 7644 | F44: 917.28
B45: 2005-05-13 | C45: North | D45: Rhonda | E45: 7634 | F45: 4809.42
B46: 2005-10-28 | C46: North | D46: Jon | E46: 7625 | F46: 2440
B47: 2005-05-27 | C47: North | D47: Chin | E47: 7623 | F47: 3430.35
B48: 2005-12-19 | C48: SouthEast | D48: Chin | E48: 7584 | F48: 3412.8
B49: 2006-07-16 | C49: NorthEast | D49: Jeri | E49: 7460 | F49: 1865
B50: 2005-09-28 | C50: SouthEast | D50: Troung | E50: 7434 | F50: 4237.38
B51: 2005-03-24 | C51: North | D51: Jeri | E51: 7392 | F51: 887.04
B52: 2007-01-31 | C52: North | D52: Chin | E52: 7376 | F52: 4056.8
B53: 2005-03-24 | C53: NorthEast | D53: Rhonda | E53: 7315 | F53: 3291.75
B54: 2006-07-28 | C54: NorthEast | D54: Chin | E54: 7238 | F54: 4125.66
B55: 2005-06-29 | C55: SouthEast | D55: Troung | E55: 7140 | F55: 4069.8
B56: 2005-07-29 | C56: West | D56: Rhonda | E56: 7040 | F56: 844.8
B57: 2006-06-28 | C57: NorthEast | D57: Troung | E57: 6993 | F57: 3846.15
B58: 2005-05-26 | C58: North | D58: Jeri | E58: 6951 | F58: 1737.75
B59: 2006-04-21 | C59: North | D59: Jeri | E59: 6912 | F59: 3801.6
B60: 2006-12-29 | C60: MidWest | D60: Jeri | E60: 6900 | F60: 2829
B61: 2005-11-17 | C61: North | D61: Troung | E61: 6870 | F61: 4328.1
B62: 2006-02-21 | C62: SouthEast | D62: Jon | E62: 6864 | F62: 3088.8
B63: 2005-12-12 | C63: North | D63: Sheliadawn | E63: 6820 | F63: 2864.4
B64: 2006-03-29 | C64: West | D64: Troung | E64: 6783 | F64: 3730.65
B65: 2006-09-04 | C65: North | D65: Chin | E65: 6765 | F65: 1691.25
B66: 2006-04-04 | C66: North | D66: Sheliadawn | E66: 6720 | F66: 3024
B67: 2006-03-20 | C67: NorthEast | D67: Jeri | E67: 6704 | F67: 2748.64
B68: 2005-06-16 | C68: West | D68: Luke | E68: 6489 | F68: 3698.73
B69: 2005-10-20 | C69: MidWest | D69: Chin | E69: 6480 | F69: 1620
B70: 2006-05-29 | C70: NorthEast | D70: Troung | E70: 6405 | F70: 2626.05
B71: 2006-04-20 | C71: West | D71: Jon | E71: 6375 | F71: 2613.75
B72: 2006-01-11 | C72: North | D72: Sheliadawn | E72: 6327 | F72: 411.255
B73: 2006-03-19 | C73: MidWest | D73: Luke | E73: 6314 | F73: 1578.5
B74: 2006-03-02 | C74: SouthEast | D74: Rhonda | E74: 6226 | F74: 3424.3
B75: 2007-01-19 | C75: West | D75: Sheliadawn | E75: 6216 | F75: 3418.8
B76: 2006-08-28 | C76: SouthEast | D76: Rhonda | E76: 6194 | F76: 2787.3
B77: 2006-01-19 | C77: NorthEast | D77: Jon | E77: 6144 | F77: 2764.8
B78: 2005-09-21 | C78: NorthEast | D78: Steven | E78: 6090 | F78: 730.8
B79: 2006-05-16 | C79: SouthEast | D79: Rhonda | E79: 6028 | F79: 3797.64
B80: 2006-02-13 | C80: West | D80: Steven | E80: 5940 | F80: 712.8
B81: 2005-04-17 | C81: NorthEast | D81: Jeri | E81: 5936 | F81: 2671.2
B82: 2006-07-14 | C82: North | D82: Troung | E82: 5904 | F82: 1476
B83: 2007-01-05 | C83: West | D83: Jon | E83: 5880 | F83: 2646
B84: 2007-02-08 | C84: North | D84: Jeri | E84: 5780 | F84: 375.7
B85: 2006-07-05 | C85: NorthEast | D85: Sheliadawn | E85: 5744 | F85: 689.28
B86: 2006-07-27 | C86: MidWest | D86: Troung | E86: 5720 | F86: 1430
B87: 2006-10-18 | C87: NorthEast | D87: Troung | E87: 5712 | F87: 685.44
B88: 2005-12-23 | C88: MidWest | D88: Chin | E88: 5698 | F88: 2336.18
B89: 2005-07-18 | C89: North | D89: Jon | E89: 5670 | F89: 2551.5
B90: 2005-10-02 | C90: MidWest | D90: Sheliadawn | E90: 5649 | F90: 677.88
B91: 2006-05-18 | C91: SouthEast | D91: Chin | E91: 5616 | F91: 2302.56
B92: 2006-07-11 | C92: West | D92: Luke | E92: 5586 | F92: 2346.12
B93: 2006-11-09 | C93: MidWest | D93: Sheliadawn | E93: 5460 | F93: 2293.2
B94: 2005-10-19 | C94: West | D94: Jon | E94: 5460 | F94: 2293.2
B95: 2005-08-22 | C95: NorthEast | D95: Jon | E95: 5313 | F95: 3028.41
B96: 2006-11-20 | C96: MidWest | D96: Jon | E96: 5236 | F96: 1675.52
B97: 2006-07-27 | C97: NorthEast | D97: Rhonda | E97: 5184 | F97: 1296
B98: 2005-10-11 | C98: NorthEast | D98: Steven | E98: 5152 | F98: 1288
B99: 2006-03-02 | C99: NorthEast | D99: Steven | E99: 5126 | F99: 1281.5
B100: 2006-11-18 | C100: SouthEast | D100: Chin | E100: 5073 | F100: 3195.99
B101: 2005-07-18 | C101: SouthEast | D101: Steven | E101: 5040 | F101: 327.6
B102: 2007-02-05 | C102: West | D102: Luke | E102: 4914 | F102: 2211.3
B103: 2006-05-01 | C103: MidWest | D103: Sheliadawn | E103: 4905 | F103: 2207.25
B104: 2006-11-26 | C104: North | D104: Sheliadawn | E104: 4816 | F104: 3034.08
B105: 2005-07-19 | C105: NorthEast | D105: Chin | E105: 4767 | F105: 1525.44
B106: 2006-04-12 | C106: SouthEast | D106: Rhonda | E106: 4755 | F106: 1997.1
B107: 2006-11-02 | C107: NorthEast | D107: Luke | E107: 4731 | F107: 2696.67
B108: 2005-05-14 | C108: West | D108: Jeri | E108: 4731 | F108: 307.515
B109: 2006-12-19 | C109: North | D109: Chin | E109: 4725 | F109: 2126.25
B110: 2006-05-19 | C110: NorthEast | D110: Rhonda | E110: 4636 | F110: 1900.76
B111: 2006-12-22 | C111: MidWest | D111: Steven | E111: 4634 | F111: 1899.94
B112: 2006-06-01 | C112: NorthEast | D112: Steven | E112: 4580 | F112: 2610.6
B113: 2006-01-08 | C113: MidWest | D113: Rhonda | E113: 4536 | F113: 1859.76
B114: 2006-03-09 | C114: West | D114: Steven | E114: 4515 | F114: 2844.45
B115: 2006-03-15 | C115: NorthEast | D115: Rhonda | E115: 4473 | F115: 2460.15
B116: 2006-06-04 | C116: West | D116: Jeri | E116: 4438 | F116: 1819.58
B117: 2005-03-30 | C117: MidWest | D117: Troung | E117: 4400 | F117: 528
B118: 2005-08-26 | C118: North | D118: Jon | E118: 4380 | F118: 1095
B119: 2006-01-25 | C119: MidWest | D119: Sheliadawn | E119: 4368 | F119: 2402.4
B120: 2005-06-10 | C120: West | D120: Steven | E120: 4336 | F120: 1777.76
B121: 2006-07-25 | C121: MidWest | D121: Chin | E121: 4326 | F121: 1773.66
B122: 2006-12-29 | C122: North | D122: Steven | E122: 4246 | F122: 1740.86
B123: 2005-09-21 | C123: NorthEast | D123: Rhonda | E123: 4123 | F123: 1731.66
B124: 2006-10-09 | C124: West | D124: Troung | E124: 4100 | F124: 1312
B125: 2005-06-16 | C125: North | D125: Steven | E125: 4075 | F125: 2567.25
B126: 2006-10-18 | C126: MidWest | D126: Jon | E126: 4020 | F126: 261.3
B127: 2006-02-28 | C127: North | D127: Rhonda | E127: 3948 | F127: 473.76
B128: 2005-06-26 | C128: SouthEast | D128: Luke | E128: 3914 | F128: 469.68
B129: 2005-07-06 | C129: SouthEast | D129: Troung | E129: 3892 | F129: 1595.72
B130: 2006-12-03 | C130: NorthEast | D130: Troung | E130: 3816 | F130: 1717.2
B131: 2005-05-13 | C131: MidWest | D131: Chin | E131: 3768 | F131: 2147.76
B132: 2006-05-15 | C132: West | D132: Sheliadawn | E132: 3768 | F132: 2072.4
B133: 2005-10-01 | C133: West | D133: Rhonda | E133: 3750 | F133: 1687.5
B134: 2005-05-21 | C134: SouthEast | D134: Troung | E134: 3744 | F134: 936
B135: 2005-03-01 | C135: NorthEast | D135: Steven | E135: 3738 | F135: 242.97
B136: 2006-06-16 | C136: MidWest | D136: Rhonda | E136: 3591 | F136: 1472.31
B137: 2005-04-14 | C137: SouthEast | D137: Jon | E137: 3496 | F137: 2202.48
B138: 2005-05-16 | C138: North | D138: Luke | E138: 3477 | F138: 1425.57
B139: 2005-08-02 | C139: MidWest | D139: Jeri | E139: 3440 | F139: 860
B140: 2006-09-30 | C140: SouthEast | D140: Jon | E140: 3424 | F140: 1883.2
B141: 2006-05-21 | C141: SouthEast | D141: Chin | E141: 3382 | F141: 1860.1
B142: 2005-08-05 | C142: North | D142: Luke | E142: 3360 | F142: 403.2
B143: 2005-06-19 | C143: NorthEast | D143: Jon | E143: 3210 | F143: 208.65
B144: 2005-07-27 | C144: West | D144: Luke | E144: 3171 | F144: 1426.95
B145: 2006-08-29 | C145: North | D145: Jon | E145: 3150 | F145: 1795.5
B146: 2005-08-26 | C146: North | D146: Sheliadawn | E146: 3140 | F146: 1287.4
B147: 2005-04-19 | C147: North | D147: Rhonda | E147: 3129 | F147: 1282.89
B148: 2006-04-03 | C148: North | D148: Jon | E148: 3072 | F148: 983.04
B149: 2007-01-16 | C149: SouthEast | D149: Troung | E149: 3059 | F149: 1376.55
B150: 2007-02-19 | C150: NorthEast | D150: Sheliadawn | E150: 3056 | F150: 366.72
B151: 2006-10-26 | C151: SouthEast | D151: Steven | E151: 3050 | F151: 198.25
B152: 2005-12-06 | C152: North | D152: Jon | E152: 2950 | F152: 737.5
B153: 2005-12-24 | C153: NorthEast | D153: Chin | E153: 2944 | F153: 1324.8
B154: 2005-10-16 | C154: SouthEast | D154: Sheliadawn | E154: 2875 | F154: 718.75
B155: 2007-01-06 | C155: West | D155: Troung | E155: 2568 | F155: 1412.4
B156: 2006-11-23 | C156: SouthEast | D156: Chin | E156: 2546 | F156: 1043.86
B157: 2006-10-15 | C157: North | D157: Troung | E157: 2489 | F157: 298.68
B158: 2006-02-05 | C158: MidWest | D158: Luke | E158: 2472 | F158: 1409.04
B159: 2006-04-08 | C159: SouthEast | D159: Luke | E159: 2425 | F159: 291
B160: 2005-03-13 | C160: SouthEast | D160: Troung | E160: 2415 | F160: 1376.55
B161: 2005-07-21 | C161: NorthEast | D161: Steven | E161: 2400 | F161: 984
B162: 2005-12-05 | C162: NorthEast | D162: Steven | E162: 2394 | F162: 981.54
B163: 2005-08-20 | C163: West | D163: Steven | E163: 2340 | F163: 748.8
B164: 2005-07-03 | C164: North | D164: Sheliadawn | E164: 2304 | F164: 1451.52
B165: 2005-03-05 | C165: NorthEast | D165: Chin | E165: 2299 | F165: 965.58
B166: 2006-02-17 | C166: North | D166: Jon | E166: 2275 | F166: 932.75
B167: 2006-04-04 | C167: NorthEast | D167: Steven | E167: 2260 | F167: 565
B168: 2005-12-01 | C168: West | D168: Jon | E168: 2142 | F168: 139.23
B169: 2005-09-05 | C169: MidWest | D169: Troung | E169: 2086 | F169: 876.12
B170: 2005-12-01 | C170: NorthEast | D170: Troung | E170: 2002 | F170: 900.9
B171: 2005-11-23 | C171: MidWest | D171: Jon | E171: 1995 | F171: 1137.15
B172: 2005-07-12 | C172: NorthEast | D172: Troung | E172: 1968 | F172: 1082.4
B173: 2005-12-02 | C173: SouthEast | D173: Jon | E173: 1957 | F173: 1076.35
B174: 2006-01-12 | C174: West | D174: Troung | E174: 1953 | F174: 234.36
B175: 2005-03-08 | C175: MidWest | D175: Jon | E175: 1936 | F175: 1219.68
B176: 2006-04-24 | C176: MidWest | D176: Chin | E176: 1862 | F176: 465.5
B177: 2007-01-04 | C177: West | D177: Rhonda | E177: 1862 | F177: 465.5
B178: 2005-06-01 | C178: MidWest | D178: Rhonda | E178: 1860 | F178: 120.9
B179: 2006-08-07 | C179: North | D179: Jeri | E179: 1860 | F179: 595.2
B180: 2005-08-20 | C180: NorthEast | D180: Chin | E180: 1800 | F180: 450
B181: 2005-09-27 | C181: North | D181: Rhonda | E181: 1785 | F181: 731.85
B182: 2006-11-12 | C182: West | D182: Troung | E182: 1770 | F182: 743.4
B183: 2005-11-06 | C183: SouthEast | D183: Steven | E183: 1725 | F183: 552
B184: 2006-10-12 | C184: NorthEast | D184: Jeri | E184: 1701 | F184: 697.41
B185: 2007-01-08 | C185: MidWest | D185: Jeri | E185: 1675 | F185: 108.875
B186: 2006-04-30 | C186: West | D186: Jon | E186: 1635 | F186: 899.25
B187: 2006-09-10 | C187: NorthEast | D187: Steven | E187: 1628 | F187: 105.82
B188: 2005-11-09 | C188: NorthEast | D188: Troung | E188: 1600 | F188: 880
B189: 2005-09-23 | C189: SouthEast | D189: Sheliadawn | E189: 1562 | F189: 640.42
B190: 2005-02-27 | C190: SouthEast | D190: Sheliadawn | E190: 1414 | F190: 890.82
B191: 2006-01-30 | C191: SouthEast | D191: Jon | E191: 1364 | F191: 163.68
B192: 2006-07-14 | C192: NorthEast | D192: Chin | E192: 1344 | F192: 336
B193: 2005-07-31 | C193: SouthEast | D193: Troung | E193: 1328 | F193: 557.76
B194: 2006-12-04 | C194: NorthEast | D194: Luke | E194: 1316 | F194: 750.12
B195: 2005-09-27 | C195: NorthEast | D195: Sheliadawn | E195: 1240 | F195: 558
B196: 2007-02-02 | C196: NorthEast | D196: Chin | E196: 1150 | F196: 655.5
B197: 2006-11-27 | C197: MidWest | D197: Jon | E197: 1092 | F197: 687.96
B198: 2005-11-30 | C198: NorthEast | D198: Rhonda | E198: 1078 | F198: 70.07
B199: 2005-07-27 | C199: NorthEast | D199: Chin | E199: 968 | F199: 309.76
B200: 2006-12-08 | C200: MidWest | D200: Luke | E200: 825 | F200: 519.75
B201: 2005-09-22 | C201: NorthEast | D201: Chin | E201: 819 | F201: 450.45
... 18 more rows

Sheet Sheet1
A1: 2005-02-28 | B1: SouthEast | C1: Troung | D1: 8883 | E1: 3730.86
A2: 2005-03-03 | B2: North | C2: Jon | D2: 7644 | E2: 917.28
A3: 2005-03-08 | B3: SouthEast | C3: Jeri | D3: 8883 | E3: 2842.56
A4: 2005-03-24 | B4: North | C4: Jeri | D4: 7392 | E4: 887.04
A5: 2005-03-24 | B5: NorthEast | C5: Rhonda | D5: 7315 | E5: 3291.75
A6: 2005-04-11 | B6: NorthEast | C6: Steven | D6: 9786 | E6: 4110.12
A7: 2005-04-17 | B7: NorthEast | C7: Jeri | D7: 5936 | E7: 2671.2
A8: 2005-05-13 | B8: North | C8: Rhonda | D8: 7634 | E8: 4809.42
A9: 2005-05-14 | B9: West | C9: Jeri | D9: 4731 | E9: 307.515

Sheet Auto Filter
A1: =ROW()&")" -> 1) | B1: Drop-down arrows allow many new automatic Filtering options in Excel 2007, including by color and special filters for Text, Dates and Numbers
A2: 2) | B2: Filter button is in the data Ribbon (2007) or the Data Menu, Filter, then Auto or Advanced (2003)
A3: 3) | B3: Ctrl + Shift + L turns on and off Auto Filter
A4: 4) | B4: Filter by color is new in Excel 2007
A5: 5) | B5: The New built-in Text, Date and Number Filter in Excel 2007 make things much easier than in earlier versions
A6: 6)
B8: Date | C8: Region | D8: Sales Rep | E8: Sales | F8: Gross Profit
B9: 2005-02-27 | C9: SouthEast | D9: Sheliadawn | E9: 1414 | F9: 890.82
B10: 2005-02-28 | C10: SouthEast | D10: Troung | E10: 8883 | F10: 3730.86
B11: 2005-03-01 | C11: NorthEast | D11: Steven | E11: 3738 | F11: 242.97
B12: 2005-03-03 | C12: North | D12: Jon | E12: 7644 | F12: 917.28
B13: 2005-03-05 | C13: NorthEast | D13: Chin | E13: 2299 | F13: 965.58
B14: 2005-03-08 | C14: MidWest | D14: Jon | E14: 1936 | F14: 1219.68
B15: 2005-03-08 | C15: SouthEast | D15: Jeri | E15: 8883 | F15: 2842.56
B16: 2005-03-09 | C16: West | D16: Steven | E16: 686 | F16: 391.02
B17: 2005-03-13 | C17: SouthEast | D17: Troung | E17: 2415 | F17: 1376.55
B18: 2005-03-24 | C18: North | D18: Jeri | E18: 7392 | F18: 887.04
B19: 2005-03-24 | C19: NorthEast | D19: Rhonda | E19: 7315 | F19: 3291.75
B20: 2005-03-30 | C20: MidWest | D20: Troung | E20: 4400 | F20: 528
B21: 2005-04-11 | C21: NorthEast | D21: Steven | E21: 9786 | F21: 4110.12
B22: 2005-04-14 | C22: SouthEast | D22: Jon | E22: 3496 | F22: 2202.48
B23: 2005-04-17 | C23: NorthEast | D23: Jeri | E23: 5936 | F23: 2671.2
B24: 2005-04-19 | C24: North | D24: Rhonda | E24: 3129 | F24: 1282.89
B25: 2005-05-13 | C25: North | D25: Rhonda | E25: 7634 | F25: 4809.42
B26: 2005-05-13 | C26: MidWest | D26: Chin | E26: 3768 | F26: 2147.76
B27: 2005-05-14 | C27: West | D27: Jeri | E27: 4731 | F27: 307.515
B28: 2005-05-16 | C28: North | D28: Luke | E28: 3477 | F28: 1425.57
B29: 2005-05-21 | C29: SouthEast | D29: Troung | E29: 3744 | F29: 936
B30: 2005-05-26 | C30: North | D30: Jeri | E30: 6951 | F30: 1737.75
B31: 2005-05-27 | C31: North | D31: Chin | E31: 7623 | F31: 3430.35
B32: 2005-06-01 | C32: MidWest | D32: Rhonda | E32: 1860 | F32: 120.9
B33: 2005-06-09 | C33: MidWest | D33: Rhonda | E33: 7959 | F33: 3342.78
B34: 2005-06-10 | C34: West | D34: Steven | E34: 4336 | F34: 1777.76
B35: 2005-06-11 | C35: NorthEast | D35: Steven | E35: 42 | F35: 18.9
B36: 2005-06-16 | C36: West | D36: Luke | E36: 6489 | F36: 3698.73
B37: 2005-06-16 | C37: North | D37: Steven | E37: 4075 | F37: 2567.25
B38: 2005-06-19 | C38: NorthEast | D38: Jon | E38: 3210 | F38: 208.65
B39: 2005-06-23 | C39: NorthEast | D39: Luke | E39: 8470 | F39: 4827.9
B40: 2005-06-26 | C40: SouthEast | D40: Luke | E40: 3914 | F40: 469.68
B41: 2005-06-29 | C41: SouthEast | D41: Troung | E41: 7140 | F41: 4069.8
B42: 2005-07-03 | C42: North | D42: Sheliadawn | E42: 2304 | F42: 1451.52
B43: 2005-07-06 | C43: SouthEast | D43: Troung | E43: 3892 | F43: 1595.72
B44: 2005-07-12 | C44: NorthEast | D44: Troung | E44: 1968 | F44: 1082.4
B45: 2005-07-18 | C45: North | D45: Jon | E45: 5670 | F45: 2551.5
B46: 2005-07-18 | C46: SouthEast | D46: Steven | E46: 5040 | F46: 327.6
B47: 2005-07-19 | C47: NorthEast | D47: Chin | E47: 4767 | F47: 1525.44
B48: 2005-07-21 | C48: NorthEast | D48: Steven | E48: 2400 | F48: 984
B49: 2005-07-25 | C49: NorthEast | D49: Luke | E49: 7847 | F49: 4943.61
B50: 2005-07-26 | C50: SouthEast | D50: Steven | E50: 608 | F50: 334.4
B51: 2005-07-27 | C51: NorthEast | D51: Chin | E51: 968 | F51: 309.76
B52: 2005-07-27 | C52: West | D52: Luke | E52: 3171 | F52: 1426.95
B53: 2005-07-29 | C53: West | D53: Rhonda | E53: 7040 | F53: 844.8
B54: 2005-07-31 | C54: North | D54: Sheliadawn | E54: 8382 | F54: 1005.84
B55: 2005-07-31 | C55: SouthEast | D55: Troung | E55: 1328 | F55: 557.76
B56: 2005-08-02 | C56: MidWest | D56: Jeri | E56: 3440 | F56: 860
B57: 2005-08-05 | C57: North | D57: Luke | E57: 3360 | F57: 403.2
B58: 2005-08-20 | C58: West | D58: Steven | E58: 2340 | F58: 748.8
B59: 2005-08-20 | C59: NorthEast | D59: Chin | E59: 1800 | F59: 450
B60: 2005-08-22 | C60: NorthEast | D60: Jon | E60: 5313 | F60: 3028.41
B61: 2005-08-26 | C61: North | D61: Jon | E61: 4380 | F61: 1095
B62: 2005-08-26 | C62: North | D62: Sheliadawn | E62: 3140 | F62: 1287.4
B63: 2005-08-28 | C63: West | D63: Rhonda | E63: 10185 | F63: 5601.75
B64: 2005-09-05 | C64: MidWest | D64: Troung | E64: 2086 | F64: 876.12
B65: 2005-09-06 | C65: SouthEast | D65: Chin | E65: 374 | F65: 119.68
B66: 2005-09-11 | C66: SouthEast | D66: Troung | E66: 456 | F66: 259.92
B67: 2005-09-21 | C67: NorthEast | D67: Rhonda | E67: 4123 | F67: 1731.66
B68: 2005-09-21 | C68: NorthEast | D68: Steven | E68: 6090 | F68: 730.8
B69: 2005-09-22 | C69: NorthEast | D69: Chin | E69: 819 | F69: 450.45
B70: 2005-09-23 | C70: SouthEast | D70: Sheliadawn | E70: 1562 | F70: 640.42
B71: 2005-09-27 | C71: NorthEast | D71: Sheliadawn | E71: 1240 | F71: 558
B72: 2005-09-27 | C72: North | D72: Rhonda | E72: 1785 | F72: 731.85
B73: 2005-09-28 | C73: SouthEast | D73: Troung | E73: 7434 | F73: 4237.38
B74: 2005-10-01 | C74: West | D74: Rhonda | E74: 3750 | F74: 1687.5
B75: 2005-10-02 | C75: MidWest | D75: Sheliadawn | E75: 5649 | F75: 677.88
B76: 2005-10-08 | C76: NorthEast | D76: Rhonda | E76: 210 | F76: 88.2
B77: 2005-10-11 | C77: NorthEast | D77: Steven | E77: 5152 | F77: 1288
B78: 2005-10-16 | C78: SouthEast | D78: Sheliadawn | E78: 2875 | F78: 718.75
B79: 2005-10-19 | C79: West | D79: Jon | E79: 5460 | F79: 2293.2
B80: 2005-10-20 | C80: MidWest | D80: Chin | E80: 6480 | F80: 1620
B81: 2005-10-27 | C81: North | D81: Chin | E81: 693 | F81: 381.15
B82: 2005-10-28 | C82: North | D82: Jon | E82: 7625 | F82: 2440
B83: 2005-10-31 | C83: North | D83: Chin | E83: 8030 | F83: 3292.3
B84: 2005-11-06 | C84: SouthEast | D84: Steven | E84: 1725 | F84: 552
B85: 2005-11-09 | C85: North | D85: Chin | E85: 11425 | F85: 742.625
B86: 2005-11-09 | C86: NorthEast | D86: Troung | E86: 1600 | F86: 880
B87: 2005-11-17 | C87: North | D87: Troung | E87: 6870 | F87: 4328.1
B88: 2005-11-19 | C88: North | D88: Rhonda | E88: 70 | F88: 29.4
B89: 2005-11-23 | C89: MidWest | D89: Jon | E89: 1995 | F89: 1137.15
B90: 2005-11-30 | C90: NorthEast | D90: Rhonda | E90: 1078 | F90: 70.07
B91: 2005-12-01 | C91: NorthEast | D91: Troung | E91: 2002 | F91: 900.9
B92: 2005-12-01 | C92: West | D92: Jon | E92: 2142 | F92: 139.23
B93: 2005-12-02 | C93: SouthEast | D93: Jon | E93: 1957 | F93: 1076.35
B94: 2005-12-04 | C94: West | D94: Sheliadawn | E94: 11088 | F94: 4989.6
B95: 2005-12-05 | C95: NorthEast | D95: Steven | E95: 2394 | F95: 981.54
B96: 2005-12-06 | C96: North | D96: Jon | E96: 2950 | F96: 737.5
B97: 2005-12-08 | C97: NorthEast | D97: Steven | E97: 8352 | F97: 2672.64
B98: 2005-12-12 | C98: North | D98: Sheliadawn | E98: 6820 | F98: 2864.4
B99: 2005-12-19 | C99: SouthEast | D99: Chin | E99: 7584 | F99: 3412.8
B100: 2005-12-23 | C100: MidWest | D100: Chin | E100: 5698 | F100: 2336.18
B101: 2005-12-24 | C101: NorthEast | D101: Chin | E101: 2944 | F101: 1324.8
B102: 2006-01-03 | C102: West | D102: Rhonda | E102: 418 | F102: 171.38
B103: 2006-01-05 | C103: West | D103: Rhonda | E103: 8625 | F103: 3536.25
B104: 2006-01-08 | C104: MidWest | D104: Rhonda | E104: 4536 | F104: 1859.76
B105: 2006-01-11 | C105: North | D105: Sheliadawn | E105: 6327 | F105: 411.255
B106: 2006-01-12 | C106: West | D106: Troung | E106: 1953 | F106: 234.36
B107: 2006-01-19 | C107: NorthEast | D107: Jon | E107: 6144 | F107: 2764.8
B108: 2006-01-25 | C108: MidWest | D108: Sheliadawn | E108: 4368 | F108: 2402.4
B109: 2006-01-30 | C109: SouthEast | D109: Jon | E109: 1364 | F109: 163.68
B110: 2006-02-05 | C110: MidWest | D110: Luke | E110: 2472 | F110: 1409.04
B111: 2006-02-11 | C111: North | D111: Jon | E111: 8340 | F111: 4753.8
B112: 2006-02-13 | C112: West | D112: Steven | E112: 5940 | F112: 712.8
B113: 2006-02-15 | C113: North | D113: Jon | E113: 8043 | F113: 4423.65
B114: 2006-02-17 | C114: North | D114: Jon | E114: 2275 | F114: 932.75
B115: 2006-02-21 | C115: SouthEast | D115: Jon | E115: 6864 | F115: 3088.8
B116: 2006-02-21 | C116: North | D116: Jon | E116: 7847 | F116: 3531.15
B117: 2006-02-24 | C117: SouthEast | D117: Jeri | E117: 9282 | F117: 5105.1
B118: 2006-02-28 | C118: North | D118: Rhonda | E118: 3948 | F118: 473.76
B119: 2006-03-02 | C119: SouthEast | D119: Rhonda | E119: 6226 | F119: 3424.3
B120: 2006-03-02 | C120: NorthEast | D120: Steven | E120: 5126 | F120: 1281.5
B121: 2006-03-09 | C121: West | D121: Steven | E121: 4515 | F121: 2844.45
B122: 2006-03-15 | C122: NorthEast | D122: Rhonda | E122: 4473 | F122: 2460.15
B123: 2006-03-19 | C123: MidWest | D123: Luke | E123: 6314 | F123: 1578.5
B124: 2006-03-20 | C124: NorthEast | D124: Jeri | E124: 6704 | F124: 2748.64
B125: 2006-03-29 | C125: West | D125: Troung | E125: 6783 | F125: 3730.65
B126: 2006-04-01 | C126: NorthEast | D126: Jon | E126: 384 | F126: 241.92
B127: 2006-04-03 | C127: North | D127: Jon | E127: 3072 | F127: 983.04
B128: 2006-04-04 | C128: NorthEast | D128: Steven | E128: 2260 | F128: 565
B129: 2006-04-04 | C129: North | D129: Sheliadawn | E129: 6720 | F129: 3024
B130: 2006-04-08 | C130: SouthEast | D130: Luke | E130: 2425 | F130: 291
B131: 2006-04-09 | C131: SouthEast | D131: Jeri | E131: 300 | F131: 96
B132: 2006-04-12 | C132: SouthEast | D132: Rhonda | E132: 4755 | F132: 1997.1
B133: 2006-04-20 | C133: West | D133: Jon | E133: 6375 | F133: 2613.75
B134: 2006-04-21 | C134: North | D134: Jeri | E134: 6912 | F134: 3801.6
B135: 2006-04-24 | C135: MidWest | D135: Chin | E135: 1862 | F135: 465.5
B136: 2006-04-28 | C136: MidWest | D136: Chin | E136: 525 | F136: 63
B137: 2006-04-30 | C137: West | D137: Jon | E137: 1635 | F137: 899.25
B138: 2006-05-01 | C138: MidWest | D138: Sheliadawn | E138: 4905 | F138: 2207.25
B139: 2006-05-07 | C139: SouthEast | D139: Rhonda | E139: 8547 | F139: 4871.79
B140: 2006-05-15 | C140: West | D140: Sheliadawn | E140: 3768 | F140: 2072.4
B141: 2006-05-16 | C141: NorthEast | D141: Sheliadawn | E141: 9350 | F141: 607.75
B142: 2006-05-16 | C142: SouthEast | D142: Rhonda | E142: 6028 | F142: 3797.64
B143: 2006-05-18 | C143: SouthEast | D143: Chin | E143: 5616 | F143: 2302.56
B144: 2006-05-19 | C144: NorthEast | D144: Rhonda | E144: 4636 | F144: 1900.76
B145: 2006-05-21 | C145: SouthEast | D145: Chin | E145: 3382 | F145: 1860.1
B146: 2006-05-29 | C146: NorthEast | D146: Troung | E146: 6405 | F146: 2626.05
B147: 2006-06-01 | C147: NorthEast | D147: Steven | E147: 4580 | F147: 2610.6
B148: 2006-06-04 | C148: West | D148: Jeri | E148: 4438 | F148: 1819.58
B149: 2006-06-16 | C149: MidWest | D149: Rhonda | E149: 3591 | F149: 1472.31
B150: 2006-06-25 | C150: North | D150: Sheliadawn | E150: 315 | F150: 141.75
B151: 2006-06-28 | C151: NorthEast | D151: Troung | E151: 6993 | F151: 3846.15
B152: 2006-07-05 | C152: NorthEast | D152: Sheliadawn | E152: 5744 | F152: 689.28
B153: 2006-07-11 | C153: West | D153: Luke | E153: 5586 | F153: 2346.12
B154: 2006-07-13 | C154: NorthEast | D154: Luke | E154: 9400 | F154: 3008
B155: 2006-07-14 | C155: North | D155: Troung | E155: 5904 | F155: 1476
B156: 2006-07-14 | C156: NorthEast | D156: Chin | E156: 1344 | F156: 336
B157: 2006-07-16 | C157: NorthEast | D157: Jeri | E157: 7460 | F157: 1865
B158: 2006-07-23 | C158: MidWest | D158: Steven | E158: 9807 | F158: 6178.41
B159: 2006-07-25 | C159: MidWest | D159: Chin | E159: 4326 | F159: 1773.66
B160: 2006-07-27 | C160: NorthEast | D160: Rhonda | E160: 5184 | F160: 1296
B161: 2006-07-27 | C161: MidWest | D161: Troung | E161: 5720 | F161: 1430
B162: 2006-07-28 | C162: NorthEast | D162: Chin | E162: 7238 | F162: 4125.66
B163: 2006-07-30 | C163: West | D163: Steven | E163: 8976 | F163: 2872.32
B164: 2006-08-01 | C164: West | D164: Jeri | E164: 7790 | F164: 934.8
B165: 2006-08-04 | C165: West | D165: Chin | E165: 8862 | F165: 3987.9
B166: 2006-08-07 | C166: North | D166: Jeri | E166: 1860 | F166: 595.2
B167: 2006-08-07 | C167: West | D167: Chin | E167: 375 | F167: 153.75
B168: 2006-08-28 | C168: SouthEast | D168: Rhonda | E168: 6194 | F168: 2787.3
B169: 2006-08-29 | C169: North | D169: Jon | E169: 3150 | F169: 1795.5
B170: 2006-09-04 | C170: North | D170: Chin | E170: 6765 | F170: 1691.25
B171: 2006-09-06 | C171: West | D171: Chin | E171: 8575 | F171: 2143.75
B172: 2006-09-10 | C172: NorthEast | D172: Steven | E172: 1628 | F172: 105.82
B173: 2006-09-27 | C173: NorthEast | D173: Jon | E173: 8946 | F173: 5635.98
B174: 2006-09-30 | C174: SouthEast | D174: Jon | E174: 3424 | F174: 1883.2
B175: 2006-10-09 | C175: West | D175: Troung | E175: 4100 | F175: 1312
B176: 2006-10-12 | C176: NorthEast | D176: Jeri | E176: 1701 | F176: 697.41
B177: 2006-10-15 | C177: North | D177: Troung | E177: 2489 | F177: 298.68
B178: 2006-10-18 | C178: NorthEast | D178: Troung | E178: 5712 | F178: 685.44
B179: 2006-10-18 | C179: MidWest | D179: Jon | E179: 4020 | F179: 261.3
B180: 2006-10-26 | C180: SouthEast | D180: Steven | E180: 3050 | F180: 198.25
B181: 2006-11-02 | C181: NorthEast | D181: Luke | E181: 4731 | F181: 2696.67
B182: 2006-11-03 | C182: West | D182: Sheliadawn | E182: 8932 | F182: 4019.4
B183: 2006-11-09 | C183: MidWest | D183: Sheliadawn | E183: 5460 | F183: 2293.2
B184: 2006-11-12 | C184: West | D184: Troung | E184: 1770 | F184: 743.4
B185: 2006-11-13 | C185: MidWest | D185: Steven | E185: 450 | F185: 202.5
B186: 2006-11-14 | C186: West | D186: Rhonda | E186: 8320 | F186: 2662.4
B187: 2006-11-18 | C187: SouthEast | D187: Chin | E187: 5073 | F187: 3195.99
B188: 2006-11-20 | C188: MidWest | D188: Jon | E188: 5236 | F188: 1675.52
B189: 2006-11-23 | C189: SouthEast | D189: Chin | E189: 2546 | F189: 1043.86
B190: 2006-11-26 | C190: North | D190: Sheliadawn | E190: 4816 | F190: 3034.08
B191: 2006-11-27 | C191: MidWest | D191: Jon | E191: 1092 | F191: 687.96
B192: 2006-12-02 | C192: NorthEast | D192: Rhonda | E192: 42 | F192: 23.94
B193: 2006-12-03 | C193: NorthEast | D193: Troung | E193: 3816 | F193: 1717.2
B194: 2006-12-04 | C194: NorthEast | D194: Luke | E194: 1316 | F194: 750.12
B195: 2006-12-08 | C195: SouthEast | D195: Steven | E195: 11900 | F195: 1428
B196: 2006-12-08 | C196: MidWest | D196: Luke | E196: 825 | F196: 519.75
B197: 2006-12-19 | C197: North | D197: Chin | E197: 4725 | F197: 2126.25
B198: 2006-12-19 | C198: North | D198: Chin | E198: 688 | F198: 392.16
B199: 2006-12-22 | C199: MidWest | D199: Steven | E199: 4634 | F199: 1899.94
B200: 2006-12-23 | C200: SouthEast | D200: Troung | E200: 8379 | F200: 3435.39
B201: 2006-12-29 | C201: MidWest | D201: Jeri | E201: 6900 | F201: 2829
... 16 more rows

Sheet Advanced Filter (1)
A1: =ROW()&")" -> 1) | B1: Advanced Filter is the same as in earlier versions
A2: =ROW()&")" -> 2) | B2: Filter button is in the data Ribbon (2007) or the Data Menu, Filter, then Auto or Advanced (2003)
A3: =ROW()&")" -> 3) | B3: Advanced filter is good for taking data out of an Excel list and putting it somewhere else
B5: Criteria
B6: Date | C6: Region | D6: Sales Rep | E6: Sales | F6: Gross Profit
C7: NorthEast | D7: Rhonda | E7: >3000
B9: Date | C9: Region | D9: Sales Rep | E9: Sales | F9: Gross Profit
B10: 2005-08-05 | C10: North | D10: Luke | E10: 3360 | F10: 403.2
B11: 2007-01-16 | C11: NorthEast | D11: Rhonda | E11: 3059 | F11: 1376.55
B12: 2006-07-27 | C12: NorthEast | D12: Rhonda | E12: 5184 | F12: 1296
B13: 2006-03-09 | C13: West | D13: Steven | E13: 4515 | F13: 2844.45
B14: 2005-03-01 | C14: NorthEast | D14: Steven | E14: 3738 | F14: 242.97
B15: 2005-04-19 | C15: North | D15: Rhonda | E15: 3129 | F15: 1282.89
B16: 2006-05-19 | C16: NorthEast | D16: Rhonda | E16: 4636 | F16: 1900.76
B17: 2005-07-26 | C17: SouthEast | D17: Steven | E17: 608 | F17: 334.4
B18: 2005-11-30 | C18: NorthEast | D18: Rhonda | E18: 1078 | F18: 70.07
B19: 2006-07-30 | C19: West | D19: Steven | E19: 8976 | F19: 2872.32
B20: 2006-12-19 | C20: North | D20: Chin | E20: 4725 | F20: 2126.25
B21: 2005-03-08 | C21: MidWest | D21: Jon | E21: 1936 | F21: 1219.68
B22: 2007-01-19 | C22: West | D22: Sheliadawn | E22: 6216 | F22: 3418.8
B23: 2005-08-20 | C23: West | D23: Steven | E23: 2340 | F23: 748.8
B24: 2005-06-11 | C24: NorthEast | D24: Steven | E24: 42 | F24: 18.9
B25: 2005-12-01 | C25: NorthEast | D25: Troung | E25: 2002 | F25: 900.9
B26: 2006-12-04 | C26: NorthEast | D26: Luke | E26: 1316 | F26: 750.12
B29: Extract
B30: Date | C30: Region | D30: Sales Rep | E30: Sales | F30: Gross Profit
B31: 2007-01-16 | C31: NorthEast | D31: Rhonda | E31: 3059 | F31: 1376.55
B32: 2006-07-27 | C32: NorthEast | D32: Rhonda | E32: 5184 | F32: 1296
B33: 2006-05-19 | C33: NorthEast | D33: Rhonda | E33: 4636 | F33: 1900.76

Sheet Advanced Filter (2)
A1: =ROW()&")" -> 1) | B1: Advanced Filter is the same as in earlier versions
A2: =ROW()&")" -> 2) | B2: Filter button is in the data Ribbon (2007) or the Data Menu, Filter, then Auto or Advanced (2003)
A3: =ROW()&")" -> 3) | B3: Advanced Filter, Extract Unique values is good for creating a unique list
B5: Date | C5: Product | D5: Price | E5: Units | F5: COGS | G5: Sales
B6: 2005-08-05 | C6: Yanaki | D6: 20 | E6: 168 | F6: 2956.8 | G6: 3360
B7: 2007-01-16 | C7: Sunshine | D7: 19 | E7: 161 | F7: 1682.45 | G7: 3059
B8: 2006-07-27 | C8: SunSpot | D8: 16 | E8: 324 | F8: 3888 | G8: 5184
B9: 2006-03-09 | C9: Regal | D9: 15 | E9: 301 | F9: 1670.55 | G9: 4515
B10: 2005-03-01 | C10: Sunset | D10: 21 | E10: 178 | F10: 3495.03 | G10: 3738
B11: 2005-04-19 | C11: Bellen | D11: 21 | E11: 149 | F11: 1846.11 | G11: 3129
B12: 2006-05-19 | C12: Sunshine | D12: 19 | E12: 244 | F12: 2735.24 | G12: 4636
B13: 2005-07-26 | C13: Sunshine | D13: 19 | E13: 32 | F13: 273.6 | G13: 608
B14: 2005-11-30 | C14: Carlota | D14: 22 | E14: 49 | F14: 1007.93 | G14: 1078
B15: 2006-07-30 | C15: Carlota | D15: 22 | E15: 408 | F15: 6103.68 | G15: 8976
B16: 2006-12-19 | C16: Sunset | D16: 21 | E16: 225 | F16: 2598.75 | G16: 4725
B17: 2005-03-08 | C17: SunSpot | D17: 16 | E17: 121 | F17: 716.32 | G17: 1936
B18: 2007-01-19 | C18: Quad | D18: 24 | E18: 259 | F18: 2797.2 | G18: 6216
B19: 2005-08-20 | C19: Yanaki | D19: 20 | E19: 117 | F19: 1591.2 | G19: 2340
B20: 2005-06-11 | C20: Sunset | D20: 21 | E20: 2 | F20: 23.1 | G20: 42
B21: 2005-12-01 | C21: Aspen | D21: 14 | E21: 143 | F21: 1101.1 | G21: 2002
B22: 2006-12-04 | C22: Aspen | D22: 14 | E22: 94 | F22: 565.88 | G22: 1316
C24: Product
C25: Yanaki
C26: Sunshine
C27: SunSpot
C28: Regal
C29: Sunset
C30: Bellen
C31: Carlota
C32: Quad
C33: Aspen

Sheet Advanced Filter (3)
A1: =ROW()&")" -> 1) | B1: Advanced Filter is the same as in earlier versions
A2: =ROW()&")" -> 2) | B2: Filter button is in the data Ribbon (2007) or the Data Menu, Filter, then Auto or Advanced (2003)
A3: =ROW()&")" -> 3) | B3: Advanced Filter can be used with a TRUE/FALSE formula
B5: ="Advanced Filter Criteria Range ("&ADDRESS(ROW(B6),COLUMN(B6),4)&":"&ADDRESS(ROW(B7),COLUMN(B7),4)&") must have no content in cell "&ADDRESS(ROW(B6),COLUMN(B6),4)&" and formula that evaluates to TRUE/FALSE in cell "&ADDRESS(ROW(B7),COLUMN(B7),4)&"." -> Advanced Filter Criteria Range (B6:B7) must have no content in cell B6 and formula that evaluates to TRUE/FALSE in cell B7.
B7: =MOD(ROW(A1),B$10)=0 -> FALSE | C7: =MOD(ROW(A1),$B$10)=0
B9: Extract every nth transaction for audit sample
B10: 160
A12: Trans # | B12: Date | C12: Sales | E12: Trans # | F12: Date | G12: Sales
A13: 1 | B13: 1990-01-01 | C13: 85081.18 | E13: 160 | F13: 1990-06-09 | G13: 33632.68
A14: 2 | B14: 1990-01-02 | C14: 42999.04 | E14: 320 | F14: 1990-11-16 | G14: 87080.29
A15: 3 | B15: 1990-01-03 | C15: 93856.57 | E15: 480 | F15: 1991-04-25 | G15: 4778.41
A16: 4 | B16: 1990-01-04 | C16: 57066.39 | E16: 640 | F16: 1991-10-02 | G16: 95184.29
A17: 5 | B17: 1990-01-05 | C17: 23223.92 | E17: 800 | F17: 1992-03-10 | G17: 4224.98
A18: 6 | B18: 1990-01-06 | C18: 69757.77 | E18: 960 | F18: 1992-08-17 | G18: 30843.31
A19: 7 | B19: 1990-01-07 | C19: 46207.85 | E19: 1120 | F19: 1993-01-24 | G19: 78448.43
A20: 8 | B20: 1990-01-08 | C20: 73577.99 | E20: 1280 | F20: 1993-07-03 | G20: 85285.59
A21: 9 | B21: 1990-01-09 | C21: 60191.48 | E21: 1440 | F21: 1993-12-10 | G21: 67333.11
A22: 10 | B22: 1990-01-10 | C22: 28480.46 | E22: 1600 | F22: 1994-05-19 | G22: 22557.69
A23: 11 | B23: 1990-01-11 | C23: 51701.13 | E23: 1760 | F23: 1994-10-26 | G23: 61230.56
A24: 12 | B24: 1990-01-12 | C24: 71333.67 | E24: 1920 | F24: 1995-04-04 | G24: 12502.07
A25: 13 | B25: 1990-01-13 | C25: 40064.91 | E25: 2080 | F25: 1995-09-11 | G25: 52455.55
A26: 14 | B26: 1990-01-14 | C26: 86287.11 | E26: 2240 | F26: 1996-02-18 | G26: 29264.9
A27: 15 | B27: 1990-01-15 | C27: 42321.68 | E27: 2400 | F27: 1996-07-27 | G27: 37343.93
A28: 16 | B28: 1990-01-16 | C28: 82742.99 | E28: 2560 | F28: 1997-01-03 | G28: 60636.16
A29: 17 | B29: 1990-01-17 | C29: 40791.52 | E29: 2720 | F29: 1997-06-12 | G29: 69519.31
A30: 18 | B30: 1990-01-18 | C30: 78868.6 | E30: 2880 | F30: 1997-11-19 | G30: 20925.67
A31: 19 | B31: 1990-01-19 | C31: 51419.17 | E31: 3040 | F31: 1998-04-28 | G31: 53951.43
A32: 20 | B32: 1990-01-20 | C32: 31365.87 | E32: 3200 | F32: 1998-10-05 | G32: 72502.76
A33: 21 | B33: 1990-01-21 | C33: 33502.93 | E33: 3360 | F33: 1999-03-14 | G33: 15780.3
A34: 22 | B34: 1990-01-22 | C34: 7474.23 | E34: 3520 | F34: 1999-08-21 | G34: 9469.97
A35: 23 | B35: 1990-01-23 | C35: 3481.98 | E35: 3680 | F35: 2000-01-28 | G35: 7709.21
A36: 24 | B36: 1990-01-24 | C36: 27628.96 | E36: 3840 | F36: 2000-07-06 | G36: 20302.55
A37: 25 | B37: 1990-01-25 | C37: 44243.48 | E37: 4000 | F37: 2000-12-13 | G37: 71336.33
A38: 26 | B38: 1990-01-26 | C38: 72055.96 | E38: 4160 | F38: 2001-05-22 | G38: 92763.62
A39: 27 | B39: 1990-01-27 | C39: 70283.97 | E39: 4320 | F39: 2001-10-29 | G39: 52252.03
A40: 28 | B40: 1990-01-28 | C40: 35835.95 | E40: 4480 | F40: 2002-04-07 | G40: 19577.4
A41: 29 | B41: 1990-01-29 | C41: 49597.66 | E41: 4640 | F41: 2002-09-14 | G41: 12521.16
A42: 30 | B42: 1990-01-30 | C42: 64682.94 | E42: 4800 | F42: 2003-02-21 | G42: 24445.65
A43: 31 | B43: 1990-01-31 | C43: 16900.68 | E43: 4960 | F43: 2003-07-31 | G43: 1469.2
A44: 32 | B44: 1990-02-01 | C44: 4357.74 | E44: 5120 | F44: 2004-01-07 | G44: 32906.36
A45: 33 | B45: 1990-02-02 | C45: 18173.8 | E45: 5280 | F45: 2004-06-15 | G45: 11245.78
A46: 34 | B46: 1990-02-03 | C46: 23429.92 | E46: 5440 | F46: 2004-11-22 | G46: 90388.4
A47: 35 | B47: 1990-02-04 | C47: 92755.88 | E47: 5600 | F47: 2005-05-01 | G47: 62098.49
A48: 36 | B48: 1990-02-05 | C48: 96742.24 | E48: 5760 | F48: 2005-10-08 | G48: 86327.22
A49: 37 | B49: 1990-02-06 | C49: 58841.45 | E49: 5920 | F49: 2006-03-17 | G49: 89026.29
A50: 38 | B50: 1990-02-07 | C50: 43190.81 | E50: 6080 | F50: 2006-08-24 | G50: 46926.78
A51: 39 | B51: 1990-02-08 | C51: 80623.34 | E51: 6240 | F51: 2007-01-31 | G51: 79963.05
A52: 40 | B52: 1990-02-09 | C52: 7971.48 | E52: 6400 | F52: 2007-07-10 | G52: 13781.54
A53: 41 | B53: 1990-02-10 | C53: 75989.32 | E53: 6560 | F53: 2007-12-17 | G53: 29198.22
A54: 42 | B54: 1990-02-11 | C54: 19956.25 | E54: 6720 | F54: 2008-05-25 | G54: 76803.5
A55: 43 | B55: 1990-02-12 | C55: 87904.59 | E55: 6880 | F55: 2008-11-01 | G55: 22950.65
A56: 44 | B56: 1990-02-13 | C56: 3700.6 | E56: 7040 | F56: 2009-04-10 | G56: 26989.41
A57: 45 | B57: 1990-02-14 | C57: 7119.74 | E57: 7200 | F57: 2009-09-17 | G57: 64271.55
A58: 46 | B58: 1990-02-15 | C58: 73719.96 | E58: 7360 | F58: 2010-02-24 | G58: 62938.59
A59: 47 | B59: 1990-02-16 | C59: 23068.5 | E59: 7520 | F59: 2010-08-03 | G59: 70203.02
A60: 48 | B60: 1990-02-17 | C60: 13231.99 | E60: 7680 | F60: 2011-01-10 | G60: 83581.8
A61: 49 | B61: 1990-02-18 | C61: 95235.14 | E61: 7840 | F61: 2011-06-19 | G61: 79455.62
A62: 50 | B62: 1990-02-19 | C62: 85615.05 | E62: 8000 | F62: 2011-11-26 | G62: 2286.58
A63: 51 | B63: 1990-02-20 | C63: 44471.27 | E63: 8160 | F63: 2012-05-04 | G63: 71783.9
A64: 52 | B64: 1990-02-21 | C64: 22561.78 | E64: 8320 | F64: 2012-10-11 | G64: 95415.65
A65: 53 | B65: 1990-02-22 | C65: 54583.42 | E65: 8480 | F65: 2013-03-20 | G65: 80376.08
A66: 54 | B66: 1990-02-23 | C66: 91612.62 | E66: 8640 | F66: 2013-08-27 | G66: 19467.44
A67: 55 | B67: 1990-02-24 | C67: 45713.18 | E67: 8800 | F67: 2014-02-03 | G67: 89289.89
A68: 56 | B68: 1990-02-25 | C68: 20135.81 | E68: 8960 | F68: 2014-07-13 | G68: 92283.59
A69: 57 | B69: 1990-02-26 | C69: 14976.57 | E69: 9120 | F69: 2014-12-20 | G69: 100816.15
A70: 58 | B70: 1990-02-27 | C70: 100125.55 | E70: 9280 | F70: 2015-05-29 | G70: 63939.06
A71: 59 | B71: 1990-02-28 | C71: 4138.91 | E71: 9440 | F71: 2015-11-05 | G71: 70713.87
A72: 60 | B72: 1990-03-01 | C72: 74748.48 | E72: 9600 | F72: 2016-04-13 | G72: 25037.21
A73: 61 | B73: 1990-03-02 | C73: 99586.96 | E73: 9760 | F73: 2016-09-20 | G73: 69929.3
A74: 62 | B74: 1990-03-03 | C74: 48143.26 | E74: 9920 | F74: 2017-02-27 | G74: 44208.66
A75: 63 | B75: 1990-03-04 | C75: 29600.95
A76: 64 | B76: 1990-03-05 | C76: 58976.61
A77: 65 | B77: 1990-03-06 | C77: 79287.29
A78: 66 | B78: 1990-03-07 | C78: 25948.63
A79: 67 | B79: 1990-03-08 | C79: 91703.08
A80: 68 | B80: 1990-03-09 | C80: 26107.39
A81: 69 | B81: 1990-03-10 | C81: 51364.95
A82: 70 | B82: 1990-03-11 | C82: 56236.63
A83: 71 | B83: 1990-03-12 | C83: 90153.07
A84: 72 | B84: 1990-03-13 | C84: 3115.31
A85: 73 | B85: 1990-03-14 | C85: 37753.83
A86: 74 | B86: 1990-03-15 | C86: 25545.64
A87: 75 | B87: 1990-03-16 | C87: 94528.88
A88: 76 | B88: 1990-03-17 | C88: 40225.11
A89: 77 | B89: 1990-03-18 | C89: 55494.91
A90: 78 | B90: 1990-03-19 | C90: 74175.97
A91: 79 | B91: 1990-03-20 | C91: 11369.57
A92: 80 | B92: 1990-03-21 | C92: 31911.08
A93: 81 | B93: 1990-03-22 | C93: 35624.83
A94: 82 | B94: 1990-03-23 | C94: 75291.32
A95: 83 | B95: 1990-03-24 | C95: 38693.27
A96: 84 | B96: 1990-03-25 | C96: 69209.32
A97: 85 | B97: 1990-03-26 | C97: 35823.61
A98: 86 | B98: 1990-03-27 | C98: 48446.49
A99: 87 | B99: 1990-03-28 | C99: 32418.94
A100: 88 | B100: 1990-03-29 | C100: 22437.82
A101: 89 | B101: 1990-03-30 | C101: 40858.51
A102: 90 | B102: 1990-03-31 | C102: 34654.65
A103: 91 | B103: 1990-04-01 | C103: 20570.31
A104: 92 | B104: 1990-04-02 | C104: 18872.33
A105: 93 | B105: 1990-04-03 | C105: 36100.5
A106: 94 | B106: 1990-04-04 | C106: 51849.07
A107: 95 | B107: 1990-04-05 | C107: 40525.07
A108: 96 | B108: 1990-04-06 | C108: 74767.09
A109: 97 | B109: 1990-04-07 | C109: 76310.61
A110: 98 | B110: 1990-04-08 | C110: 13858.05
A111: 99 | B111: 1990-04-09 | C111: 74150.93
A112: 100 | B112: 1990-04-10 | C112: 92846.07
A113: 101 | B113: 1990-04-11 | C113: 15559.76
A114: 102 | B114: 1990-04-12 | C114: 5577.39
A115: 103 | B115: 1990-04-13 | C115: 83723.31
A116: 104 | B116: 1990-04-14 | C116: 67071.85
A117: 105 | B117: 1990-04-15 | C117: 14622.63
A118: 106 | B118: 1990-04-16 | C118: 46771.49
A119: 107 | B119: 1990-04-17 | C119: 8473.2
A120: 108 | B120: 1990-04-18 | C120: 44549.61
A121: 109 | B121: 1990-04-19 | C121: 5591.69
A122: 110 | B122: 1990-04-20 | C122: 97263.93
A123: 111 | B123: 1990-04-21 | C123: 50600.01
A124: 112 | B124: 1990-04-22 | C124: 55187.67
A125: 113 | B125: 1990-04-23 | C125: 97404.36
A126: 114 | B126: 1990-04-24 | C126: 81276.81
A127: 115 | B127: 1990-04-25 | C127: 72907.92
A128: 116 | B128: 1990-04-26 | C128: 34194.75
A129: 117 | B129: 1990-04-27 | C129: 4755.79
A130: 118 | B130: 1990-04-28 | C130: 48734.61
A131: 119 | B131: 1990-04-29 | C131: 80314.21
A132: 120 | B132: 1990-04-30 | C132: 98869.82
A133: 121 | B133: 1990-05-01 | C133: 88086.77
A134: 122 | B134: 1990-05-02 | C134: 50640.36
A135: 123 | B135: 1990-05-03 | C135: 44054.2
A136: 124 | B136: 1990-05-04 | C136: 55139.95
A137: 125 | B137: 1990-05-05 | C137: 93244.05
A138: 126 | B138: 1990-05-06 | C138: 20111.07
A139: 127 | B139: 1990-05-07 | C139: 47600.03
A140: 128 | B140: 1990-05-08 | C140: 53097.22
A141: 129 | B141: 1990-05-09 | C141: 74628.87
A142: 130 | B142: 1990-05-10 | C142: 61055.19
A143: 131 | B143: 1990-05-11 | C143: 19962.72
A144: 132 | B144: 1990-05-12 | C144: 19175.02
A145: 133 | B145: 1990-05-13 | C145: 33741.6
A146: 134 | B146: 1990-05-14 | C146: 93246.55
A147: 135 | B147: 1990-05-15 | C147: 57343.42
A148: 136 | B148: 1990-05-16 | C148: 75694.42
A149: 137 | B149: 1990-05-17 | C149: 55776.64
A150: 138 | B150: 1990-05-18 | C150: 46837.46
A151: 139 | B151: 1990-05-19 | C151: 31558.75
A152: 140 | B152: 1990-05-20 | C152: 41720.91
A153: 141 | B153: 1990-05-21 | C153: 1342.43
A154: 142 | B154: 1990-05-22 | C154: 26282.79
A155: 143 | B155: 1990-05-23 | C155: 71917.4
A156: 144 | B156: 1990-05-24 | C156: 31347.29
A157: 145 | B157: 1990-05-25 | C157: 8856.25
A158: 146 | B158: 1990-05-26 | C158: 38476.23
A159: 147 | B159: 1990-05-27 | C159: 70210.35
A160: 148 | B160: 1990-05-28 | C160: 68467.83
A161: 149 | B161: 1990-05-29 | C161: 94963.08
A162: 150 | B162: 1990-05-30 | C162: 52615.02
A163: 151 | B163: 1990-05-31 | C163: 7022.93
A164: 152 | B164: 1990-06-01 | C164: 1271.81
A165: 153 | B165: 1990-06-02 | C165: 80920.67
A166: 154 | B166: 1990-06-03 | C166: 29876.01
A167: 155 | B167: 1990-06-04 | C167: 70947.72
A168: 156 | B168: 1990-06-05 | C168: 11677.06
A169: 157 | B169: 1990-06-06 | C169: 21158.28
A170: 158 | B170: 1990-06-07 | C170: 61938.43
A171: 159 | B171: 1990-06-08 | C171: 82578.46
A172: 160 | B172: 1990-06-09 | C172: 33632.68
A173: 161 | B173: 1990-06-10 | C173: 60691.78
A174: 162 | B174: 1990-06-11 | C174: 96187.97
A175: 163 | B175: 1990-06-12 | C175: 36269.06
A176: 164 | B176: 1990-06-13 | C176: 80942.49
A177: 165 | B177: 1990-06-14 | C177: 1950.94
A178: 166 | B178: 1990-06-15 | C178: 73533.03
A179: 167 | B179: 1990-06-16 | C179: 52577.14
A180: 168 | B180: 1990-06-17 | C180: 60037.73
A181: 169 | B181: 1990-06-18 | C181: 8390.13
A182: 170 | B182: 1990-06-19 | C182: 26497.94
A183: 171 | B183: 1990-06-20 | C183: 27492
A184: 172 | B184: 1990-06-21 | C184: 3262.65
A185: 173 | B185: 1990-06-22 | C185: 36143.29
A186: 174 | B186: 1990-06-23 | C186: 2971.26
A187: 175 | B187: 1990-06-24 | C187: 21650.45
A188: 176 | B188: 1990-06-25 | C188: 42918.72
A189: 177 | B189: 1990-06-26 | C189: 99583.83
A190: 178 | B190: 1990-06-27 | C190: 67843.48
A191: 179 | B191: 1990-06-28 | C191: 7714.98
A192: 180 | B192: 1990-06-29 | C192: 93851.12
A193: 181 | B193: 1990-06-30 | C193: 94901.69
A194: 182 | B194: 1990-07-01 | C194: 25748.84
A195: 183 | B195: 1990-07-02 | C195: 31985.87
A196: 184 | B196: 1990-07-03 | C196: 10634.51
A197: 185 | B197: 1990-07-04 | C197: 42913.53
A198: 186 | B198: 1990-07-05 | C198: 72797.27
A199: 187 | B199: 1990-07-06 | C199: 43087.72
A200: 188 | B200: 1990-07-07 | C200: 10167.39
A201: 189 | B201: 1990-07-08 | C201: 44490.65
A202: 190 | B202: 1990-07-09 | C202: 59740.36
A203: 191 | B203: 1990-07-10 | C203: 76063.56
A204: 192 | B204: 1990-07-11 | C204: 66423.66
... 9807 more rows

Sheet Advanced Filter (4)
A1: =ROW()&")" -> 1) | B1: Advanced Filter is the same as in earlier versions
A2: =ROW()&")" -> 2) | B2: Filter button is in the data Ribbon (2007) or the Data Menu, Filter, then Auto or Advanced (2003)
A3: =ROW()&")" -> 3) | B3: Advanced Filter can be used with a TRUE/FALSE formula
A4: =ROW()&")" -> 4) | B4: Conditional Formatting uses a similar formula to highlight Rows
A5: =ROW()&")" -> 5) | B5: In Excel 2007, you can use a built in Number Filter to filter "Above Average", Then copy and paste.
B8: =E11>=AVERAGE($E$11:$E$27) -> TRUE
B10: Date | C10: Region | D10: Units | E10: Sales
B11: 2005-08-05 | C11: North | D11: 168 | E11: 3360
B12: 2007-01-16 | C12: NorthEast | D12: 161 | E12: 3059
B13: 2006-07-27 | C13: NorthEast | D13: 324 | E13: 5184
B14: 2006-03-09 | C14: West | D14: 301 | E14: 4515
B15: 2005-03-01 | C15: NorthEast | D15: 178 | E15: 3738
B16: 2005-04-19 | C16: North | D16: 149 | E16: 3129
B17: 2006-05-19 | C17: NorthEast | D17: 244 | E17: 4636
B18: 2005-07-26 | C18: SouthEast | D18: 32 | E18: 608
B19: 2005-11-30 | C19: NorthEast | D19: 49 | E19: 1078
B20: 2006-07-30 | C20: West | D20: 408 | E20: 8976
B21: 2006-12-19 | C21: North | D21: 225 | E21: 4725
B22: 2005-03-08 | C22: MidWest | D22: 121 | E22: 1936
B23: 2007-01-19 | C23: West | D23: 259 | E23: 6216
B24: 2005-08-20 | C24: West | D24: 117 | E24: 2340
B25: 2005-06-11 | C25: NorthEast | D25: 2 | E25: 42
B26: 2005-12-01 | C26: NorthEast | D26: 143 | E26: 2002
B27: 2006-12-04 | C27: NorthEast | D27: 94 | E27: 1316
G30: Date | H30: Region | I30: Units | J30: Sales
G31: 2005-08-05 | H31: North | I31: 168 | J31: 3360
G32: 2006-07-27 | H32: NorthEast | I32: 324 | J32: 5184
G33: 2006-03-09 | H33: West | I33: 301 | J33: 4515
G34: 2005-03-01 | H34: NorthEast | I34: 178 | J34: 3738
G35: 2006-05-19 | H35: NorthEast | I35: 244 | J35: 4636
G36: 2006-07-30 | H36: West | I36: 408 | J36: 8976
G37: 2006-12-19 | H37: North | I37: 225 | J37: 4725
G38: 2007-01-19 | H38: West | I38: 259 | J38: 6216

Sheet Sheet6
A1: Date | B1: Region | C1: Sales Rep | D1: Sales
C2: Chin Total | D2: 22659
C3: Jeri Total | D3: 12015
C4: Jon Total | D4: 14279
C5: Luke Total | D5: 9611
C6: Rhonda Total | D6: 17946
C7: Sheliadawn Total | D7: 20382
C8: Steven Total | D8: 14891
C9: Troung Total | D9: 12206
B10: MidWest Total | D10: 123989
C11: Chin Total | D11: 47325
C12: Jeri Total | D12: 28895
C13: Jon Total | D13: 61794
C14: Luke Total | D14: 6837
C15: Rhonda Total | D15: 16566
C16: Sheliadawn Total | D16: 38824
C17: Steven Total | D17: 17855
C18: Troung Total | D18: 15263
B19: North Total | D19: 233359
C20: Chin Total | D20: 23329
C21: Jeri Total | D21: 21801
C22: Jon Total | D22: 23997
C23: Luke Total | D23: 31764
C24: Rhonda Total | D24: 27061
C25: Sheliadawn Total | D25: 19390
C26: Steven Total | D26: 51548
C27: Troung Total | D27: 28496
B28: NorthEast Total | D28: 227386
C29: Chin Total | D29: 24575
C30: Jeri Total | D30: 18465
C31: Jon Total | D31: 29205
C32: Luke Total | D32: 6339
C33: Rhonda Total | D33: 31750
C34: Sheliadawn Total | D34: 14203
C35: Steven Total | D35: 22323
C36: Troung Total | D36: 46730
B37: SouthEast Total | D37: 193590
C38: Chin Total | D38: 17812
C39: Jeri Total | D39: 16959
C40: Jon Total | D40: 21492
C41: Luke Total | D41: 20160
C42: Rhonda Total | D42: 40200
C43: Sheliadawn Total | D43: 30004
C44: Steven Total | D44: 26793
C45: Troung Total | D45: 17174
B46: West Total | D46: 190594
B47: Grand Total | D47: 968918

Sheet SubTotals
A1: =ROW()&")" -> 1) | B1: Must Sort before doing Subtotals
A2: 2) | B2: If more than one sort add Subtotals to the Major field first
A3: =ROW()&")" -> 3) | B3: To add subtotals in 2007, Data Ribbon, Outline Group, Subtotals Button.
A4: =ROW()&")" -> 4) | B4: To add subtotals in 2003, Data Menu, Subtotals
A5: 5) | B5: Select field to create subtotals for
A6: 6) | B6: Select function
A7: 7) | B7: Select field to have function calculate upon
A8: =ROW()&")" -> 8) | B8: Repeat if you want more than one field to have Subtotals
A9: =ROW()&")" -> 9) | B9: "Subtotal" can make calculations that are not adding
A10: =ROW()&")" -> 10) | B10: After you add Subtotals and you want to copy and paste "collapsed data", Use the keyboard shortcut Alt + ; to highlight "Visible Cells Only", then Copy and Paste
B12: Date | C12: Region | D12: Sales Rep | E12: Sales
B13: 2006-04-28 | C13: MidWest | D13: Chin | E13: 525
B14: 2006-04-24 | C14: MidWest | D14: Chin | E14: 1862
B15: 2005-05-13 | C15: MidWest | D15: Chin | E15: 3768
B16: 2006-07-25 | C16: MidWest | D16: Chin | E16: 4326
B17: 2005-12-23 | C17: MidWest | D17: Chin | E17: 5698
B18: 2005-10-20 | C18: MidWest | D18: Chin | E18: 6480
B19: 2007-01-08 | C19: MidWest | D19: Jeri | E19: 1675
B20: 2005-08-02 | C20: MidWest | D20: Jeri | E20: 3440
B21: 2006-12-29 | C21: MidWest | D21: Jeri | E21: 6900
B22: 2006-11-27 | C22: MidWest | D22: Jon | E22: 1092
B23: 2005-03-08 | C23: MidWest | D23: Jon | E23: 1936
B24: 2005-11-23 | C24: MidWest | D24: Jon | E24: 1995
B25: 2006-10-18 | C25: MidWest | D25: Jon | E25: 4020
B26: 2006-11-20 | C26: MidWest | D26: Jon | E26: 5236
B27: 2006-12-08 | C27: MidWest | D27: Luke | E27: 825
B28: 2006-02-05 | C28: MidWest | D28: Luke | E28: 2472
B29: 2006-03-19 | C29: MidWest | D29: Luke | E29: 6314
B30: 2005-06-01 | C30: MidWest | D30: Rhonda | E30: 1860
B31: 2006-06-16 | C31: MidWest | D31: Rhonda | E31: 3591
B32: 2006-01-08 | C32: MidWest | D32: Rhonda | E32: 4536
B33: 2005-06-09 | C33: MidWest | D33: Rhonda | E33: 7959
B34: 2006-01-25 | C34: MidWest | D34: Sheliadawn | E34: 4368
B35: 2006-05-01 | C35: MidWest | D35: Sheliadawn | E35: 4905
B36: 2006-11-09 | C36: MidWest | D36: Sheliadawn | E36: 5460
B37: 2005-10-02 | C37: MidWest | D37: Sheliadawn | E37: 5649
B38: 2006-11-13 | C38: MidWest | D38: Steven | E38: 450
B39: 2006-12-22 | C39: MidWest | D39: Steven | E39: 4634
B40: 2006-07-23 | C40: MidWest | D40: Steven | E40: 9807
B41: 2005-09-05 | C41: MidWest | D41: Troung | E41: 2086
B42: 2005-03-30 | C42: MidWest | D42: Troung | E42: 4400
B43: 2006-07-27 | C43: MidWest | D43: Troung | E43: 5720
B44: 2006-12-19 | C44: North | D44: Chin | E44: 688
B45: 2005-10-27 | C45: North | D45: Chin | E45: 693
B46: 2006-12-19 | C46: North | D46: Chin | E46: 4725
B47: 2006-09-04 | C47: North | D47: Chin | E47: 6765
B48: 2007-01-31 | C48: North | D48: Chin | E48: 7376
B49: 2005-05-27 | C49: North | D49: Chin | E49: 7623
B50: 2005-10-31 | C50: North | D50: Chin | E50: 8030
B51: 2005-11-09 | C51: North | D51: Chin | E51: 11425
B52: 2006-08-07 | C52: North | D52: Jeri | E52: 1860
B53: 2007-02-08 | C53: North | D53: Jeri | E53: 5780
B54: 2006-04-21 | C54: North | D54: Jeri | E54: 6912
B55: 2005-05-26 | C55: North | D55: Jeri | E55: 6951
B56: 2005-03-24 | C56: North | D56: Jeri | E56: 7392
B57: 2007-02-18 | C57: North | D57: Jon | E57: 798
B58: 2006-02-17 | C58: North | D58: Jon | E58: 2275
B59: 2005-12-06 | C59: North | D59: Jon | E59: 2950
B60: 2006-04-03 | C60: North | D60: Jon | E60: 3072
B61: 2006-08-29 | C61: North | D61: Jon | E61: 3150
B62: 2005-08-26 | C62: North | D62: Jon | E62: 4380
B63: 2005-07-18 | C63: North | D63: Jon | E63: 5670
B64: 2005-10-28 | C64: North | D64: Jon | E64: 7625
B65: 2005-03-03 | C65: North | D65: Jon | E65: 7644
B66: 2006-02-21 | C66: North | D66: Jon | E66: 7847
B67: 2006-02-15 | C67: North | D67: Jon | E67: 8043
B68: 2006-02-11 | C68: North | D68: Jon | E68: 8340
B69: 2005-08-05 | C69: North | D69: Luke | E69: 3360
B70: 2005-05-16 | C70: North | D70: Luke | E70: 3477
B71: 2005-11-19 | C71: North | D71: Rhonda | E71: 70
B72: 2005-09-27 | C72: North | D72: Rhonda | E72: 1785
B73: 2005-04-19 | C73: North | D73: Rhonda | E73: 3129
B74: 2006-02-28 | C74: North | D74: Rhonda | E74: 3948
B75: 2005-05-13 | C75: North | D75: Rhonda | E75: 7634
B76: 2006-06-25 | C76: North | D76: Sheliadawn | E76: 315
B77: 2005-07-03 | C77: North | D77: Sheliadawn | E77: 2304
B78: 2005-08-26 | C78: North | D78: Sheliadawn | E78: 3140
B79: 2006-11-26 | C79: North | D79: Sheliadawn | E79: 4816
B80: 2006-01-11 | C80: North | D80: Sheliadawn | E80: 6327
B81: 2006-04-04 | C81: North | D81: Sheliadawn | E81: 6720
B82: 2005-12-12 | C82: North | D82: Sheliadawn | E82: 6820
B83: 2005-07-31 | C83: North | D83: Sheliadawn | E83: 8382
B84: 2005-06-16 | C84: North | D84: Steven | E84: 4075
B85: 2006-12-29 | C85: North | D85: Steven | E85: 4246
B86: 2007-02-23 | C86: North | D86: Steven | E86: 9534
B87: 2006-10-15 | C87: North | D87: Troung | E87: 2489
B88: 2006-07-14 | C88: North | D88: Troung | E88: 5904
B89: 2005-11-17 | C89: North | D89: Troung | E89: 6870
B90: 2005-09-22 | C90: NorthEast | D90: Chin | E90: 819
B91: 2005-07-27 | C91: NorthEast | D91: Chin | E91: 968
B92: 2007-02-02 | C92: NorthEast | D92: Chin | E92: 1150
B93: 2006-07-14 | C93: NorthEast | D93: Chin | E93: 1344
B94: 2005-08-20 | C94: NorthEast | D94: Chin | E94: 1800
B95: 2005-03-05 | C95: NorthEast | D95: Chin | E95: 2299
B96: 2005-12-24 | C96: NorthEast | D96: Chin | E96: 2944
B97: 2005-07-19 | C97: NorthEast | D97: Chin | E97: 4767
B98: 2006-07-28 | C98: NorthEast | D98: Chin | E98: 7238
B99: 2006-10-12 | C99: NorthEast | D99: Jeri | E99: 1701
B100: 2005-04-17 | C100: NorthEast | D100: Jeri | E100: 5936
B101: 2006-03-20 | C101: NorthEast | D101: Jeri | E101: 6704
B102: 2006-07-16 | C102: NorthEast | D102: Jeri | E102: 7460
B103: 2006-04-01 | C103: NorthEast | D103: Jon | E103: 384
B104: 2005-06-19 | C104: NorthEast | D104: Jon | E104: 3210
B105: 2005-08-22 | C105: NorthEast | D105: Jon | E105: 5313
B106: 2006-01-19 | C106: NorthEast | D106: Jon | E106: 6144
B107: 2006-09-27 | C107: NorthEast | D107: Jon | E107: 8946
B108: 2006-12-04 | C108: NorthEast | D108: Luke | E108: 1316
B109: 2006-11-02 | C109: NorthEast | D109: Luke | E109: 4731
B110: 2005-07-25 | C110: NorthEast | D110: Luke | E110: 7847
B111: 2005-06-23 | C111: NorthEast | D111: Luke | E111: 8470
B112: 2006-07-13 | C112: NorthEast | D112: Luke | E112: 9400
B113: 2006-12-02 | C113: NorthEast | D113: Rhonda | E113: 42
B114: 2005-10-08 | C114: NorthEast | D114: Rhonda | E114: 210
B115: 2005-11-30 | C115: NorthEast | D115: Rhonda | E115: 1078
B116: 2005-09-21 | C116: NorthEast | D116: Rhonda | E116: 4123
B117: 2006-03-15 | C117: NorthEast | D117: Rhonda | E117: 4473
B118: 2006-05-19 | C118: NorthEast | D118: Rhonda | E118: 4636
B119: 2006-07-27 | C119: NorthEast | D119: Rhonda | E119: 5184
B120: 2005-03-24 | C120: NorthEast | D120: Rhonda | E120: 7315
B121: 2005-09-27 | C121: NorthEast | D121: Sheliadawn | E121: 1240
B122: 2007-02-19 | C122: NorthEast | D122: Sheliadawn | E122: 3056
B123: 2006-07-05 | C123: NorthEast | D123: Sheliadawn | E123: 5744
B124: 2006-05-16 | C124: NorthEast | D124: Sheliadawn | E124: 9350
B125: 2005-06-11 | C125: NorthEast | D125: Steven | E125: 42
B126: 2006-09-10 | C126: NorthEast | D126: Steven | E126: 1628
B127: 2006-04-04 | C127: NorthEast | D127: Steven | E127: 2260
B128: 2005-12-05 | C128: NorthEast | D128: Steven | E128: 2394
B129: 2005-07-21 | C129: NorthEast | D129: Steven | E129: 2400
B130: 2005-03-01 | C130: NorthEast | D130: Steven | E130: 3738
B131: 2006-06-01 | C131: NorthEast | D131: Steven | E131: 4580
B132: 2006-03-02 | C132: NorthEast | D132: Steven | E132: 5126
B133: 2005-10-11 | C133: NorthEast | D133: Steven | E133: 5152
B134: 2005-09-21 | C134: NorthEast | D134: Steven | E134: 6090
B135: 2005-12-08 | C135: NorthEast | D135: Steven | E135: 8352
B136: 2005-04-11 | C136: NorthEast | D136: Steven | E136: 9786
B137: 2005-11-09 | C137: NorthEast | D137: Troung | E137: 1600
B138: 2005-07-12 | C138: NorthEast | D138: Troung | E138: 1968
B139: 2005-12-01 | C139: NorthEast | D139: Troung | E139: 2002
B140: 2006-12-03 | C140: NorthEast | D140: Troung | E140: 3816
B141: 2006-10-18 | C141: NorthEast | D141: Troung | E141: 5712
B142: 2006-05-29 | C142: NorthEast | D142: Troung | E142: 6405
B143: 2006-06-28 | C143: NorthEast | D143: Troung | E143: 6993
B144: 2005-09-06 | C144: SouthEast | D144: Chin | E144: 374
B145: 2006-11-23 | C145: SouthEast | D145: Chin | E145: 2546
B146: 2006-05-21 | C146: SouthEast | D146: Chin | E146: 3382
B147: 2006-11-18 | C147: SouthEast | D147: Chin | E147: 5073
B148: 2006-05-18 | C148: SouthEast | D148: Chin | E148: 5616
B149: 2005-12-19 | C149: SouthEast | D149: Chin | E149: 7584
B150: 2006-04-09 | C150: SouthEast | D150: Jeri | E150: 300
B151: 2005-03-08 | C151: SouthEast | D151: Jeri | E151: 8883
B152: 2006-02-24 | C152: SouthEast | D152: Jeri | E152: 9282
B153: 2006-01-30 | C153: SouthEast | D153: Jon | E153: 1364
B154: 2005-12-02 | C154: SouthEast | D154: Jon | E154: 1957
B155: 2006-09-30 | C155: SouthEast | D155: Jon | E155: 3424
B156: 2005-04-14 | C156: SouthEast | D156: Jon | E156: 3496
B157: 2006-02-21 | C157: SouthEast | D157: Jon | E157: 6864
B158: 2007-01-05 | C158: SouthEast | D158: Jon | E158: 12100
B159: 2006-04-08 | C159: SouthEast | D159: Luke | E159: 2425
B160: 2005-06-26 | C160: SouthEast | D160: Luke | E160: 3914
B161: 2006-04-12 | C161: SouthEast | D161: Rhonda | E161: 4755
B162: 2006-05-16 | C162: SouthEast | D162: Rhonda | E162: 6028
B163: 2006-08-28 | C163: SouthEast | D163: Rhonda | E163: 6194
B164: 2006-03-02 | C164: SouthEast | D164: Rhonda | E164: 6226
B165: 2006-05-07 | C165: SouthEast | D165: Rhonda | E165: 8547
B166: 2005-02-27 | C166: SouthEast | D166: Sheliadawn | E166: 1414
B167: 2005-09-23 | C167: SouthEast | D167: Sheliadawn | E167: 1562
B168: 2005-10-16 | C168: SouthEast | D168: Sheliadawn | E168: 2875
B169: 2007-02-18 | C169: SouthEast | D169: Sheliadawn | E169: 8352
B170: 2005-07-26 | C170: SouthEast | D170: Steven | E170: 608
B171: 2005-11-06 | C171: SouthEast | D171: Steven | E171: 1725
B172: 2006-10-26 | C172: SouthEast | D172: Steven | E172: 3050
B173: 2005-07-18 | C173: SouthEast | D173: Steven | E173: 5040
B174: 2006-12-08 | C174: SouthEast | D174: Steven | E174: 11900
B175: 2005-09-11 | C175: SouthEast | D175: Troung | E175: 456
B176: 2005-07-31 | C176: SouthEast | D176: Troung | E176: 1328
B177: 2005-03-13 | C177: SouthEast | D177: Troung | E177: 2415
B178: 2007-01-16 | C178: SouthEast | D178: Troung | E178: 3059
B179: 2005-05-21 | C179: SouthEast | D179: Troung | E179: 3744
B180: 2005-07-06 | C180: SouthEast | D180: Troung | E180: 3892
B181: 2005-06-29 | C181: SouthEast | D181: Troung | E181: 7140
B182: 2005-09-28 | C182: SouthEast | D182: Troung | E182: 7434
B183: 2006-12-23 | C183: SouthEast | D183: Troung | E183: 8379
B184: 2005-02-28 | C184: SouthEast | D184: Troung | E184: 8883
B185: 2006-08-07 | C185: West | D185: Chin | E185: 375
B186: 2006-09-06 | C186: West | D186: Chin | E186: 8575
B187: 2006-08-04 | C187: West | D187: Chin | E187: 8862
B188: 2006-06-04 | C188: West | D188: Jeri | E188: 4438
B189: 2005-05-14 | C189: West | D189: Jeri | E189: 4731
B190: 2006-08-01 | C190: West | D190: Jeri | E190: 7790
B191: 2006-04-30 | C191: West | D191: Jon | E191: 1635
B192: 2005-12-01 | C192: West | D192: Jon | E192: 2142
B193: 2005-10-19 | C193: West | D193: Jon | E193: 5460
B194: 2007-01-05 | C194: West | D194: Jon | E194: 5880
B195: 2006-04-20 | C195: West | D195: Jon | E195: 6375
B196: 2005-07-27 | C196: West | D196: Luke | E196: 3171
B197: 2007-02-05 | C197: West | D197: Luke | E197: 4914
B198: 2006-07-11 | C198: West | D198: Luke | E198: 5586
B199: 2005-06-16 | C199: West | D199: Luke | E199: 6489
B200: 2006-01-03 | C200: West | D200: Rhonda | E200: 418
B201: 2007-01-04 | C201: West | D201: Rhonda | E201: 1862
... 20 more rows

Sheet TextToColumn
A1: =ROW()&")" -> 1) | B1: Text To Column will take data separated by a Delimiter and separate it into separate columns
A2: =ROW()&")" -> 2) | B2: Be sure that the columns to the Right are not filled with content when you use Text To Column (because it will be deleted)
B4: Date | C4: Region | D4: Sales Rep | E4: Customer | F4: Product | G4: Price | H4: Units | I4: COGS | J4: Sales | K4: Gross Profit
B5: 2006-07-25 | C5: MidWest | D5: Chin | E5: Whole Foods | F5: Aspen | G5: 14 | H5: 309 | I5: 2552.34 | J5: 4326 | K5: 1773.66
B6: 2005-10-20 | C6: MidWest | D6: Chin | E6: Yahoo | F6: SunSpot | G6: 16 | H6: 405 | I6: 4860 | J6: 6480 | K6: 1620
B7: 2006-04-28 | C7: MidWest | D7: Chin | E7: Solar and Wind Inc. | F7: Deuce | G7: 25 | H7: 21 | I7: 462 | J7: 525 | K7: 63
B8: 2005-05-13 | C8: MidWest | D8: Chin | E8: Costco | F8: Quad | G8: 24 | H8: 157 | I8: 1620.24 | J8: 3768 | K8: 2147.76
B9: 2006-04-24 | C9: MidWest | D9: Chin | E9: Whole Foods | F9: Aspen | G9: 14 | H9: 133 | I9: 1396.5 | J9: 1862 | K9: 465.5
B10: 2005-12-23 | C10: MidWest | D10: Chin | E10: Costco | F10: Aspen | G10: 14 | H10: 407 | I10: 3361.82 | J10: 5698 | K10: 2336.18
B11: 2006-12-29 | C11: MidWest | D11: Jeri | E11: Yahoo | F11: Yanaki | G11: 20 | H11: 345 | I11: 4071 | J11: 6900 | K11: 2829
B12: 2007-01-08 | C12: MidWest | D12: Jeri | E12: Home Depot | F12: Deuce | G12: 25 | H12: 67 | I12: 1566.13 | J12: 1675 | K12: 108.88
B13: 2005-08-02 | C13: MidWest | D13: Jeri | E13: McLendon's Hardware | F13: SunSpot | G13: 16 | H13: 215 | I13: 2580 | J13: 3440 | K13: 860
B14: 2005-03-08 | C14: MidWest | D14: Jon | E14: Yahoo | F14: SunSpot | G14: 16 | H14: 121 | I14: 716.32 | J14: 1936 | K14: 1219.68
B15: 2006-11-27 | C15: MidWest | D15: Jon | E15: Costco | F15: Bellen | G15: 21 | H15: 52 | I15: 404.04 | J15: 1092 | K15: 687.96
B16: 2006-11-20 | C16: MidWest | D16: Jon | E16: Amazon.com | F16: Carlota | G16: 22 | H16: 238 | I16: 3560.48 | J16: 5236 | K16: 1675.52
B17: 2006-10-18 | C17: MidWest | D17: Jon | E17: Solar and Wind Inc. | F17: Yanaki | G17: 20 | H17: 201 | I17: 3758.7 | J17: 4020 | K17: 261.3
B18: 2005-11-23 | C18: MidWest | D18: Jon | E18: The Economist | F18: Regal | G18: 15 | H18: 133 | I18: 857.85 | J18: 1995 | K18: 1137.15
B19: 2006-02-05 | C19: MidWest | D19: Luke | E19: Yahoo | F19: Quad | G19: 24 | H19: 103 | I19: 1062.96 | J19: 2472 | K19: 1409.04
B20: 2006-03-19 | C20: MidWest | D20: Luke | E20: Yahoo | F20: Carlota | G20: 22 | H20: 287 | I20: 4735.5 | J20: 6314 | K20: 1578.5
B21: 2006-12-08 | C21: MidWest | D21: Luke | E21: Whole Foods | F21: Regal | G21: 15 | H21: 55 | I21: 305.25 | J21: 825 | K21: 519.75
B22: 2006-01-08 | C22: MidWest | D22: Rhonda | E22: Yahoo | F22: Aspen | G22: 14 | H22: 324 | I22: 2676.24 | J22: 4536 | K22: 1859.76
B23: 2006-06-16 | C23: MidWest | D23: Rhonda | E23: Google | F23: Sunshine | G23: 19 | H23: 189 | I23: 2118.69 | J23: 3591 | K23: 1472.31
B24: 2005-06-01 | C24: MidWest | D24: Rhonda | E24: Solar and Wind Inc. | F24: Yanaki | G24: 20 | H24: 93 | I24: 1739.1 | J24: 1860 | K24: 120.9
B25: 2005-06-09 | C25: MidWest | D25: Rhonda | E25: Google | F25: Sunset | G25: 21 | H25: 379 | I25: 4616.22 | J25: 7959 | K25: 3342.78
B26: 2006-01-25 | C26: MidWest | D26: Sheliadawn | E26: Google | F26: Bellen | G26: 21 | H26: 208 | I26: 1965.6 | J26: 4368 | K26: 2402.4
B27: 2005-10-02 | C27: MidWest | D27: Sheliadawn | E27: Yahoo | F27: Sunset | G27: 21 | H27: 269 | I27: 4971.12 | J27: 5649 | K27: 677.88
B28: 2006-05-01 | C28: MidWest | D28: Sheliadawn | E28: ExcelIsVeryFun.com | F28: Regal | G28: 15 | H28: 327 | I28: 2697.75 | J28: 4905 | K28: 2207.25
B29: 2006-11-09 | C29: MidWest | D29: Sheliadawn | E29: Sherman Williams | F29: Yanaki | G29: 20 | H29: 273 | I29: 3166.8 | J29: 5460 | K29: 2293.2
B30: 2006-11-13 | C30: MidWest | D30: Steven | E30: Office Depot | F30: Deuce | G30: 25 | H30: 18 | I30: 247.5 | J30: 450 | K30: 202.5
B31: 2006-07-23 | C31: MidWest | D31: Steven | E31: Yahoo | F31: Sunset | G31: 21 | H31: 467 | I31: 3628.59 | J31: 9807 | K31: 6178.41
B32: 2006-12-22 | C32: MidWest | D32: Steven | E32: The Economist | F32: Aspen | G32: 14 | H32: 331 | I32: 2734.06 | J32: 4634 | K32: 1899.94
B33: 2006-07-27 | C33: MidWest | D33: Troung | E33: Sherman Williams | F33: Carlota | G33: 22 | H33: 260 | I33: 4290 | J33: 5720 | K33: 1430
B34: 2005-09-05 | C34: MidWest | D34: Troung | E34: ExcelIsVeryFun.com | F34: Aspen | G34: 14 | H34: 149 | I34: 1209.88 | J34: 2086 | K34: 876.12
B35: 2005-03-30 | C35: MidWest | D35: Troung | E35: Yahoo | F35: Carlota | G35: 22 | H35: 200 | I35: 3872 | J35: 4400 | K35: 528
B36: 2006-12-19 | C36: North | D36: Chin | E36: Office Depot | F36: Sunset | G36: 21 | H36: 225 | I36: 2598.75 | J36: 4725 | K36: 2126.25
B37: 2005-11-09 | C37: North | D37: Chin | E37: Solar and Wind Inc. | F37: Deuce | G37: 25 | H37: 457 | I37: 10682.38 | J37: 11425 | K37: 742.63
B38: 2005-10-31 | C38: North | D38: Chin | E38: Solar and Wind Inc. | F38: Carlota | G38: 22 | H38: 365 | I38: 4737.7 | J38: 8030 | K38: 3292.3
B39: 2006-09-04 | C39: North | D39: Chin | E39: Sherman Williams | F39: Regal | G39: 15 | H39: 451 | I39: 5073.75 | J39: 6765 | K39: 1691.25
B40: 2007-01-31 | C40: North | D40: Chin | E40: Sherman Williams | F40: SunSpot | G40: 16 | H40: 461 | I40: 3319.2 | J40: 7376 | K40: 4056.8
B41: 2005-10-27 | C41: North | D41: Chin | E41: Home Depot | F41: Bellen | G41: 21 | H41: 33 | I41: 311.85 | J41: 693 | K41: 381.15
B42: 2005-05-27 | C42: North | D42: Chin | E42: Solar and Wind Inc. | F42: Bellen | G42: 21 | H42: 363 | I42: 4192.65 | J42: 7623 | K42: 3430.35
B43: 2006-12-19 | C43: North | D43: Chin | E43: Whole Foods | F43: SunSpot | G43: 16 | H43: 43 | I43: 295.84 | J43: 688 | K43: 392.16
B44: 2006-04-21 | C44: North | D44: Jeri | E44: ExcelIsVeryFun.com | F44: SunSpot | G44: 16 | H44: 432 | I44: 3110.4 | J44: 6912 | K44: 3801.6
B45: 2007-02-08 | C45: North | D45: Jeri | E45: The Economist | F45: Yanaki | G45: 20 | H45: 289 | I45: 5404.3 | J45: 5780 | K45: 375.7
B46: 2005-03-24 | C46: North | D46: Jeri | E46: Costco | F46: Quad | G46: 24 | H46: 308 | I46: 6504.96 | J46: 7392 | K46: 887.04
B47: 2006-08-07 | C47: North | D47: Jeri | E47: Whole Foods | F47: Yanaki | G47: 20 | H47: 93 | I47: 1264.8 | J47: 1860 | K47: 595.2
B48: 2005-05-26 | C48: North | D48: Jeri | E48: Amazon.com | F48: Bellen | G48: 21 | H48: 331 | I48: 5213.25 | J48: 6951 | K48: 1737.75
B49: 2005-08-26 | C49: North | D49: Jon | E49: ExcelIsVeryFun.com | F49: Yanaki | G49: 20 | H49: 219 | I49: 3285 | J49: 4380 | K49: 1095
B50: 2005-12-06 | C50: North | D50: Jon | E50: The Economist | F50: Deuce | G50: 25 | H50: 118 | I50: 2212.5 | J50: 2950 | K50: 737.5
B51: 2006-02-17 | C51: North | D51: Jon | E51: Office Depot | F51: Deuce | G51: 25 | H51: 91 | I51: 1342.25 | J51: 2275 | K51: 932.75
B52: 2007-02-18 | C52: North | D52: Jon | E52: ExcelIsVeryFun.com | F52: Sunshine | G52: 19 | H52: 42 | I52: 343.14 | J52: 798 | K52: 454.86
B53: 2006-08-29 | C53: North | D53: Jon | E53: Home Depot | F53: Sunset | G53: 21 | H53: 150 | I53: 1354.5 | J53: 3150 | K53: 1795.5
B54: 2005-10-28 | C54: North | D54: Jon | E54: The Economist | F54: Deuce | G54: 25 | H54: 305 | I54: 5185 | J54: 7625 | K54: 2440
B55: 2005-07-18 | C55: North | D55: Jon | E55: Amazon.com | F55: Sunset | G55: 21 | H55: 270 | I55: 3118.5 | J55: 5670 | K55: 2551.5
B56: 2006-02-11 | C56: North | D56: Jon | E56: Yahoo | F56: Yanaki | G56: 20 | H56: 417 | I56: 3586.2 | J56: 8340 | K56: 4753.8
B57: 2006-02-15 | C57: North | D57: Jon | E57: Nature Company | F57: Sunset | G57: 21 | H57: 383 | I57: 3619.35 | J57: 8043 | K57: 4423.65
B58: 2005-03-03 | C58: North | D58: Jon | E58: Home Depot | F58: Sunset | G58: 21 | H58: 364 | I58: 6726.72 | J58: 7644 | K58: 917.28
B59: 2006-02-21 | C59: North | D59: Jon | E59: Google | F59: Sunshine | G59: 19 | H59: 413 | I59: 4315.85 | J59: 7847 | K59: 3531.15
B60: 2006-04-03 | C60: North | D60: Jon | E60: The Economist | F60: SunSpot | G60: 16 | H60: 192 | I60: 2088.96 | J60: 3072 | K60: 983.04
B61: 2005-08-05 | C61: North | D61: Luke | E61: Peet's Coffee | F61: Yanaki | G61: 20 | H61: 168 | I61: 2956.8 | J61: 3360 | K61: 403.2
B62: 2005-05-16 | C62: North | D62: Luke | E62: Nature Company | F62: Sunshine | G62: 19 | H62: 183 | I62: 2051.43 | J62: 3477 | K62: 1425.57
B63: 2005-04-19 | C63: North | D63: Rhonda | E63: Solar and Wind Inc. | F63: Bellen | G63: 21 | H63: 149 | I63: 1846.11 | J63: 3129 | K63: 1282.89
B64: 2005-05-13 | C64: North | D64: Rhonda | E64: Sherman Williams | F64: Carlota | G64: 22 | H64: 347 | I64: 2824.58 | J64: 7634 | K64: 4809.42
B65: 2005-09-27 | C65: North | D65: Rhonda | E65: McLendon's Hardware | F65: Sunset | G65: 21 | H65: 85 | I65: 1053.15 | J65: 1785 | K65: 731.85
B66: 2005-11-19 | C66: North | D66: Rhonda | E66: Sherman Williams | F66: Aspen | G66: 14 | H66: 5 | I66: 40.6 | J66: 70 | K66: 29.4
B67: 2006-02-28 | C67: North | D67: Rhonda | E67: Nature Company | F67: Aspen | G67: 14 | H67: 282 | I67: 3474.24 | J67: 3948 | K67: 473.76
B68: 2005-07-31 | C68: North | D68: Sheliadawn | E68: Office Depot | F68: Carlota | G68: 22 | H68: 381 | I68: 7376.16 | J68: 8382 | K68: 1005.84
B69: 2005-12-12 | C69: North | D69: Sheliadawn | E69: Office Depot | F69: Yanaki | G69: 20 | H69: 341 | I69: 3955.6 | J69: 6820 | K69: 2864.4
B70: 2005-08-26 | C70: North | D70: Sheliadawn | E70: Yahoo | F70: Yanaki | G70: 20 | H70: 157 | I70: 1852.6 | J70: 3140 | K70: 1287.4
B71: 2005-07-03 | C71: North | D71: Sheliadawn | E71: Google | F71: Quad | G71: 24 | H71: 96 | I71: 852.48 | J71: 2304 | K71: 1451.52
B72: 2006-11-26 | C72: North | D72: Sheliadawn | E72: Whole Foods | F72: SunSpot | G72: 16 | H72: 301 | I72: 1781.92 | J72: 4816 | K72: 3034.08
B73: 2006-06-25 | C73: North | D73: Sheliadawn | E73: Nature Company | F73: Bellen | G73: 21 | H73: 15 | I73: 173.25 | J73: 315 | K73: 141.75
B74: 2006-04-04 | C74: North | D74: Sheliadawn | E74: Google | F74: Bellen | G74: 21 | H74: 320 | I74: 3696 | J74: 6720 | K74: 3024
B75: 2006-01-11 | C75: North | D75: Sheliadawn | E75: McLendon's Hardware | F75: Sunshine | G75: 19 | H75: 333 | I75: 5915.75 | J75: 6327 | K75: 411.26
B76: 2006-12-29 | C76: North | D76: Steven | E76: Peet's Coffee | F76: Carlota | G76: 22 | H76: 193 | I76: 2505.14 | J76: 4246 | K76: 1740.86
B77: 2007-02-23 | C77: North | D77: Steven | E77: Yahoo | F77: Bellen | G77: 21 | H77: 454 | I77: 4099.62 | J77: 9534 | K77: 5434.38
B78: 2005-06-16 | C78: North | D78: Steven | E78: ExcelIsVeryFun.com | F78: Deuce | G78: 25 | H78: 163 | I78: 1507.75 | J78: 4075 | K78: 2567.25
B79: 2005-11-17 | C79: North | D79: Troung | E79: Peet's Coffee | F79: Regal | G79: 15 | H79: 458 | I79: 2541.9 | J79: 6870 | K79: 4328.1
B80: 2006-07-14 | C80: North | D80: Troung | E80: Yahoo | F80: SunSpot | G80: 16 | H80: 369 | I80: 4428 | J80: 5904 | K80: 1476
B81: 2006-10-15 | C81: North | D81: Troung | E81: McLendon's Hardware | F81: Sunshine | G81: 19 | H81: 131 | I81: 2190.32 | J81: 2489 | K81: 298.68
B82: 2005-09-22 | C82: NorthEast | D82: Chin | E82: Costco | F82: Bellen | G82: 21 | H82: 39 | I82: 368.55 | J82: 819 | K82: 450.45
B83: 2005-03-05 | C83: NorthEast | D83: Chin | E83: McLendon's Hardware | F83: Sunshine | G83: 19 | H83: 121 | I83: 1333.42 | J83: 2299 | K83: 965.58
B84: 2005-07-27 | C84: NorthEast | D84: Chin | E84: Google | F84: Carlota | G84: 22 | H84: 44 | I84: 658.24 | J84: 968 | K84: 309.76
B85: 2007-02-02 | C85: NorthEast | D85: Chin | E85: Sherman Williams | F85: Deuce | G85: 25 | H85: 46 | I85: 494.5 | J85: 1150 | K85: 655.5
B86: 2005-12-24 | C86: NorthEast | D86: Chin | E86: Office Depot | F86: SunSpot | G86: 16 | H86: 184 | I86: 1619.2 | J86: 2944 | K86: 1324.8
B87: 2005-07-19 | C87: NorthEast | D87: Chin | E87: ExcelIsVeryFun.com | F87: Sunset | G87: 21 | H87: 227 | I87: 3241.56 | J87: 4767 | K87: 1525.44
B88: 2006-07-28 | C88: NorthEast | D88: Chin | E88: Amazon.com | F88: Carlota | G88: 22 | H88: 329 | I88: 3112.34 | J88: 7238 | K88: 4125.66
B89: 2006-07-14 | C89: NorthEast | D89: Chin | E89: Costco | F89: SunSpot | G89: 16 | H89: 84 | I89: 1008 | J89: 1344 | K89: 336
B90: 2005-08-20 | C90: NorthEast | D90: Chin | E90: Nature Company | F90: Yanaki | G90: 20 | H90: 90 | I90: 1350 | J90: 1800 | K90: 450
B91: 2006-10-12 | C91: NorthEast | D91: Jeri | E91: Amazon.com | F91: Bellen | G91: 21 | H91: 81 | I91: 1003.59 | J91: 1701 | K91: 697.41
B92: 2005-04-17 | C92: NorthEast | D92: Jeri | E92: McLendon's Hardware | F92: SunSpot | G92: 16 | H92: 371 | I92: 3264.8 | J92: 5936 | K92: 2671.2
B93: 2006-03-20 | C93: NorthEast | D93: Jeri | E93: Nature Company | F93: SunSpot | G93: 16 | H93: 419 | I93: 3955.36 | J93: 6704 | K93: 2748.64
B94: 2006-07-16 | C94: NorthEast | D94: Jeri | E94: ExcelIsVeryFun.com | F94: Yanaki | G94: 20 | H94: 373 | I94: 5595 | J94: 7460 | K94: 1865
B95: 2006-04-01 | C95: NorthEast | D95: Jon | E95: McLendon's Hardware | F95: Quad | G95: 24 | H95: 16 | I95: 142.08 | J95: 384 | K95: 241.92
B96: 2005-08-22 | C96: NorthEast | D96: Jon | E96: Peet's Coffee | F96: Bellen | G96: 21 | H96: 253 | I96: 2284.59 | J96: 5313 | K96: 3028.41
B97: 2005-06-19 | C97: NorthEast | D97: Jon | E97: Sherman Williams | F97: Regal | G97: 15 | H97: 214 | I97: 3001.35 | J97: 3210 | K97: 208.65
B98: 2006-01-19 | C98: NorthEast | D98: Jon | E98: Whole Foods | F98: Quad | G98: 24 | H98: 256 | I98: 3379.2 | J98: 6144 | K98: 2764.8
B99: 2006-09-27 | C99: NorthEast | D99: Jon | E99: Yahoo | F99: Sunset | G99: 21 | H99: 426 | I99: 3310.02 | J99: 8946 | K99: 5635.98
B100: 2006-12-04 | C100: NorthEast | D100: Luke | E100: Home Depot | F100: Aspen | G100: 14 | H100: 94 | I100: 565.88 | J100: 1316 | K100: 750.12
B101: 2005-06-23 | C101: NorthEast | D101: Luke | E101: McLendon's Hardware | F101: Carlota | G101: 22 | H101: 385 | I101: 3642.1 | J101: 8470 | K101: 4827.9
B102: 2006-11-02 | C102: NorthEast | D102: Luke | E102: Nature Company | F102: Sunshine | G102: 19 | H102: 249 | I102: 2034.33 | J102: 4731 | K102: 2696.67
B103: 2006-07-13 | C103: NorthEast | D103: Luke | E103: Office Depot | F103: Deuce | G103: 25 | H103: 376 | I103: 6392 | J103: 9400 | K103: 3008
B104: 2005-07-25 | C104: NorthEast | D104: Luke | E104: Yahoo | F104: Sunshine | G104: 19 | H104: 413 | I104: 2903.39 | J104: 7847 | K104: 4943.61
B105: 2006-07-27 | C105: NorthEast | D105: Rhonda | E105: Google | F105: SunSpot | G105: 16 | H105: 324 | I105: 3888 | J105: 5184 | K105: 1296
B106: 2006-05-19 | C106: NorthEast | D106: Rhonda | E106: Sherman Williams | F106: Sunshine | G106: 19 | H106: 244 | I106: 2735.24 | J106: 4636 | K106: 1900.76
B107: 2005-11-30 | C107: NorthEast | D107: Rhonda | E107: The Economist | F107: Carlota | G107: 22 | H107: 49 | I107: 1007.93 | J107: 1078 | K107: 70.07
B108: 2005-09-21 | C108: NorthEast | D108: Rhonda | E108: ExcelIsVeryFun.com | F108: Sunshine | G108: 19 | H108: 217 | I108: 2391.34 | J108: 4123 | K108: 1731.66
B109: 2006-12-02 | C109: NorthEast | D109: Rhonda | E109: Home Depot | F109: Sunset | G109: 21 | H109: 2 | I109: 18.06 | J109: 42 | K109: 23.94
B110: 2006-03-15 | C110: NorthEast | D110: Rhonda | E110: Google | F110: Bellen | G110: 21 | H110: 213 | I110: 2012.85 | J110: 4473 | K110: 2460.15
B111: 2005-03-24 | C111: NorthEast | D111: Rhonda | E111: Whole Foods | F111: Sunshine | G111: 19 | H111: 385 | I111: 4023.25 | J111: 7315 | K111: 3291.75
B112: 2005-10-08 | C112: NorthEast | D112: Rhonda | E112: Solar and Wind Inc. | F112: Aspen | G112: 14 | H112: 15 | I112: 121.8 | J112: 210 | K112: 88.2
B113: 2005-09-27 | C113: NorthEast | D113: Sheliadawn | E113: ExcelIsVeryFun.com | F113: Yanaki | G113: 20 | H113: 62 | I113: 682 | J113: 1240 | K113: 558
B114: 2006-05-16 | C114: NorthEast | D114: Sheliadawn | E114: Peet's Coffee | F114: Carlota | G114: 22 | H114: 425 | I114: 8742.25 | J114: 9350 | K114: 607.75
B115: 2007-02-19 | C115: NorthEast | D115: Sheliadawn | E115: The Economist | F115: SunSpot | G115: 16 | H115: 191 | I115: 2689.28 | J115: 3056 | K115: 366.72
B116: 2006-07-05 | C116: NorthEast | D116: Sheliadawn | E116: McLendon's Hardware | F116: SunSpot | G116: 16 | H116: 359 | I116: 5054.72 | J116: 5744 | K116: 689.28
B117: 2005-03-01 | C117: NorthEast | D117: Steven | E117: Whole Foods | F117: Sunset | G117: 21 | H117: 178 | I117: 3495.03 | J117: 3738 | K117: 242.97
B118: 2005-06-11 | C118: NorthEast | D118: Steven | E118: McLendon's Hardware | F118: Sunset | G118: 21 | H118: 2 | I118: 23.1 | J118: 42 | K118: 18.9
B119: 2005-10-11 | C119: NorthEast | D119: Steven | E119: Home Depot | F119: SunSpot | G119: 16 | H119: 322 | I119: 3864 | J119: 5152 | K119: 1288
B120: 2005-09-21 | C120: NorthEast | D120: Steven | E120: Home Depot | F120: Sunset | G120: 21 | H120: 290 | I120: 5359.2 | J120: 6090 | K120: 730.8
B121: 2005-12-05 | C121: NorthEast | D121: Steven | E121: Solar and Wind Inc. | F121: Sunset | G121: 21 | H121: 114 | I121: 1412.46 | J121: 2394 | K121: 981.54
B122: 2006-06-01 | C122: NorthEast | D122: Steven | E122: McLendon's Hardware | F122: Yanaki | G122: 20 | H122: 229 | I122: 1969.4 | J122: 4580 | K122: 2610.6
B123: 2006-04-04 | C123: NorthEast | D123: Steven | E123: Solar and Wind Inc. | F123: Yanaki | G123: 20 | H123: 113 | I123: 1695 | J123: 2260 | K123: 565
B124: 2005-04-11 | C124: NorthEast | D124: Steven | E124: Sherman Williams | F124: Bellen | G124: 21 | H124: 466 | I124: 5675.88 | J124: 9786 | K124: 4110.12
B125: 2006-03-02 | C125: NorthEast | D125: Steven | E125: Peet's Coffee | F125: Carlota | G125: 22 | H125: 233 | I125: 3844.5 | J125: 5126 | K125: 1281.5
B126: 2006-09-10 | C126: NorthEast | D126: Steven | E126: Home Depot | F126: Carlota | G126: 22 | H126: 74 | I126: 1522.18 | J126: 1628 | K126: 105.82
B127: 2005-07-21 | C127: NorthEast | D127: Steven | E127: ExcelIsVeryFun.com | F127: Regal | G127: 15 | H127: 160 | I127: 1416 | J127: 2400 | K127: 984
B128: 2005-12-08 | C128: NorthEast | D128: Steven | E128: ExcelIsVeryFun.com | F128: Quad | G128: 24 | H128: 348 | I128: 5679.36 | J128: 8352 | K128: 2672.64
B129: 2005-12-01 | C129: NorthEast | D129: Troung | E129: Peet's Coffee | F129: Aspen | G129: 14 | H129: 143 | I129: 1101.1 | J129: 2002 | K129: 900.9
B130: 2006-06-28 | C130: NorthEast | D130: Troung | E130: Google | F130: Sunset | G130: 21 | H130: 333 | I130: 3146.85 | J130: 6993 | K130: 3846.15
B131: 2006-12-03 | C131: NorthEast | D131: Troung | E131: ExcelIsVeryFun.com | F131: Quad | G131: 24 | H131: 159 | I131: 2098.8 | J131: 3816 | K131: 1717.2
B132: 2006-10-18 | C132: NorthEast | D132: Troung | E132: Yahoo | F132: Sunset | G132: 21 | H132: 272 | I132: 5026.56 | J132: 5712 | K132: 685.44
B133: 2005-11-09 | C133: NorthEast | D133: Troung | E133: ExcelIsVeryFun.com | F133: Yanaki | G133: 20 | H133: 80 | I133: 720 | J133: 1600 | K133: 880
B134: 2006-05-29 | C134: NorthEast | D134: Troung | E134: Google | F134: Sunset | G134: 21 | H134: 305 | I134: 3778.95 | J134: 6405 | K134: 2626.05
B135: 2005-07-12 | C135: NorthEast | D135: Troung | E135: McLendon's Hardware | F135: Quad | G135: 24 | H135: 82 | I135: 885.6 | J135: 1968 | K135: 1082.4
B136: 2006-11-18 | C136: SouthEast | D136: Chin | E136: McLendon's Hardware | F136: Sunshine | G136: 19 | H136: 267 | I136: 1877.01 | J136: 5073 | K136: 3195.99
B137: 2006-05-18 | C137: SouthEast | D137: Chin | E137: The Economist | F137: Quad | G137: 24 | H137: 234 | I137: 3313.44 | J137: 5616 | K137: 2302.56
B138: 2006-11-23 | C138: SouthEast | D138: Chin | E138: Amazon.com | F138: Sunshine | G138: 19 | H138: 134 | I138: 1502.14 | J138: 2546 | K138: 1043.86
B139: 2005-12-19 | C139: SouthEast | D139: Chin | E139: Costco | F139: Quad | G139: 24 | H139: 316 | I139: 4171.2 | J139: 7584 | K139: 3412.8
B140: 2006-05-21 | C140: SouthEast | D140: Chin | E140: Costco | F140: Sunshine | G140: 19 | H140: 178 | I140: 1521.9 | J140: 3382 | K140: 1860.1
B141: 2005-09-06 | C141: SouthEast | D141: Chin | E141: Nature Company | F141: Carlota | G141: 22 | H141: 17 | I141: 254.32 | J141: 374 | K141: 119.68
B142: 2006-04-09 | C142: SouthEast | D142: Jeri | E142: Solar and Wind Inc. | F142: Deuce | G142: 25 | H142: 12 | I142: 204 | J142: 300 | K142: 96
B143: 2006-02-24 | C143: SouthEast | D143: Jeri | E143: McLendon's Hardware | F143: Bellen | G143: 21 | H143: 442 | I143: 4176.9 | J143: 9282 | K143: 5105.1
B144: 2005-03-08 | C144: SouthEast | D144: Jeri | E144: Home Depot | F144: Bellen | G144: 21 | H144: 423 | I144: 6040.44 | J144: 8883 | K144: 2842.56
B145: 2006-02-21 | C145: SouthEast | D145: Jon | E145: Peet's Coffee | F145: SunSpot | G145: 16 | H145: 429 | I145: 3775.2 | J145: 6864 | K145: 3088.8
B146: 2006-01-30 | C146: SouthEast | D146: Jon | E146: Nature Company | F146: Carlota | G146: 22 | H146: 62 | I146: 1200.32 | J146: 1364 | K146: 163.68
B147: 2005-12-02 | C147: SouthEast | D147: Jon | E147: Nature Company | F147: Sunshine | G147: 19 | H147: 103 | I147: 880.65 | J147: 1957 | K147: 1076.35
B148: 2005-04-14 | C148: SouthEast | D148: Jon | E148: Solar and Wind Inc. | F148: Sunshine | G148: 19 | H148: 184 | I148: 1293.52 | J148: 3496 | K148: 2202.48
B149: 2006-09-30 | C149: SouthEast | D149: Jon | E149: Whole Foods | F149: SunSpot | G149: 16 | H149: 214 | I149: 1540.8 | J149: 3424 | K149: 1883.2
B150: 2007-01-05 | C150: SouthEast | D150: Jon | E150: The Economist | F150: Deuce | G150: 25 | H150: 484 | I150: 10648 | J150: 12100 | K150: 1452
B151: 2005-06-26 | C151: SouthEast | D151: Luke | E151: Google | F151: Sunshine | G151: 19 | H151: 206 | I151: 3444.32 | J151: 3914 | K151: 469.68
B152: 2006-04-08 | C152: SouthEast | D152: Luke | E152: Amazon.com | F152: Deuce | G152: 25 | H152: 97 | I152: 2134 | J152: 2425 | K152: 291
B153: 2006-04-12 | C153: SouthEast | D153: Rhonda | E153: ExcelIsVeryFun.com | F153: Regal | G153: 15 | H153: 317 | I153: 2757.9 | J153: 4755 | K153: 1997.1
B154: 2006-03-02 | C154: SouthEast | D154: Rhonda | E154: Whole Foods | F154: Carlota | G154: 22 | H154: 283 | I154: 2801.7 | J154: 6226 | K154: 3424.3
B155: 2006-08-28 | C155: SouthEast | D155: Rhonda | E155: Whole Foods | F155: Sunshine | G155: 19 | H155: 326 | I155: 3406.7 | J155: 6194 | K155: 2787.3
B156: 2006-05-16 | C156: SouthEast | D156: Rhonda | E156: ExcelIsVeryFun.com | F156: Carlota | G156: 22 | H156: 274 | I156: 2230.36 | J156: 6028 | K156: 3797.64
B157: 2006-05-07 | C157: SouthEast | D157: Rhonda | E157: Sherman Williams | F157: Sunset | G157: 21 | H157: 407 | I157: 3675.21 | J157: 8547 | K157: 4871.79
B158: 2007-02-18 | C158: SouthEast | D158: Sheliadawn | E158: Whole Foods | F158: Quad | G158: 24 | H158: 348 | I158: 4593.6 | J158: 8352 | K158: 3758.4
B159: 2005-02-27 | C159: SouthEast | D159: Sheliadawn | E159: ExcelIsVeryFun.com | F159: Aspen | G159: 14 | H159: 101 | I159: 523.18 | J159: 1414 | K159: 890.82
B160: 2005-09-23 | C160: SouthEast | D160: Sheliadawn | E160: Nature Company | F160: Carlota | G160: 22 | H160: 71 | I160: 921.58 | J160: 1562 | K160: 640.42
B161: 2005-10-16 | C161: SouthEast | D161: Sheliadawn | E161: Yahoo | F161: Deuce | G161: 25 | H161: 115 | I161: 2156.25 | J161: 2875 | K161: 718.75
B162: 2005-07-26 | C162: SouthEast | D162: Steven | E162: The Economist | F162: Sunshine | G162: 19 | H162: 32 | I162: 273.6 | J162: 608 | K162: 334.4
B163: 2006-12-08 | C163: SouthEast | D163: Steven | E163: Office Depot | F163: Deuce | G163: 25 | H163: 476 | I163: 10472 | J163: 11900 | K163: 1428
B164: 2005-11-06 | C164: SouthEast | D164: Steven | E164: Google | F164: Regal | G164: 15 | H164: 115 | I164: 1173 | J164: 1725 | K164: 552
B165: 2006-10-26 | C165: SouthEast | D165: Steven | E165: Home Depot | F165: Deuce | G165: 25 | H165: 122 | I165: 2851.75 | J165: 3050 | K165: 198.25
B166: 2005-07-18 | C166: SouthEast | D166: Steven | E166: Solar and Wind Inc. | F166: Regal | G166: 15 | H166: 336 | I166: 4712.4 | J166: 5040 | K166: 327.6
B167: 2007-01-16 | C167: SouthEast | D167: Troung | E167: Yahoo | F167: Sunshine | G167: 19 | H167: 161 | I167: 1682.45 | J167: 3059 | K167: 1376.55
B168: 2005-09-28 | C168: SouthEast | D168: Troung | E168: Nature Company | F168: Sunset | G168: 21 | H168: 354 | I168: 3196.62 | J168: 7434 | K168: 4237.38
B169: 2005-07-06 | C169: SouthEast | D169: Troung | E169: Solar and Wind Inc. | F169: Aspen | G169: 14 | H169: 278 | I169: 2296.28 | J169: 3892 | K169: 1595.72
B170: 2005-06-29 | C170: SouthEast | D170: Troung | E170: Costco | F170: Bellen | G170: 21 | H170: 340 | I170: 3070.2 | J170: 7140 | K170: 4069.8
B171: 2005-09-11 | C171: SouthEast | D171: Troung | E171: Yahoo | F171: Quad | G171: 24 | H171: 19 | I171: 196.08 | J171: 456 | K171: 259.92
B172: 2005-02-28 | C172: SouthEast | D172: Troung | E172: Home Depot | F172: Bellen | G172: 21 | H172: 423 | I172: 5152.14 | J172: 8883 | K172: 3730.86
B173: 2005-07-31 | C173: SouthEast | D173: Troung | E173: Amazon.com | F173: SunSpot | G173: 16 | H173: 83 | I173: 770.24 | J173: 1328 | K173: 557.76
B174: 2005-03-13 | C174: SouthEast | D174: Troung | E174: Yahoo | F174: Regal | G174: 15 | H174: 161 | I174: 1038.45 | J174: 2415 | K174: 1376.55
B175: 2006-12-23 | C175: SouthEast | D175: Troung | E175: Amazon.com | F175: Bellen | G175: 21 | H175: 399 | I175: 4943.61 | J175: 8379 | K175: 3435.39
B176: 2005-05-21 | C176: SouthEast | D176: Troung | E176: Nature Company | F176: Quad | G176: 24 | H176: 156 | I176: 2808 | J176: 3744 | K176: 936
B177: 2006-09-06 | C177: West | D177: Chin | E177: Solar and Wind Inc. | F177: Deuce | G177: 25 | H177: 343 | I177: 6431.25 | J177: 8575 | K177: 2143.75
B178: 2006-08-07 | C178: West | D178: Chin | E178: Peet's Coffee | F178: Deuce | G178: 25 | H178: 15 | I178: 221.25 | J178: 375 | K178: 153.75
B179: 2006-08-04 | C179: West | D179: Chin | E179: Costco | F179: Bellen | G179: 21 | H179: 422 | I179: 4874.1 | J179: 8862 | K179: 3987.9
B180: 2006-08-01 | C180: West | D180: Jeri | E180: ExcelIsVeryFun.com | F180: Sunshine | G180: 19 | H180: 410 | I180: 6855.2 | J180: 7790 | K180: 934.8
B181: 2006-06-04 | C181: West | D181: Jeri | E181: Solar and Wind Inc. | F181: Aspen | G181: 14 | H181: 317 | I181: 2618.42 | J181: 4438 | K181: 1819.58
B182: 2005-05-14 | C182: West | D182: Jeri | E182: McLendon's Hardware | F182: Sunshine | G182: 19 | H182: 249 | I182: 4423.49 | J182: 4731 | K182: 307.51
B183: 2006-04-20 | C183: West | D183: Jon | E183: Solar and Wind Inc. | F183: Deuce | G183: 25 | H183: 255 | I183: 3761.25 | J183: 6375 | K183: 2613.75
B184: 2006-04-30 | C184: West | D184: Jon | E184: Google | F184: Regal | G184: 15 | H184: 109 | I184: 735.75 | J184: 1635 | K184: 899.25
B185: 2005-10-19 | C185: West | D185: Jon | E185: Sherman Williams | F185: Yanaki | G185: 20 | H185: 273 | I185: 3166.8 | J185: 5460 | K185: 2293.2
B186: 2005-12-01 | C186: West | D186: Jon | E186: Solar and Wind Inc. | F186: Bellen | G186: 21 | H186: 102 | I186: 2002.77 | J186: 2142 | K186: 139.23
B187: 2007-01-05 | C187: West | D187: Jon | E187: Solar and Wind Inc. | F187: Sunset | G187: 21 | H187: 280 | I187: 3234 | J187: 5880 | K187: 2646
B188: 2007-02-05 | C188: West | D188: Luke | E188: Yahoo | F188: Bellen | G188: 21 | H188: 234 | I188: 2702.7 | J188: 4914 | K188: 2211.3
B189: 2005-06-16 | C189: West | D189: Luke | E189: Home Depot | F189: Bellen | G189: 21 | H189: 309 | I189: 2790.27 | J189: 6489 | K189: 3698.73
B190: 2005-07-27 | C190: West | D190: Luke | E190: Whole Foods | F190: Sunset | G190: 21 | H190: 151 | I190: 1744.05 | J190: 3171 | K190: 1426.95
B191: 2006-07-11 | C191: West | D191: Luke | E191: ExcelIsVeryFun.com | F191: Aspen | G191: 14 | H191: 399 | I191: 3239.88 | J191: 5586 | K191: 2346.12
B192: 2005-07-29 | C192: West | D192: Rhonda | E192: Home Depot | F192: SunSpot | G192: 16 | H192: 440 | I192: 6195.2 | J192: 7040 | K192: 844.8
B193: 2005-10-01 | C193: West | D193: Rhonda | E193: Office Depot | F193: Regal | G193: 15 | H193: 250 | I193: 2062.5 | J193: 3750 | K193: 1687.5
B194: 2005-08-28 | C194: West | D194: Rhonda | E194: The Economist | F194: Sunset | G194: 21 | H194: 485 | I194: 4583.25 | J194: 10185 | K194: 5601.75
B195: 2006-01-03 | C195: West | D195: Rhonda | E195: Solar and Wind Inc. | F195: Sunshine | G195: 19 | H195: 22 | I195: 246.62 | J195: 418 | K195: 171.38
B196: 2006-01-05 | C196: West | D196: Rhonda | E196: ExcelIsVeryFun.com | F196: Deuce | G196: 25 | H196: 345 | I196: 5088.75 | J196: 8625 | K196: 3536.25
B197: 2006-11-14 | C197: West | D197: Rhonda | E197: Google | F197: Yanaki | G197: 20 | H197: 416 | I197: 5657.6 | J197: 8320 | K197: 2662.4
B198: 2007-01-04 | C198: West | D198: Rhonda | E198: Costco | F198: Sunshine | G198: 19 | H198: 98 | I198: 1396.5 | J198: 1862 | K198: 465.5
B199: 2007-01-19 | C199: West | D199: Sheliadawn | E199: Google | F199: Quad | G199: 24 | H199: 259 | I199: 2797.2 | J199: 6216 | K199: 3418.8
B200: 2006-05-15 | C200: West | D200: Sheliadawn | E200: McLendon's Hardware | F200: Quad | G200: 24 | H200: 157 | I200: 1695.6 | J200: 3768 | K200: 2072.4
B201: 2006-11-03 | C201: West | D201: Sheliadawn | E201: Nature Company | F201: Carlota | G201: 22 | H201: 406 | I201: 4912.6 | J201: 8932 | K201: 4019.4
... 12 more rows

Sheet Sheet8
A3: Sum of Sales | D3: Region
A4: Customer | B4: Years | C4: Date | D4: East | E4: North | F4: South | G4: West | H4: Grand Total
A5: Amazon.com | D5: 202069.48 | E5: 284838.95 | F5: 270699.22 | G5: 274879.78 | H5: 1032487.43
B6: 2004
C7: May | F7: 2711.44 | G7: 16132.74 | H7: 18844.18
C8: Jun | D8: 11841.29 | E8: 51602.79 | F8: 11693.28 | G8: 17634.24 | H8: 92771.6
C9: Jul | D9: 4234.33 | E9: 27991.92 | F9: 22547 | G9: 22966.62 | H9: 77739.87
C10: Aug | D10: 9632.7 | E10: 2656.75 | F10: 15168.66 | G10: 9151.25 | H10: 36609.36
C11: Sep | E11: 19752.24 | G11: 20049.41 | H11: 39801.65
C12: Oct | D12: 5005.48 | E12: 13024.55 | F12: 19093.52 | G12: 14114.36 | H12: 51237.91
C13: Nov | D13: 33077.36 | E13: 7536.84 | G13: 13356.37 | H13: 53970.57
C14: Dec | E14: 15105.55 | F14: 25991.45 | G14: 1398.2 | H14: 42495.2
B15: 2005
C16: Jan | E16: 16942.64 | F16: 29835.78 | G16: 8045.72 | H16: 54824.14
C17: Feb | D17: 453.31 | E17: 4689.48 | G17: 20077.65 | H17: 25220.44
C18: Mar | D18: 4075.25 | G18: 8652.55 | H18: 12727.8
C19: Apr | D19: 12037.6 | E19: 10638.2 | F19: 20193.22 | G19: 7222.41 | H19: 50091.43
C20: May | E20: 6551.73 | F20: 7190.35 | G20: 18653.44 | H20: 32395.52
C21: Jun | E21: 1220.23 | F21: 4928.93 | G21: 24119.49 | H21: 30268.65
C22: Jul | D22: 16149.98 | E22: 1678.45 | F22: 10827.93 | G22: 4705.56 | H22: 33361.92
C23: Aug | D23: 15962.31 | E23: 9099.29 | F23: 15635.15 | G23: 4485.81 | H23: 45182.56
C24: Sep | D24: 12768.36 | E24: 7753.92 | F24: 6344.85 | G24: 8372.62 | H24: 35239.75
C25: Oct | E25: 14984.88 | F25: 8385.7 | G25: 1073.97 | H25: 24444.55
C26: Nov | E26: 13853.56 | F26: 3780.3 | H26: 17633.86
C27: Dec | D27: 13365.06 | E27: 11449.36 | F27: 8192.62 | G27: 14747.2 | H27: 47754.24
B28: 2006
C29: Jan | D29: 13628.07 | E29: 27242.57 | F29: 8431.71 | G29: 6758.88 | H29: 56061.23
C30: Feb | D30: 18744.08 | E30: 16744.32 | F30: 35156.6 | H30: 70645
C31: Mar | D31: 16598.18 | E31: 1371.11 | F31: 13608.48 | G31: 15791.16 | H31: 47368.93
C32: Apr | E32: 2948.57 | F32: 982.25 | G32: 17370.13 | H32: 21300.95
C33: May | D33: 14496.12 | H33: 14496.12
A34: Chevron | D34: 197331.82 | E34: 334191.56 | F34: 229375.82 | G34: 337051.38 | H34: 1097950.58
B35: 2004
C36: May | D36: 12337.96 | F36: 4721.31 | H36: 17059.27
C37: Jun | D37: 14200.51 | E37: 14367.37 | G37: 4142.22 | H37: 32710.1
C38: Jul | D38: 9156.69 | E38: 26953.59 | F38: 6123.76 | G38: 6075.23 | H38: 48309.27
C39: Aug | E39: 12689.55 | F39: 5593.24 | G39: 7764.35 | H39: 26047.14
C40: Sep | D40: 7367.74 | E40: 7726.76 | F40: 16340.17 | G40: 17463.05 | H40: 48897.72
C41: Oct | D41: 8796 | E41: 1644.08 | F41: 4250.32 | G41: 11976.17 | H41: 26666.57
C42: Nov | D42: 13505.51 | E42: 23898.68 | F42: 5169.94 | G42: 18211.18 | H42: 60785.31
C43: Dec | D43: 12929.01 | E43: 19278.05 | G43: 22407.97 | H43: 54615.03
B44: 2005
C45: Jan | D45: 4710.9 | E45: 13840.92 | F45: 14703.72 | G45: 23025 | H45: 56280.54
C46: Feb | D46: 8576.7 | E46: 21254.23 | F46: 2015.27 | G46: 28548 | H46: 60394.2
C47: Mar | E47: 24522.32 | F47: 12433.83 | G47: 1158.36 | H47: 38114.51
C48: Apr | D48: 12809.04 | E48: 16797.68 | F48: 4338.66 | G48: 15454.8 | H48: 49400.18
C49: May | E49: 16857.38 | F49: 13939.12 | G49: 17002.25 | H49: 47798.75
C50: Jun | D50: 8885.8 | E50: 6213.05 | F50: 9089.13 | G50: 9874.99 | H50: 34062.97
C51: Jul | E51: 9867.23 | F51: 15064.78 | G51: 35070.06 | H51: 60002.07
C52: Aug | D52: 2391.31 | E52: 8886.37 | F52: 9747.15 | G52: 8492.14 | H52: 29516.97
C53: Sep | D53: 13426.67 | E53: 22258.82 | F53: 5380.77 | G53: 8531.01 | H53: 49597.27
C54: Oct | D54: 2714.09 | E54: 15411.45 | F54: 25016.34 | G54: 16842.83 | H54: 59984.71
C55: Nov | D55: 10607.25 | E55: 9936.8 | F55: 26723.84 | G55: 2436.62 | H55: 49704.51
C56: Dec | D56: 4341.35 | E56: 14884.05 | F56: 9662.47 | G56: 8920.16 | H56: 37808.03
B57: 2006
C58: Jan | D58: 20555.18 | E58: 16321.33 | F58: 23376.56 | G58: 16333.97 | H58: 76587.04
C59: Feb | D59: 9344.64 | E59: 20945.3 | G59: 15482.86 | H59: 45772.8
C60: Mar | D60: 9265.33 | F60: 3230.65 | G60: 19986.01 | H60: 32481.99
C61: Apr | D61: 2207.68 | E61: 9188.11 | F61: 278.52 | G61: 9725.14 | H61: 21399.45
C62: May | D62: 9202.46 | E62: 448.44 | F62: 12176.27 | G62: 12127.01 | H62: 33954.18
A63: Google | D63: 181030.92 | E63: 251499.57 | F63: 200150.75 | G63: 318514.71 | H63: 951195.95
B64: 2004
C65: May | E65: 1968.91 | G65: 28560.45 | H65: 30529.36
C66: Jun | D66: 275.16 | F66: 10570.34 | H66: 10845.5
C67: Jul | D67: 17596.72 | F67: 17322.35 | G67: 15077.65 | H67: 49996.72
C68: Aug | D68: 3882.41 | E68: 8830.89 | F68: 7190.93 | G68: 9563 | H68: 29467.23
C69: Sep | D69: 15203.86 | E69: 8785.5 | F69: 9781.33 | G69: 9249.42 | H69: 43020.11
C70: Oct | D70: 25164.7 | E70: 13237.51 | G70: 12584.89 | H70: 50987.1
C71: Nov | E71: 18111.47 | F71: 6848.21 | G71: 31245.24 | H71: 56204.92
C72: Dec | E72: 2918.67 | G72: 35667.01 | H72: 38585.68
B73: 2005
C74: Jan | E74: 8622.44 | F74: 16462.43 | G74: 17249.95 | H74: 42334.82
C75: Feb | D75: 9919.59 | E75: 22219.74 | F75: 10850.68 | G75: 29110.56 | H75: 72100.57
C76: Mar | D76: 1137.37 | E76: 31956.31 | F76: 590.91 | G76: 24274.59 | H76: 57959.18
C77: Apr | E77: 12487.57 | F77: 29789.09 | G77: 11090.84 | H77: 53367.5
C78: May | E78: 4078.73 | H78: 4078.73
C79: Jun | D79: 15043.75 | E79: 12236.51 | F79: 11878.76 | G79: 4970.03 | H79: 44129.05
C80: Jul | D80: 6645.94 | E80: 4030.8 | F80: 9977.3 | G80: 2388.06 | H80: 23042.1
C81: Aug | D81: 24699.89 | E81: 13523.24 | G81: 19921.15 | H81: 58144.28
C82: Sep | D82: 1627.3 | E82: 34057.58 | F82: 9519.86 | G82: 19409.82 | H82: 64614.56
C83: Oct | D83: 1831.31 | E83: 12874.27 | G83: 4688.31 | H83: 19393.89
C84: Nov | E84: 1912.94 | F84: 4020.73 | H84: 5933.67
C85: Dec | D85: 31544.65 | E85: 6269.94 | F85: 6501.53 | G85: 5082.46 | H85: 49398.58
B86: 2006
C87: Jan | D87: 2250.66 | F87: 14893.19 | G87: 12717.64 | H87: 29861.49
C88: Feb | E88: 3687.79 | F88: 9648.4 | G88: 3558.84 | H88: 16895.03
C89: Mar | D89: 7769.13 | E89: 9045.12 | F89: 10600.66 | G89: 8177.13 | H89: 35592.04
C90: Apr | D90: 16438.48 | E90: 20643.64 | F90: 4977.86 | G90: 13927.67 | H90: 55987.65
C91: May | F91: 8726.19 | H91: 8726.19
A92: Home Depot | D92: 257388.33 | E92: 351597.74 | F92: 288872.31 | G92: 378607.77 | H92: 1276466.15
B93: 2004
C94: May | E94: 18731.98 | F94: 4156.58 | H94: 22888.56
C95: Jun | D95: 5757.48 | E95: 18933.63 | G95: 11481.59 | H95: 36172.7
C96: Jul | D96: 2514.2 | E96: 22753.56 | F96: 23830.51 | G96: 29955.17 | H96: 79053.44
C97: Aug | D97: 3923.41 | E97: 18565.82 | F97: 11655.98 | G97: 5797.51 | H97: 39942.72
C98: Sep | D98: 8658.04 | E98: 889.41 | F98: 32224.57 | G98: 4702.42 | H98: 46474.44
C99: Oct | D99: 1458 | E99: 15894.5 | F99: 3150.15 | G99: 45157.45 | H99: 65660.1
C100: Nov | D100: 10067.35 | E100: 15423.85 | F100: 25045.24 | G100: 14110.01 | H100: 64646.45
C101: Dec | D101: 8812.14 | E101: 18093.74 | F101: 8465.37 | G101: 34197.44 | H101: 69568.69
B102: 2005
C103: Jan | D103: 25447.56 | E103: 19174.12 | F103: 3576.23 | G103: 11276.56 | H103: 59474.47
C104: Feb | D104: 3085.37 | E104: 2949.12 | F104: 30415.69 | G104: 9254 | H104: 45704.18
C105: Mar | D105: 23166.51 | E105: 8434.78 | F105: 2848.17 | G105: 9411.08 | H105: 43860.54
C106: Apr | D106: 10304.63 | E106: 25102.88 | F106: 7350.61 | G106: 9454.15 | H106: 52212.27
C107: May | D107: 4004.88 | E107: 13986.08 | F107: 10549.45 | G107: 11710.79 | H107: 40251.2
C108: Jun | D108: 18471.87 | E108: 6512.22 | F108: 5098.43 | G108: 21728.07 | H108: 51810.59
C109: Jul | D109: 1008.51 | F109: 36530.75 | G109: 17690.22 | H109: 55229.48
C110: Aug | D110: 17947.76 | E110: 34290.79 | F110: 4876.09 | G110: 6763.2 | H110: 63877.84
C111: Sep | D111: 30517.84 | E111: 18351.18 | F111: 7792.42 | G111: 11364.14 | H111: 68025.58
C112: Oct | D112: 10497.11 | E112: 12516.53 | F112: 7209.89 | G112: 26435.42 | H112: 56658.95
C113: Nov | E113: 5475.6 | F113: 6403.61 | G113: 15469.03 | H113: 27348.24
C114: Dec | D114: 17617.39 | E114: 16120.3 | F114: 3311.59 | G114: 18525.14 | H114: 55574.42
B115: 2006
C116: Jan | D116: 35009.59 | E116: 9542.58 | F116: 9538.44 | G116: 30516.93 | H116: 84607.54
C117: Feb | D117: 4169.58 | E117: 4076.42 | F117: 26643.4 | G117: 11335.66 | H117: 46225.06
C118: Mar | D118: 12302.27 | E118: 30061.19 | F118: 10286.88 | G118: 17989.35 | H118: 70639.69
C119: Apr | E119: 9681.14 | F119: 7912.26 | G119: 4282.44 | H119: 21875.84
C120: May | D120: 2646.84 | E120: 6036.32 | H120: 8683.16
A121: McLendon's Hardware | D121: 163073.87 | E121: 303937.97 | F121: 350582.66 | G121: 273428.5 | H121: 1091023
B122: 2004
C123: May | E123: 4772.26 | F123: 7642.45 | G123: 9852 | H123: 22266.71
C124: Jun | E124: 29069.23 | F124: 27972.43 | G124: 19730 | H124: 76771.66
C125: Jul | E125: 1055.6 | F125: 20646.83 | G125: 12176.48 | H125: 33878.91
C126: Aug | E126: 36.38 | G126: 26194.45 | H126: 26230.83
C127: Sep | D127: 11454.45 | E127: 9039.07 | F127: 17424.47 | G127: 8566.92 | H127: 46484.91
C128: Oct | D128: 3083.98 | E128: 22840.16 | F128: 17784.39 | G128: 9979.48 | H128: 53688.01
C129: Nov | D129: 7259.65 | E129: 11486.34 | F129: 10673.26 | G129: 20979.54 | H129: 50398.79
C130: Dec | D130: 5844.89 | F130: 17735.13 | G130: 25157.23 | H130: 48737.25
B131: 2005
C132: Jan | D132: 7406.49 | E132: 20177.89 | F132: 4688.44 | G132: 12842.92 | H132: 45115.74
C133: Feb | D133: 24283.74 | E133: 30733.01 | F133: 2001.32 | G133: 13957.67 | H133: 70975.74
C134: Mar | D134: 12023.56 | E134: 10125.02 | F134: 4270.96 | G134: 13088.17 | H134: 39507.71
C135: Apr | E135: 6039.44 | F135: 23584.41 | G135: 15156.87 | H135: 44780.72
C136: May | D136: 562.1 | E136: 7429.62 | F136: 19128.69 | G136: 12453.65 | H136: 39574.06
C137: Jun | D137: 14347.45 | E137: 36119.32 | F137: 31621.95 | G137: 2880.49 | H137: 84969.21
C138: Jul | D138: 5858.74 | E138: 869.8 | F138: 10721.52 | G138: 10248.92 | H138: 27698.98
C139: Aug | E139: 12404.7 | F139: 7990.9 | G139: 1236.26 | H139: 21631.86
C140: Sep | E140: 1195.62 | F140: 20833.11 | G140: 8678.74 | H140: 30707.47
C141: Oct | D141: 15857.97 | E141: 21577.34 | F141: 29787.02 | G141: 17580.92 | H141: 84803.25
C142: Nov | D142: 11053.37 | E142: 18246.38 | F142: 25537.09 | H142: 54836.84
C143: Dec | D143: 12806.53 | E143: 4654.1 | F143: 7761.06 | H143: 25221.69
B144: 2006
C145: Jan | D145: 5042.39 | E145: 17809.72 | F145: 9424.84 | G145: 3238.1 | H145: 35515.05
C146: Feb | D146: 1724.12 | E146: 8396.22 | F146: 7823.94 | G146: 12408.87 | H146: 30353.15
C147: Mar | D147: 7720.48 | E147: 9073.92 | F147: 5703.04 | G147: 10307.66 | H147: 32805.1
C148: Apr | D148: 16743.96 | E148: 14467.75 | F148: 10382.13 | G148: 4805.45 | H148: 46399.29
C149: May | E149: 6319.08 | F149: 9443.28 | G149: 1907.71 | H149: 17670.07
A150: MrExcel.com | D150: 179180.8 | E150: 391454.23 | F150: 185986.17 | G150: 404548.67 | H150: 1161169.87
B151: 2004
C152: May | E152: 10207.86 | F152: 9521 | G152: 8234.95 | H152: 27963.81
C153: Jun | D153: 24605.83 | E153: 13948.15 | F153: 17199.06 | G153: 33478.27 | H153: 89231.31
C154: Jul | E154: 31787.94 | F154: 8511 | G154: 29018.05 | H154: 69316.99
C155: Aug | D155: 10066.5 | E155: 4978.09 | F155: 7895.38 | G155: 13402.81 | H155: 36342.78
C156: Sep | D156: 16507.03 | E156: 37500.24 | F156: 11362.46 | G156: 5498.53 | H156: 70868.26
C157: Oct | D157: 9370.75 | E157: 2184.41 | F157: 3742.53 | G157: 9898 | H157: 25195.69
C158: Nov | D158: 2170.35 | E158: 30832.4 | F158: 8810.37 | G158: 40446.31 | H158: 82259.43
C159: Dec | D159: 9003.77 | E159: 28873.07 | G159: 11982.06 | H159: 49858.9
B160: 2005
C161: Jan | D161: 12836.23 | E161: 8160.36 | F161: 5065.82 | H161: 26062.41
C162: Feb | D162: 5824.76 | E162: 11868.84 | F162: 2094.03 | G162: 26969.13 | H162: 46756.76
C163: Mar | D163: 3496.88 | E163: 13175.85 | F163: 5564.55 | G163: 13933.14 | H163: 36170.42
C164: Apr | E164: 19041.16 | F164: 689.78 | G164: 6650.21 | H164: 26381.15
C165: May | D165: 6136.65 | E165: 10648.17 | F165: 6906.84 | H165: 23691.66
C166: Jun | D166: 11531.24 | F166: 8373.15 | G166: 4527.62 | H166: 24432.01
C167: Jul | D167: 5705.03 | E167: 14988.09 | F167: 19021.52 | G167: 26785.03 | H167: 66499.67
C168: Aug | D168: 8908.67 | E168: 8921.86 | F168: 5763.29 | G168: 14909.45 | H168: 38503.27
C169: Sep | D169: 33543.76 | E169: 19332.27 | F169: 893.78 | G169: 8566.42 | H169: 62336.23
C170: Oct | E170: 32925.17 | F170: 16374 | G170: 1546.67 | H170: 50845.84
C171: Nov | D171: 10850.09 | E171: 8009.55 | G171: 22524.17 | H171: 41383.81
C172: Dec | D172: 5190.96 | E172: 34712.61 | F172: 13932.69 | G172: 25966.67 | H172: 79802.93
B173: 2006
C174: Jan | E174: 20499.36 | F174: 9813.68 | G174: 14777.16 | H174: 45090.2
C175: Feb | D175: 3432.3 | E175: 1072.89 | G175: 10666.72 | H175: 15171.91
C176: Mar | E176: 4861.75 | F176: 2976.14 | G176: 18892.25 | H176: 26730.14
C177: Apr | E177: 6898.33 | F177: 21475.1 | G177: 50104.53 | H177: 78477.96
C178: May | E178: 16025.81 | G178: 5770.52 | H178: 21796.33
A179: Nature Company | D179: 200791.08 | E179: 377490.38 | F179: 231385.45 | G179: 329091.49 | H179: 1138758.4
B180: 2004
C181: May | E181: 6726.7 | F181: 10628.72 | G181: 14223.67 | H181: 31579.09
C182: Jun | D182: 11937.32 | E182: 4088.04 | F182: 15975.37 | H182: 32000.73
C183: Jul | D183: 8900.97 | F183: 5373.2 | G183: 18326.34 | H183: 32600.51
C184: Aug | D184: 7345.51 | E184: 3418.82 | F184: 7851.11 | G184: 30768.08 | H184: 49383.52
C185: Sep | D185: 5754.85 | E185: 6655.34 | F185: 1781.06 | G185: 15367.11 | H185: 29558.36
C186: Oct | D186: 8057.63 | E186: 9680.4 | F186: 3770.42 | G186: 9796.71 | H186: 31305.16
C187: Nov | D187: 21294.28 | E187: 13714.8 | F187: 5703.44 | G187: 14710.38 | H187: 55422.9
C188: Dec | D188: 16593.04 | E188: 17788.33 | F188: 13997.99 | G188: 7958.12 | H188: 56337.48
B189: 2005
C190: Jan | D190: 4073.03 | E190: 25526.05 | F190: 9265.5 | G190: 9365.48 | H190: 48230.06
C191: Feb | D191: 13150.2 | E191: 7031.4 | F191: 8389.86 | G191: 9321 | H191: 37892.46
C192: Mar | D192: 2528.39 | E192: 19823.92 | G192: 18851.55 | H192: 41203.86
C193: Apr | D193: 17041.95 | E193: 12316.12 | F193: 18102.23 | G193: 11128.59 | H193: 58588.89
C194: May | D194: 4602.02 | E194: 26751.96 | F194: 15599.65 | G194: 9610.57 | H194: 56564.2
C195: Jun | E195: 35881.27 | F195: 16090.65 | G195: 27993.84 | H195: 79965.76
C196: Jul | D196: 7203.18 | E196: 28267.8 | F196: 8691.46 | G196: 10324.35 | H196: 54486.79
C197: Aug | D197: 8645.32 | E197: 2161.45 | F197: 11183.23 | G197: 18857.19 | H197: 40847.19
C198: Sep | D198: 15343.54 | E198: 16772.25 | G198: 6719.11 | H198: 38834.9
C199: Oct | D199: 9289.38 | E199: 5772.2 | H199: 15061.58
C200: Nov | D200: 5063.77 | E200: 12948.48 | F200: 18740.83 | G200: 28953.52 | H200: 65706.6
C201: Dec | E201: 11967.97 | G201: 3341.35 | H201: 15309.32
B202: 2006
... 92 more rows

Sheet Import(1)
A1: =ROW()&")" -> 1) | B1: In Excel 2003, the "Get External Data" feature is in the Data menu
A2: 2) | B2: In Excel 2007, the "Get External Data" feature is in the Data Ribbon
A3: 3) | B3: Text Import Wizard Step 1: Delimited means some character separate the data; Fixed Width means that the column width of each data element are the same
A4: 4) | B4: Text Import Wizard Step 2: What is Delimiter? Space, Comma, Tab, other?
A5: 5) | B5: Text Import Wizard Step 3: Do you want to format the fields?
A6: 6) | B6: Importing Access Database data or using Microsoft Query to get an Excel Table will bring the data in as an "Excel Table". If you don't want that, right click "Excel Table" and point to Table, then to "Convert To Range"
A7: 7) | B7: If you don't want to use the Microsoft Query to bring Excel data in, Add the "Import Data" button to the QAT and use that.
A9: Date | B9: Region | C9: Sales Rep | D9: Customer | E9: Product | F9: Sales
A10: 2004-05-17 | B10: South | C10: Luke | D10: Whole Foods | E10: SBM Product | F10: 9114.37
A11: 2004-05-18 | B11: South | C11: Rhonda | D11: MrExcel.com | E11: HQZ Product | F11: 9521
A12: 2004-05-18 | B12: South | C12: T-Do | D12: McLendon's Hardware | E12: HQZ Product | F12: 7642.45
A13: 2004-05-21 | B13: South | C13: Sandy | D13: Nature Company | E13: EGV Product | F13: 1613.46
A14: 2004-05-22 | B14: South | C14: Olga | D14: Nature Company | E14: UWT Product | F14: 9015.26
A15: 2004-05-22 | B15: South | C15: Sandy | D15: Chevron | E15: FLS Product | F15: 4721.31
A16: 2004-05-26 | B16: South | C16: Olga | D16: Office Depot | E16: FLS Product | F16: 189.16
A17: 2004-05-26 | B17: South | C17: Yelena | D17: Home Depot | E17: FLS Product | F17: 4156.58
A18: 2004-05-29 | B18: South | C18: Olga | D18: Whole Foods | E18: AHT Product | F18: 4862.07
A19: 2004-05-29 | B19: South | C19: Olga | D19: Amazon.com | E19: FLS Product | F19: 2711.44
A20: 2004-06-03 | B20: South | C20: Luke | D20: Nature Company | E20: UWT Product | F20: 9663.29
A21: 2004-06-04 | B21: South | C21: T-Do | D21: McLendon's Hardware | E21: UWT Product | F21: 9221
A22: 2004-06-05 | B22: South | C22: Scott | D22: Google | E22: HQZ Product | F22: 5254.02
A23: 2004-06-05 | B23: South | C23: Stevie | D23: Amazon.com | E23: HQZ Product | F23: 7426.16
A24: 2004-06-06 | B24: South | C24: Sandy | D24: Amazon.com | E24: JVI Product | F24: 1033.98
A25: 2004-06-07 | B25: South | C25: Sean | D25: MrExcel.com | E25: UWT Product | F25: 4188.48
A26: 2004-06-10 | B26: South | C26: Nicole | D26: Google | E26: LTX Product | F26: 5316.32
A27: 2004-06-17 | B27: South | C27: Amy | D27: Sherman Williams | E27: AHT Product | F27: 7398.84
A28: 2004-06-19 | B28: South | C28: Nicole | D28: Amazon.com | E28: AHT Product | F28: 3233.14
A29: 2004-06-19 | B29: South | C29: Sirima | D29: MrExcel.com | E29: AHT Product | F29: 9282.02
A30: 2004-06-20 | B30: South | C30: Stevie | D30: Sherman Williams | E30: LTX Product | F30: 4069.87
A31: 2004-06-22 | B31: South | C31: Sunshine | D31: McLendon's Hardware | E31: SBM Product | F31: 9630.5
A32: 2004-06-26 | B32: South | C32: Olga | D32: MrExcel.com | E32: UNQ Product | F32: 3728.56
A33: 2004-06-26 | B33: South | C33: Jennifer | D33: Office Depot | E33: DVI Product | F33: 8155.38
A34: 2004-06-28 | B34: South | C34: Dollie | D34: Nature Company | E34: LTX Product | F34: 6312.08
A35: 2004-06-30 | B35: South | C35: Luke | D35: McLendon's Hardware | E35: FLS Product | F35: 9120.93
A36: 2004-07-01 | B36: South | C36: Sirima | D36: Home Depot | E36: JVI Product | F36: 8529.24
A37: 2004-07-02 | B37: South | C37: Sean | D37: Amazon.com | E37: JVI Product | F37: 5550.1
A38: 2004-07-04 | B38: South | C38: Jennifer | D38: Sherman Williams | E38: ABZ Product | F38: 562.93
A39: 2004-07-05 | B39: South | C39: Sunshine | D39: Home Depot | E39: UNQ Product | F39: 9562.95
A40: 2004-07-11 | B40: South | C40: Svetlana | D40: Amazon.com | E40: ABZ Product | F40: 5618.75
A41: 2004-07-11 | B41: South | C41: Sandy | D41: McLendon's Hardware | E41: DVI Product | F41: 5961.97
A42: 2004-07-11 | B42: South | C42: Sean | D42: Google | E42: SBM Product | F42: 3210.68
A43: 2004-07-12 | B43: South | C43: Sunshine | D43: Home Depot | E43: UWT Product | F43: 5738.32
A44: 2004-07-15 | B44: South | C44: T-Do | D44: MrExcel.com | E44: UWT Product | F44: 8511
A45: 2004-07-17 | B45: South | C45: Nicole | D45: McLendon's Hardware | E45: JVI Product | F45: 5946.15
A46: 2004-07-17 | B46: South | C46: Stevie | D46: Nature Company | E46: SBM Product | F46: 5373.2
A47: 2004-07-17 | B47: South | C47: Svetlana | D47: Sherman Williams | E47: LTX Product | F47: 2354.5
A48: 2004-07-19 | B48: South | C48: Sean | D48: Chevron | E48: HQZ Product | F48: 6123.76
A49: 2004-07-20 | B49: South | C49: Jennifer | D49: Amazon.com | E49: HQZ Product | F49: 6426.37
A50: 2004-07-22 | B50: South | C50: Sirima | D50: Whole Foods | E50: DVI Product | F50: 3146.22
A51: 2004-07-23 | B51: South | C51: Olga | D51: Google | E51: XTP Product | F51: 5398.82
A52: 2004-07-24 | B52: South | C52: Yelena | D52: McLendon's Hardware | E52: JVI Product | F52: 1649.3
A53: 2004-07-24 | B53: South | C53: Roman | D53: Amazon.com | E53: JVI Product | F53: 1221.34
A54: 2004-07-27 | B54: South | C54: Stevie | D54: Amazon.com | E54: DVI Product | F54: 3730.44
A55: 2004-07-27 | B55: South | C55: Svetlana | D55: Sherman Williams | E55: ABZ Product | F55: 4227.34
A56: 2004-07-27 | B56: South | C56: Sandy | D56: McLendon's Hardware | E56: DVI Product | F56: 7089.41
A57: 2004-07-28 | B57: South | C57: Jennifer | D57: Google | E57: ABZ Product | F57: 8712.85
A58: 2004-08-01 | B58: South | C58: Sirima | D58: Home Depot | E58: ABZ Product | F58: 9685.95
A59: 2004-08-02 | B59: South | C59: Scott | D59: Office Depot | E59: ABZ Product | F59: 4771.53
A60: 2004-08-02 | B60: South | C60: Svetlana | D60: Chevron | E60: EGV Product | F60: 902.18
A61: 2004-08-03 | B61: South | C61: Sean | D61: Chevron | E61: FLS Product | F61: 4691.06
A62: 2004-08-08 | B62: South | C62: Scott | D62: Whole Foods | E62: FLS Product | F62: 5796.4
A63: 2004-08-09 | B63: South | C63: Sandy | D63: Whole Foods | E63: DVI Product | F63: 995.26
A64: 2004-08-11 | B64: South | C64: Tatyana | D64: Whole Foods | E64: FLS Product | F64: 5661.35
A65: 2004-08-14 | B65: South | C65: Jennifer | D65: Amazon.com | E65: UWT Product | F65: 3843.33
A66: 2004-08-15 | B66: South | C66: Sunshine | D66: Office Depot | E66: HQZ Product | F66: 6090.71
A67: 2004-08-15 | B67: South | C67: Dollie | D67: Home Depot | E67: EGV Product | F67: 1970.03
A68: 2004-08-17 | B68: South | C68: Amy | D68: Amazon.com | E68: ABZ Product | F68: 1873.33
A69: 2004-08-17 | B69: South | C69: Rhonda | D69: Amazon.com | E69: ABZ Product | F69: 9452
A70: 2004-08-19 | B70: South | C70: Nicole | D70: Google | E70: UWT Product | F70: 7190.93
A71: 2004-08-20 | B71: South | C71: Scott | D71: Office Depot | E71: JVI Product | F71: 201.6
A72: 2004-08-26 | B72: South | C72: Jennifer | D72: MrExcel.com | E72: JVI Product | F72: 7895.38
A73: 2004-08-27 | B73: South | C73: Luke | D73: Nature Company | E73: FLS Product | F73: 7851.11
A74: 2004-09-02 | B74: South | C74: Luke | D74: MrExcel.com | E74: ABZ Product | F74: 7845
A75: 2004-09-04 | B75: South | C75: Rhonda | D75: Home Depot | E75: ABZ Product | F75: 9937
A76: 2004-09-05 | B76: South | C76: T-Do | D76: Chevron | E76: SBM Product | F76: 5278.09
A77: 2004-09-05 | B77: South | C77: Scott | D77: Home Depot | E77: AHT Product | F77: 8442.63
A78: 2004-09-07 | B78: South | C78: Dollie | D78: MrExcel.com | E78: JVI Product | F78: 3517.46
A79: 2004-09-07 | B79: South | C79: Roman | D79: Whole Foods | E79: FLS Product | F79: 656.64
A80: 2004-09-15 | B80: South | C80: Sunshine | D80: Home Depot | E80: AHT Product | F80: 3402.14
A81: 2004-09-17 | B81: South | C81: Nicole | D81: Sherman Williams | E81: SBM Product | F81: 4566.11
A82: 2004-09-20 | B82: South | C82: Olga | D82: Whole Foods | E82: UNQ Product | F82: 1456
A83: 2004-09-22 | B83: South | C83: Sunshine | D83: Chevron | E83: HQZ Product | F83: 7359.16
A84: 2004-09-22 | B84: South | C84: Dollie | D84: Office Depot | E84: UNQ Product | F84: 5171.09
A85: 2004-09-23 | B85: South | C85: Sirima | D85: Nature Company | E85: SBM Product | F85: 1510.02
A86: 2004-09-23 | B86: South | C86: Scott | D86: Chevron | E86: JVI Product | F86: 3702.92
A87: 2004-09-24 | B87: South | C87: Sandy | D87: Home Depot | E87: UWT Product | F87: 4153.07
A88: 2004-09-24 | B88: South | C88: Olga | D88: Nature Company | E88: SBM Product | F88: 145
A89: 2004-09-25 | B89: South | C89: Sean | D89: Home Depot | E89: UNQ Product | F89: 6289.73
A90: 2004-09-26 | B90: South | C90: Yelena | D90: Whole Foods | E90: XTP Product | F90: 23.32
A91: 2004-09-28 | B91: South | C91: Dollie | D91: Nature Company | E91: DVI Product | F91: 126.04
A92: 2004-09-28 | B92: South | C92: Amy | D92: Google | E92: UNQ Product | F92: 8549.33
A93: 2004-09-29 | B93: South | C93: Luke | D93: Google | E93: SBM Product | F93: 1232
A94: 2004-09-29 | B94: South | C94: Rhonda | D94: McLendon's Hardware | E94: LTX Product | F94: 8706.46
A95: 2004-09-30 | B95: South | C95: Scott | D95: McLendon's Hardware | E95: HQZ Product | F95: 8718.01
A96: 2004-09-30 | B96: South | C96: Stevie | D96: Office Depot | E96: UNQ Product | F96: 2289.23
A97: 2004-10-06 | B97: South | C97: Svetlana | D97: MrExcel.com | E97: UNQ Product | F97: 35.32
A98: 2004-10-08 | B98: South | C98: Roman | D98: Amazon.com | E98: LTX Product | F98: 4090.37
A99: 2004-10-09 | B99: South | C99: Tatyana | D99: Amazon.com | E99: UNQ Product | F99: 5605.36
A100: 2004-10-09 | B100: South | C100: Luke | D100: MrExcel.com | E100: ABZ Product | F100: 419.57
A101: 2004-10-10 | B101: South | C101: T-Do | D101: Amazon.com | E101: AHT Product | F101: 9397.79
A102: 2004-10-15 | B102: South | C102: Yelena | D102: McLendon's Hardware | E102: UWT Product | F102: 9761.02
A103: 2004-10-21 | B103: South | C103: Nicole | D103: Nature Company | E103: UNQ Product | F103: 3770.42
A104: 2004-10-22 | B104: South | C104: Sirima | D104: Home Depot | E104: AHT Product | F104: 3150.15
A105: 2004-10-24 | B105: South | C105: Stevie | D105: MrExcel.com | E105: JVI Product | F105: 3287.64
A106: 2004-10-27 | B106: South | C106: Tatyana | D106: McLendon's Hardware | E106: UNQ Product | F106: 8023.37
A107: 2004-10-29 | B107: South | C107: Stevie | D107: Chevron | E107: UWT Product | F107: 4250.32
A108: 2004-10-31 | B108: South | C108: Jennifer | D108: Office Depot | E108: UNQ Product | F108: 1976.08
A109: 2004-11-01 | B109: South | C109: Dollie | D109: Google | E109: DVI Product | F109: 5145.55
A110: 2004-11-02 | B110: South | C110: Amy | D110: Whole Foods | E110: AHT Product | F110: 1606.64
A111: 2004-11-03 | B111: South | C111: Tatyana | D111: Whole Foods | E111: LTX Product | F111: 3248.49
A112: 2004-11-03 | B112: South | C112: Luke | D112: Home Depot | E112: IQE Product | F112: 7562.16
A113: 2004-11-05 | B113: South | C113: Olga | D113: Nature Company | E113: ABZ Product | F113: 1256
A114: 2004-11-06 | B114: South | C114: Sunshine | D114: Home Depot | E114: IQE Product | F114: 9545.04
A115: 2004-11-10 | B115: South | C115: Svetlana | D115: MrExcel.com | E115: LTX Product | F115: 8046.48
A116: 2004-11-11 | B116: South | C116: Amy | D116: Whole Foods | E116: XTP Product | F116: 3313.77
A117: 2004-11-11 | B117: South | C117: Tatyana | D117: Nature Company | E117: DVI Product | F117: 4447.44
A118: 2004-11-12 | B118: South | C118: Luke | D118: Google | E118: UNQ Product | F118: 1702.66
A119: 2004-11-13 | B119: South | C119: Stevie | D119: McLendon's Hardware | E119: ABZ Product | F119: 3703.83
A120: 2004-11-14 | B120: South | C120: Svetlana | D120: Home Depot | E120: UWT Product | F120: 7938.04
A121: 2004-11-14 | B121: South | C121: Olga | D121: Whole Foods | E121: DVI Product | F121: 487
A122: 2004-11-16 | B122: South | C122: Amy | D122: MrExcel.com | E122: XTP Product | F122: 763.89
A123: 2004-11-19 | B123: South | C123: Stevie | D123: McLendon's Hardware | E123: JVI Product | F123: 6969.43
A124: 2004-11-21 | B124: South | C124: Olga | D124: Office Depot | E124: EGV Product | F124: 125
A125: 2004-11-22 | B125: South | C125: Roman | D125: Sherman Williams | E125: UNQ Product | F125: 3648.91
A126: 2004-11-25 | B126: South | C126: Nicole | D126: Office Depot | E126: HQZ Product | F126: 8059.1
A127: 2004-11-25 | B127: South | C127: Sirima | D127: Whole Foods | E127: LTX Product | F127: 5571.48
A128: 2004-11-25 | B128: South | C128: Scott | D128: Chevron | E128: JVI Product | F128: 551.34
A129: 2004-11-27 | B129: South | C129: Olga | D129: Office Depot | E129: XTP Product | F129: 8157.86
A130: 2004-11-30 | B130: South | C130: T-Do | D130: Chevron | E130: EGV Product | F130: 4618.6
A131: 2004-11-30 | B131: South | C131: Stevie | D131: Office Depot | E131: ABZ Product | F131: 2945.33
A132: 2004-12-02 | B132: South | C132: Sean | D132: Home Depot | E132: EGV Product | F132: 2719.65
A133: 2004-12-03 | B133: South | C133: Dollie | D133: Office Depot | E133: XTP Product | F133: 7922.55
A134: 2004-12-04 | B134: South | C134: Tatyana | D134: Nature Company | E134: HQZ Product | F134: 1504.71
A135: 2004-12-05 | B135: South | C135: Scott | D135: McLendon's Hardware | E135: IQE Product | F135: 9962.68
A136: 2004-12-07 | B136: South | C136: Sandy | D136: Amazon.com | E136: UNQ Product | F136: 879.75
A137: 2004-12-07 | B137: South | C137: Olga | D137: Nature Company | E137: UWT Product | F137: 7586.59
A138: 2004-12-08 | B138: South | C138: Dollie | D138: Amazon.com | E138: DVI Product | F138: 8913.21
A139: 2004-12-09 | B139: South | C139: Tatyana | D139: Office Depot | E139: LTX Product | F139: 7043.5
A140: 2004-12-10 | B140: South | C140: Sirima | D140: Office Depot | E140: UNQ Product | F140: 1153.07
A141: 2004-12-10 | B141: South | C141: Stevie | D141: Amazon.com | E141: LTX Product | F141: 1388.45
A142: 2004-12-11 | B142: South | C142: Olga | D142: Amazon.com | E142: EGV Product | F142: 8475.8
A143: 2004-12-11 | B143: South | C143: Jennifer | D143: McLendon's Hardware | E143: IQE Product | F143: 7772.45
A144: 2004-12-16 | B144: South | C144: Svetlana | D144: Whole Foods | E144: JVI Product | F144: 4723.43
A145: 2004-12-19 | B145: South | C145: Jennifer | D145: Nature Company | E145: DVI Product | F145: 539.27
A146: 2004-12-19 | B146: South | C146: Sunshine | D146: Home Depot | E146: DVI Product | F146: 5745.72
A147: 2004-12-20 | B147: South | C147: Tatyana | D147: Amazon.com | E147: UWT Product | F147: 6334.24
A148: 2004-12-20 | B148: South | C148: Luke | D148: Office Depot | E148: JVI Product | F148: 2066.26
A149: 2004-12-21 | B149: South | C149: T-Do | D149: Whole Foods | E149: UNQ Product | F149: 5225.21
A150: 2004-12-24 | B150: South | C150: Sunshine | D150: Whole Foods | E150: HQZ Product | F150: 9623.86
A151: 2004-12-29 | B151: South | C151: Yelena | D151: Nature Company | E151: XTP Product | F151: 4367.42
A152: 2005-01-08 | B152: South | C152: Sandy | D152: Office Depot | E152: HQZ Product | F152: 6558.42
A153: 2005-01-10 | B153: South | C153: Olga | D153: Amazon.com | E153: DVI Product | F153: 9130.67
A154: 2005-01-12 | B154: South | C154: Dollie | D154: Amazon.com | E154: SBM Product | F154: 6.5
A155: 2005-01-13 | B155: South | C155: T-Do | D155: Home Depot | E155: ABZ Product | F155: 2965.95
A156: 2005-01-18 | B156: South | C156: Yelena | D156: Google | E156: ABZ Product | F156: 4554.55
A157: 2005-01-20 | B157: South | C157: Roman | D157: Whole Foods | E157: LTX Product | F157: 238.91
A158: 2005-01-20 | B158: South | C158: Tatyana | D158: Chevron | E158: IQE Product | F158: 9733.83
A159: 2005-01-26 | B159: South | C159: Yelena | D159: Nature Company | E159: ABZ Product | F159: 9265.5
A160: 2005-01-26 | B160: South | C160: Sunshine | D160: Amazon.com | E160: DVI Product | F160: 6526.81
A161: 2005-01-26 | B161: South | C161: Dollie | D161: Google | E161: XTP Product | F161: 9159.96
A162: 2005-01-26 | B162: South | C162: Roman | D162: Google | E162: UWT Product | F162: 2747.92
A163: 2005-01-28 | B163: South | C163: Nicole | D163: McLendon's Hardware | E163: EGV Product | F163: 4688.44
A164: 2005-01-28 | B164: South | C164: Sirima | D164: Amazon.com | E164: EGV Product | F164: 8642.89
A165: 2005-01-29 | B165: South | C165: Stevie | D165: Home Depot | E165: SBM Product | F165: 610.28
A166: 2005-01-30 | B166: South | C166: Olga | D166: Chevron | E166: FLS Product | F166: 4969.89
A167: 2005-01-30 | B167: South | C167: Sean | D167: Amazon.com | E167: FLS Product | F167: 5528.91
A168: 2005-01-31 | B168: South | C168: Dollie | D168: MrExcel.com | E168: UWT Product | F168: 5065.82
A169: 2005-02-01 | B169: South | C169: Amy | D169: Google | E169: IQE Product | F169: 3608.51
A170: 2005-02-01 | B170: South | C170: Luke | D170: Office Depot | E170: FLS Product | F170: 4761.76
A171: 2005-02-04 | B171: South | C171: Yelena | D171: Whole Foods | E171: SBM Product | F171: 6577.71
A172: 2005-02-04 | B172: South | C172: Sunshine | D172: Google | E172: JVI Product | F172: 6209.33
A173: 2005-02-07 | B173: South | C173: Scott | D173: Home Depot | E173: UNQ Product | F173: 7153.75
A174: 2005-02-08 | B174: South | C174: Sean | D174: MrExcel.com | E174: XTP Product | F174: 360.72
A175: 2005-02-09 | B175: South | C175: Dollie | D175: Chevron | E175: AHT Product | F175: 2015.27
A176: 2005-02-09 | B176: South | C176: Roman | D176: Home Depot | E176: UNQ Product | F176: 9606.64
A177: 2005-02-13 | B177: South | C177: Yelena | D177: MrExcel.com | E177: AHT Product | F177: 1733.31
A178: 2005-02-17 | B178: South | C178: Sirima | D178: McLendon's Hardware | E178: XTP Product | F178: 2001.32
A179: 2005-02-19 | B179: South | C179: Olga | D179: Nature Company | E179: UNQ Product | F179: 65.99
A180: 2005-02-19 | B180: South | C180: Jennifer | D180: Home Depot | E180: JVI Product | F180: 5441.08
A181: 2005-02-19 | B181: South | C181: Yelena | D181: Nature Company | E181: JVI Product | F181: 3856.59
A182: 2005-02-22 | B182: South | C182: Amy | D182: Nature Company | E182: EGV Product | F182: 4467.28
A183: 2005-02-23 | B183: South | C183: Nicole | D183: Home Depot | E183: UWT Product | F183: 6370.05
A184: 2005-02-26 | B184: South | C184: Svetlana | D184: Google | E184: ABZ Product | F184: 1032.84
A185: 2005-02-27 | B185: South | C185: Sean | D185: Home Depot | E185: EGV Product | F185: 1844.17
A186: 2005-03-01 | B186: South | C186: Amy | D186: Chevron | E186: UWT Product | F186: 1331.24
A187: 2005-03-08 | B187: South | C187: Rhonda | D187: Whole Foods | E187: AHT Product | F187: 8694.87
A188: 2005-03-08 | B188: South | C188: Nicole | D188: Home Depot | E188: HQZ Product | F188: 2848.17
A189: 2005-03-09 | B189: South | C189: Scott | D189: Sherman Williams | E189: IQE Product | F189: 1242.32
A190: 2005-03-10 | B190: South | C190: Sean | D190: Sherman Williams | E190: AHT Product | F190: 1199
A191: 2005-03-11 | B191: South | C191: Sunshine | D191: McLendon's Hardware | E191: LTX Product | F191: 4216.97
A192: 2005-03-12 | B192: South | C192: Amy | D192: Sherman Williams | E192: JVI Product | F192: 8136.21
A193: 2005-03-15 | B193: South | C193: Svetlana | D193: Whole Foods | E193: XTP Product | F193: 583.95
A194: 2005-03-18 | B194: South | C194: Sunshine | D194: Google | E194: ABZ Product | F194: 590.91
A195: 2005-03-18 | B195: South | C195: Roman | D195: Chevron | E195: HQZ Product | F195: 7680.26
A196: 2005-03-23 | B196: South | C196: Dollie | D196: MrExcel.com | E196: XTP Product | F196: 4188.09
A197: 2005-03-24 | B197: South | C197: T-Do | D197: Office Depot | E197: DVI Product | F197: 7779.1
A198: 2005-03-25 | B198: South | C198: Stevie | D198: Office Depot | E198: ABZ Product | F198: 1552.83
A199: 2005-03-27 | B199: South | C199: Jennifer | D199: MrExcel.com | E199: XTP Product | F199: 1376.46
A200: 2005-03-30 | B200: South | C200: Scott | D200: Chevron | E200: LTX Product | F200: 3422.33
A201: 2005-03-31 | B201: South | C201: Svetlana | D201: McLendon's Hardware | E201: EGV Product | F201: 53.99
... 1950 more rows

Sheet TextFunctions(2L)
Q1: invoice_date | U1: invoice_date
Q2: 3/19/2007 00:00:00 | U2: 2007-03-19 | V2: 00:00:00
Q3: 4/11/2007 00:00:00 | U3: 2007-04-11 | V3: 00:00:00
Q4: 5/11/2007 00:00:00 | U4: 2007-05-11 | V4: 00:00:00
Q5: 6/6/2007 00:00:00 | U5: 2007-06-06 | V5: 00:00:00
Q6: 7/6/2007 00:00:00 | U6: 2007-07-06 | V6: 00:00:00
Q7: 8/1/2007 00:00:00 | U7: 2007-08-01 | V7: 00:00:00
Q8: 11/15/2007 00:00:00 | U8: 2007-11-15 | V8: 00:00:00
Q9: 12/7/2007 00:00:00 | U9: 2007-12-07 | V9: 00:00:00
Q10: 12/7/2007 00:00:00 | U10: 2007-12-07 | V10: 00:00:00
Q11: 7/10/2007 00:00:00 | U11: 2007-07-10 | V11: 00:00:00
Q12: 9/17/2007 00:00:00 | U12: 2007-09-17 | V12: 00:00:00
Q13: 12/13/2007 00:00:00 | U13: 2007-12-13 | V13: 00:00:00
Q14: 8/21/2007 00:00:00 | U14: 2007-08-21 | V14: 00:00:00
Q15: 12/13/2007 00:00:00 | U15: 2007-12-13 | V15: 00:00:00
Q16: 11/6/2007 00:00:00 | U16: 2007-11-06 | V16: 00:00:00
Q17: 12/7/2007 00:00:00 | U17: 2007-12-07 | V17: 00:00:00
Q18: 11/6/2007 00:00:00 | U18: 2007-11-06 | V18: 00:00:00
Q19: 12/7/2007 00:00:00 | U19: 2007-12-07 | V19: 00:00:00
Q20: 12/7/2007 00:00:00 | U20: 2007-12-07 | V20: 00:00:00
Q21: 9/5/2007 00:00:00 | U21: 2007-09-05 | V21: 00:00:00
Q22: 10/2/2007 00:00:00 | U22: 2007-10-02 | V22: 00:00:00
Q23: 11/7/2007 00:00:00 | U23: 2007-11-07 | V23: 00:00:00
Q24: 12/7/2007 00:00:00 | U24: 2007-12-07 | V24: 00:00:00
Q25: 10/12/2007 00:00:00 | U25: 2007-10-12 | V25: 00:00:00
Q26: 12/7/2007 00:00:00 | U26: 2007-12-07 | V26: 00:00:00
Q27: 4/13/2007 00:00:00 | U27: 2007-04-13 | V27: 00:00:00
Q28: 4/13/2007 00:00:00 | U28: 2007-04-13 | V28: 00:00:00
Q29: 11/6/2007 00:00:00 | U29: 2007-11-06 | V29: 00:00:00
Q30: 11/6/2007 00:00:00 | U30: 2007-11-06 | V30: 00:00:00
Q31: 1/16/2007 00:00:00 | U31: 2007-01-16 | V31: 00:00:00
Q32: 2/9/2007 00:00:00 | U32: 2007-02-09 | V32: 00:00:00
Q33: 2/21/2006 00:00:00 | U33: 2006-02-21 | V33: 00:00:00
Q34: 3/15/2006 00:00:00 | U34: 2006-03-15 | V34: 00:00:00
Q35: 4/17/2006 00:00:00 | U35: 2006-04-17 | V35: 00:00:00
Q36: 5/16/2006 00:00:00 | U36: 2006-05-16 | V36: 00:00:00
Q37: 7/11/2006 00:00:00 | U37: 2006-07-11 | V37: 00:00:00
Q38: 8/14/2006 00:00:00 | U38: 2006-08-14 | V38: 00:00:00
Q39: 9/5/2006 00:00:00 | U39: 2006-09-05 | V39: 00:00:00
Q40: 3/16/2007 00:00:00 | U40: 2007-03-16 | V40: 00:00:00
Q41: 5/17/2007 00:00:00 | U41: 2007-05-17 | V41: 00:00:00
Q42: 6/18/2007 00:00:00 | U42: 2007-06-18 | V42: 00:00:00
Q43: 1/16/2007 00:00:00 | U43: 2007-01-16 | V43: 00:00:00
Q44: 2/16/2007 00:00:00 | U44: 2007-02-16 | V44: 00:00:00
Q45: 3/16/2007 00:00:00 | U45: 2007-03-16 | V45: 00:00:00
Q46: 5/17/2007 00:00:00 | U46: 2007-05-17 | V46: 00:00:00
Q47: 6/18/2007 00:00:00 | U47: 2007-06-18 | V47: 00:00:00
Q48: 7/13/2007 00:00:00 | U48: 2007-07-13 | V48: 00:00:00
Q49: 7/13/2007 00:00:00 | U49: 2007-07-13 | V49: 00:00:00
Q50: 12/15/2006 00:00:00 | U50: 2006-12-15 | V50: 00:00:00
Q51: 7/9/2007 00:00:00 | U51: 2007-07-09 | V51: 00:00:00
Q52: 7/9/2007 00:00:00 | U52: 2007-07-09 | V52: 00:00:00
Q53: 7/13/2007 00:00:00 | U53: 2007-07-13 | V53: 00:00:00
Q54: 7/13/2007 00:00:00 | U54: 2007-07-13 | V54: 00:00:00
Q55: 10/15/2007 00:00:00 | U55: 2007-10-15 | V55: 00:00:00
Q56: 2/14/2007 00:00:00 | U56: 2007-02-14 | V56: 00:00:00
Q57: 4/11/2007 00:00:00 | U57: 2007-04-11 | V57: 00:00:00
Q58: 5/4/2007 00:00:00 | U58: 2007-05-04 | V58: 00:00:00
Q59: 6/6/2007 00:00:00 | U59: 2007-06-06 | V59: 00:00:00
Q60: 7/6/2007 00:00:00 | U60: 2007-07-06 | V60: 00:00:00
Q61: 8/1/2007 00:00:00 | U61: 2007-08-01 | V61: 00:00:00
Q62: 12/19/2007 00:00:00 | U62: 2007-12-19 | V62: 00:00:00
Q63: 12/19/2007 00:00:00 | U63: 2007-12-19 | V63: 00:00:00
Q64: 10/12/2007 00:00:00 | U64: 2007-10-12 | V64: 00:00:00
Q65: 10/12/2007 00:00:00 | U65: 2007-10-12 | V65: 00:00:00
Q66: 11/6/2007 00:00:00 | U66: 2007-11-06 | V66: 00:00:00
Q67: 11/6/2007 00:00:00 | U67: 2007-11-06 | V67: 00:00:00
Q68: 7/23/2007 00:00:00 | U68: 2007-07-23 | V68: 00:00:00
Q69: 7/13/2007 00:00:00 | U69: 2007-07-13 | V69: 00:00:00
Q70: 8/16/2007 00:00:00 | U70: 2007-08-16 | V70: 00:00:00
Q71: 9/17/2007 00:00:00 | U71: 2007-09-17 | V71: 00:00:00
Q72: 10/25/2007 00:00:00 | U72: 2007-10-25 | V72: 00:00:00
Q73: 10/25/2007 00:00:00 | U73: 2007-10-25 | V73: 00:00:00
Q74: 7/24/2007 00:00:00 | U74: 2007-07-24 | V74: 00:00:00
Q75: 9/17/2007 00:00:00 | U75: 2007-09-17 | V75: 00:00:00
Q76: 10/10/2007 00:00:00 | U76: 2007-10-10 | V76: 00:00:00
Q77: 10/10/2007 00:00:00 | U77: 2007-10-10 | V77: 00:00:00
Q78: 7/17/2007 00:00:00 | U78: 2007-07-17 | V78: 00:00:00
Q79: 9/11/2007 00:00:00 | U79: 2007-09-11 | V79: 00:00:00
Q80: 9/11/2007 00:00:00 | U80: 2007-09-11 | V80: 00:00:00
Q81: 6/22/2007 00:00:00 | U81: 2007-06-22 | V81: 00:00:00
Q82: 7/18/2007 00:00:00 | U82: 2007-07-18 | V82: 00:00:00
Q83: 7/18/2007 00:00:00 | U83: 2007-07-18 | V83: 00:00:00
Q84: 11/12/2007 00:00:00 | U84: 2007-11-12 | V84: 00:00:00
Q85: 11/12/2007 00:00:00 | U85: 2007-11-12 | V85: 00:00:00
Q86: 2/14/2007 00:00:00 | U86: 2007-02-14 | V86: 00:00:00
Q87: 8/30/2007 00:00:00 | U87: 2007-08-30 | V87: 00:00:00
Q88: 4/11/2007 00:00:00 | U88: 2007-04-11 | V88: 00:00:00
Q89: 5/4/2007 00:00:00 | U89: 2007-05-04 | V89: 00:00:00
Q90: 6/6/2007 00:00:00 | U90: 2007-06-06 | V90: 00:00:00
Q91: 7/6/2007 00:00:00 | U91: 2007-07-06 | V91: 00:00:00
Q92: 8/1/2007 00:00:00 | U92: 2007-08-01 | V92: 00:00:00
Q93: 10/11/2007 00:00:00 | U93: 2007-10-11 | V93: 00:00:00
Q94: 10/12/2007 00:00:00 | U94: 2007-10-12 | V94: 00:00:00
Q95: 11/6/2007 00:00:00 | U95: 2007-11-06 | V95: 00:00:00
Q96: 11/16/2007 00:00:00 | U96: 2007-11-16 | V96: 00:00:00
Q97: 12/7/2007 00:00:00 | U97: 2007-12-07 | V97: 00:00:00
Q98: 9/15/2006 00:00:00 | U98: 2006-09-15 | V98: 00:00:00
Q99: 3/19/2007 00:00:00 | U99: 2007-03-19 | V99: 00:00:00
Q100: 4/11/2007 00:00:00 | U100: 2007-04-11 | V100: 00:00:00
Q101: 5/14/2007 00:00:00 | U101: 2007-05-14 | V101: 00:00:00
Q102: 8/1/2007 00:00:00 | U102: 2007-08-01 | V102: 00:00:00
Q103: 9/4/2007 00:00:00 | U103: 2007-09-04 | V103: 00:00:00
Q104: 7/30/2007 00:00:00 | U104: 2007-07-30 | V104: 00:00:00
Q105: 10/12/2007 00:00:00 | U105: 2007-10-12 | V105: 00:00:00
Q106: 10/2/2007 00:00:00 | U106: 2007-10-02 | V106: 00:00:00
Q107: 12/7/2007 00:00:00 | U107: 2007-12-07 | V107: 00:00:00
Q108: 5/15/2007 00:00:00 | U108: 2007-05-15 | V108: 00:00:00
Q109: 6/6/2007 00:00:00 | U109: 2007-06-06 | V109: 00:00:00
Q110: 7/9/2007 00:00:00 | U110: 2007-07-09 | V110: 00:00:00
Q111: 12/10/2007 00:00:00 | U111: 2007-12-10 | V111: 00:00:00
Q112: 11/6/2007 00:00:00 | U112: 2007-11-06 | V112: 00:00:00
Q113: 12/10/2007 00:00:00 | U113: 2007-12-10 | V113: 00:00:00
Q114: 12/14/2007 00:00:00 | U114: 2007-12-14 | V114: 00:00:00
Q115: 12/14/2007 00:00:00 | U115: 2007-12-14 | V115: 00:00:00
Q116: 9/17/2007 00:00:00 | U116: 2007-09-17 | V116: 00:00:00
Q117: 12/13/2007 00:00:00 | U117: 2007-12-13 | V117: 00:00:00
Q118: 12/13/2007 00:00:00 | U118: 2007-12-13 | V118: 00:00:00
Q119: 5/21/2007 00:00:00 | U119: 2007-05-21 | V119: 00:00:00
Q120: 10/10/2007 00:00:00 | U120: 2007-10-10 | V120: 00:00:00
Q121: 8/21/2007 00:00:00 | U121: 2007-08-21 | V121: 00:00:00
Q122: 11/15/2007 00:00:00 | U122: 2007-11-15 | V122: 00:00:00
Q123: 11/15/2007 00:00:00 | U123: 2007-11-15 | V123: 00:00:00
Q124: 10/2/2007 00:00:00 | U124: 2007-10-02 | V124: 00:00:00
Q125: 12/7/2007 00:00:00 | U125: 2007-12-07 | V125: 00:00:00
Q126: 12/7/2007 00:00:00 | U126: 2007-12-07 | V126: 00:00:00
Q127: 9/17/2007 00:00:00 | U127: 2007-09-17 | V127: 00:00:00
Q128: 10/10/2007 00:00:00 | U128: 2007-10-10 | V128: 00:00:00
Q129: 11/16/2007 00:00:00 | U129: 2007-11-16 | V129: 00:00:00
Q130: 11/16/2007 00:00:00 | U130: 2007-11-16 | V130: 00:00:00
Q131: 9/25/2007 00:00:00 | U131: 2007-09-25 | V131: 00:00:00
Q132: 12/6/2005 00:00:00 | U132: 2005-12-06 | V132: 00:00:00
Q133: 8/30/2007 00:00:00 | U133: 2007-08-30 | V133: 00:00:00
Q134: 8/30/2007 00:00:00 | U134: 2007-08-30 | V134: 00:00:00
Q135: 9/25/2007 00:00:00 | U135: 2007-09-25 | V135: 00:00:00
Q136: 8/1/2007 00:00:00 | U136: 2007-08-01 | V136: 00:00:00
Q137: 8/24/2006 00:00:00 | U137: 2006-08-24 | V137: 00:00:00
Q138: 12/7/2007 00:00:00 | U138: 2007-12-07 | V138: 00:00:00
Q139: 6/7/2007 00:00:00 | U139: 2007-06-07 | V139: 00:00:00
Q140: 5/4/2007 00:00:00 | U140: 2007-05-04 | V140: 00:00:00
Q141: 6/6/2007 00:00:00 | U141: 2007-06-06 | V141: 00:00:00
Q142: 10/2/2007 00:00:00 | U142: 2007-10-02 | V142: 00:00:00
Q143: 11/6/2007 00:00:00 | U143: 2007-11-06 | V143: 00:00:00
Q144: 7/10/2007 00:00:00 | U144: 2007-07-10 | V144: 00:00:00
Q145: 8/17/2007 00:00:00 | U145: 2007-08-17 | V145: 00:00:00
Q146: 10/2/2007 00:00:00 | U146: 2007-10-02 | V146: 00:00:00
Q147: 10/9/2007 00:00:00 | U147: 2007-10-09 | V147: 00:00:00
Q148: 12/14/2007 00:00:00 | U148: 2007-12-14 | V148: 00:00:00
Q149: 12/14/2007 00:00:00 | U149: 2007-12-14 | V149: 00:00:00
Q150: 7/9/2007 00:00:00 | U150: 2007-07-09 | V150: 00:00:00
Q151: 8/1/2007 00:00:00 | U151: 2007-08-01 | V151: 00:00:00
Q152: 8/8/2007 00:00:00 | U152: 2007-08-08 | V152: 00:00:00
Q153: 9/5/2007 00:00:00 | U153: 2007-09-05 | V153: 00:00:00
Q154: 9/5/2007 00:00:00 | U154: 2007-09-05 | V154: 00:00:00
Q155: 10/17/2007 00:00:00 | U155: 2007-10-17 | V155: 00:00:00
Q156: 11/12/2007 00:00:00 | U156: 2007-11-12 | V156: 00:00:00
Q157: 11/12/2007 00:00:00 | U157: 2007-11-12 | V157: 00:00:00
Q158: 9/17/2007 00:00:00 | U158: 2007-09-17 | V158: 00:00:00
Q159: 9/17/2007 00:00:00 | U159: 2007-09-17 | V159: 00:00:00
Q160: 1/16/2007 00:00:00 | U160: 2007-01-16 | V160: 00:00:00
Q161: 2/16/2007 00:00:00 | U161: 2007-02-16 | V161: 00:00:00
Q162: 5/9/2007 00:00:00 | U162: 2007-05-09 | V162: 00:00:00
Q163: 6/8/2007 00:00:00 | U163: 2007-06-08 | V163: 00:00:00
Q164: 11/15/2007 00:00:00 | U164: 2007-11-15 | V164: 00:00:00
Q165: 11/14/2006 00:00:00 | U165: 2006-11-14 | V165: 00:00:00
Q166: 8/2/2007 00:00:00 | U166: 2007-08-02 | V166: 00:00:00
Q167: 11/15/2007 00:00:00 | U167: 2007-11-15 | V167: 00:00:00
Q168: 7/13/2007 00:00:00 | U168: 2007-07-13 | V168: 00:00:00
Q169: 7/13/2007 00:00:00 | U169: 2007-07-13 | V169: 00:00:00
Q170: 10/10/2007 00:00:00 | U170: 2007-10-10 | V170: 00:00:00
Q171: 10/10/2007 00:00:00 | U171: 2007-10-10 | V171: 00:00:00
Q172: 4/19/2007 00:00:00 | U172: 2007-04-19 | V172: 00:00:00
Q173: 6/11/2007 00:00:00 | U173: 2007-06-11 | V173: 00:00:00
Q174: 6/11/2007 00:00:00 | U174: 2007-06-11 | V174: 00:00:00
Q175: 8/8/2007 00:00:00 | U175: 2007-08-08 | V175: 00:00:00
Q176: 9/5/2007 00:00:00 | U176: 2007-09-05 | V176: 00:00:00
Q177: 9/5/2007 00:00:00 | U177: 2007-09-05 | V177: 00:00:00
Q178: 7/17/2007 00:00:00 | U178: 2007-07-17 | V178: 00:00:00
Q179: 11/12/2007 00:00:00 | U179: 2007-11-12 | V179: 00:00:00
Q180: 3/16/2007 00:00:00 | U180: 2007-03-16 | V180: 00:00:00
Q181: 4/19/2007 00:00:00 | U181: 2007-04-19 | V181: 00:00:00
Q182: 5/9/2007 00:00:00 | U182: 2007-05-09 | V182: 00:00:00
Q183: 6/8/2007 00:00:00 | U183: 2007-06-08 | V183: 00:00:00
Q184: 10/5/2007 00:00:00 | U184: 2007-10-05 | V184: 00:00:00
Q185: 5/21/2007 00:00:00 | U185: 2007-05-21 | V185: 00:00:00
Q186: 7/13/2007 00:00:00 | U186: 2007-07-13 | V186: 00:00:00
Q187: 8/10/2007 00:00:00 | U187: 2007-08-10 | V187: 00:00:00
Q188: 9/17/2007 00:00:00 | U188: 2007-09-17 | V188: 00:00:00
Q189: 6/8/2007 00:00:00 | U189: 2007-06-08 | V189: 00:00:00
Q190: 12/13/2007 00:00:00 | U190: 2007-12-13 | V190: 00:00:00
Q191: 12/13/2007 00:00:00 | U191: 2007-12-13 | V191: 00:00:00
Q192: 8/2/2007 00:00:00 | U192: 2007-08-02 | V192: 00:00:00
Q193: 10/31/2007 00:00:00 | U193: 2007-10-31 | V193: 00:00:00
Q194: 10/31/2007 00:00:00 | U194: 2007-10-31 | V194: 00:00:00
Q195: 9/20/2006 00:00:00 | U195: 2006-09-20 | V195: 00:00:00
Q196: 8/2/2007 00:00:00 | U196: 2007-08-02 | V196: 00:00:00
Q197: 9/5/2007 00:00:00 | U197: 2007-09-05 | V197: 00:00:00
Q198: 9/5/2007 00:00:00 | U198: 2007-09-05 | V198: 00:00:00
Q199: 8/6/2007 00:00:00 | U199: 2007-08-06 | V199: 00:00:00
Q200: 11/8/2007 00:00:00 | U200: 2007-11-08 | V200: 00:00:00
... 625 more rows

Sheet TextFunctions(2)
A1: invoice date | B1: amount_1 | C1: amount_2 | D1: amount_3 | E1: amount_4 | F1: retainage | G1: age | H1: due_date | I1: Date Extraction | J1: Date Extraction | M1: invoice_date | Q1: invoice_date
A2: 3/19/2007 00:00:00 | B2: 0 | C2: 0 | D2: 0 | E2: 0 | F2: 965.93 | G2: 287 | H2: 4/10/2007 00:00:00 | I2: 2007-03-19 | J2: =VALUE(LEFT(A2,LEN(A2)-9)) -> 2007-03-19 | M2: 2007-03-19 | N2: 00:00:00 | Q2: 2007-03-19 | R2: 00:00:00
A3: 4/11/2007 00:00:00 | B3: 0 | C3: 0 | D3: 0 | E3: 0 | F3: 520.12 | G3: 264 | H3: 5/10/2007 00:00:00 | I3: 2007-04-11 | J3: 2007-04-11 | M3: 2007-04-11 | N3: 00:00:00 | Q3: 2007-04-11 | R3: 00:00:00
A4: 5/11/2007 00:00:00 | B4: 0 | C4: 0 | D4: 0 | E4: 0 | F4: 174.41 | G4: 234 | H4: 6/10/2007 00:00:00 | I4: 2007-05-11 | J4: 2007-05-11 | M4: 2007-05-11 | N4: 00:00:00 | Q4: 2007-05-11 | R4: 00:00:00
A5: 6/6/2007 00:00:00 | B5: 0 | C5: 0 | D5: 0 | E5: 0 | F5: 499.06 | G5: 208 | H5: 7/10/2007 00:00:00 | I5: 2007-06-06 | J5: 2007-06-06 | M5: 2007-06-06 | N5: 00:00:00 | Q5: 2007-06-06 | R5: 00:00:00
A6: 7/6/2007 00:00:00 | B6: 0 | C6: 0 | D6: 0 | E6: 0 | F6: 721.77 | G6: 178 | H6: 8/10/2007 00:00:00 | I6: 2007-07-06 | J6: 2007-07-06 | M6: 2007-07-06 | N6: 00:00:00 | Q6: 2007-07-06 | R6: 00:00:00
A7: 8/1/2007 00:00:00 | B7: 0 | C7: 0 | D7: 0 | E7: 0 | F7: 348.81 | G7: 152 | H7: 9/10/2007 00:00:00 | I7: 2007-08-01 | J7: 2007-08-01 | M7: 2007-08-01 | N7: 00:00:00 | Q7: 2007-08-01 | R7: 00:00:00
A8: 11/15/2007 00:00:00 | B8: 0 | C8: 6835.49 | D8: 0 | E8: 0 | F8: 359.76 | G8: 46 | H8: 12/10/2007 00:00:00 | I8: 2007-11-15 | J8: 2007-11-15 | M8: 2007-11-15 | N8: 00:00:00 | Q8: 2007-11-15 | R8: 00:00:00
A9: 12/7/2007 00:00:00 | B9: 8202.58 | C9: 0 | D9: 0 | E9: 0 | F9: 431.72 | G9: 24 | H9: 1/10/2008 00:00:00 | I9: 2007-12-07 | J9: 2007-12-07 | M9: 2007-12-07 | N9: 00:00:00 | Q9: 2007-12-07 | R9: 00:00:00
A10: 12/7/2007 00:00:00 | B10: 8202.58 | C10: 6835.49 | D10: 0 | E10: 0 | F10: 4021.58 | G10: 287 | H10: 1/10/2008 00:00:00 | I10: 2007-12-07 | J10: 2007-12-07 | M10: 2007-12-07 | N10: 00:00:00 | Q10: 2007-12-07 | R10: 00:00:00
A11: 7/10/2007 00:00:00 | B11: 0 | C11: 0 | D11: 0 | E11: 4872.26 | F11: 0 | G11: 174 | H11: 8/10/2007 00:00:00 | I11: 2007-07-10 | J11: 2007-07-10 | M11: 2007-07-10 | N11: 00:00:00 | Q11: 2007-07-10 | R11: 00:00:00
A12: 9/17/2007 00:00:00 | B12: 0 | C12: 0 | D12: 0 | E12: 0 | F12: 800.45 | G12: 105 | H12: 10/10/2007 00:00:00 | I12: 2007-09-17 | J12: 2007-09-17 | M12: 2007-09-17 | N12: 00:00:00 | Q12: 2007-09-17 | R12: 00:00:00
A13: 12/13/2007 00:00:00 | B13: 44961.98 | C13: 0 | D13: 0 | E13: 0 | F13: 2279.16 | G13: 18 | H13: 1/10/2008 00:00:00 | I13: 2007-12-13 | J13: 2007-12-13 | M13: 2007-12-13 | N13: 00:00:00 | Q13: 2007-12-13 | R13: 00:00:00
A14: 8/21/2007 00:00:00 | B14: 0 | C14: 0 | D14: 0 | E14: 0 | F14: 1243.5 | G14: 132 | H14: 9/10/2007 00:00:00 | I14: 2007-08-21 | J14: 2007-08-21 | M14: 2007-08-21 | N14: 00:00:00 | Q14: 2007-08-21 | R14: 00:00:00
A15: 12/13/2007 00:00:00 | B15: 44961.98 | C15: 0 | D15: 0 | E15: 4872.26 | F15: 4323.11 | G15: 174 | H15: 1/10/2008 00:00:00 | I15: 2007-12-13 | J15: 2007-12-13 | M15: 2007-12-13 | N15: 00:00:00 | Q15: 2007-12-13 | R15: 00:00:00
A16: 11/6/2007 00:00:00 | B16: 0 | C16: 0 | D16: 0 | E16: 0 | F16: 1210.43 | G16: 55 | H16: 12/10/2007 00:00:00 | I16: 2007-11-06 | J16: 2007-11-06 | M16: 2007-11-06 | N16: 00:00:00 | Q16: 2007-11-06 | R16: 00:00:00
A17: 12/7/2007 00:00:00 | B17: 11499.04 | C17: 0 | D17: 0 | E17: 0 | F17: 605.21 | G17: 24 | H17: 1/10/2008 00:00:00 | I17: 2007-12-07 | J17: 2007-12-07 | M17: 2007-12-07 | N17: 00:00:00 | Q17: 2007-12-07 | R17: 00:00:00
A18: 11/6/2007 00:00:00 | B18: 0 | C18: 225.92 | D18: 0 | E18: 0 | F18: 225.93 | G18: 55 | H18: 12/10/2007 00:00:00 | I18: 2007-11-06 | J18: 2007-11-06 | M18: 2007-11-06 | N18: 00:00:00 | Q18: 2007-11-06 | R18: 00:00:00
A19: 12/7/2007 00:00:00 | B19: 2146.29 | C19: 0 | D19: 0 | E19: 0 | F19: 112.96 | G19: 24 | H19: 1/10/2008 00:00:00 | I19: 2007-12-07 | J19: 2007-12-07 | M19: 2007-12-07 | N19: 00:00:00 | Q19: 2007-12-07 | R19: 00:00:00
A20: 12/7/2007 00:00:00 | B20: 13645.33 | C20: 225.92 | D20: 0 | E20: 0 | F20: 2154.53 | G20: 55 | H20: 1/10/2008 00:00:00 | I20: 2007-12-07 | J20: 2007-12-07 | M20: 2007-12-07 | N20: 00:00:00 | Q20: 2007-12-07 | R20: 00:00:00
A21: 9/5/2007 00:00:00 | B21: 0 | C21: 0 | D21: 0 | E21: 0 | F21: 799.22 | G21: 117 | H21: 10/10/2007 00:00:00 | I21: 2007-09-05 | J21: 2007-09-05 | M21: 2007-09-05 | N21: 00:00:00 | Q21: 2007-09-05 | R21: 00:00:00
A22: 10/2/2007 00:00:00 | B22: 0 | C22: 0 | D22: 0 | E22: 0 | F22: 1065.62 | G22: 90 | H22: 11/10/2007 00:00:00 | I22: 2007-10-02 | J22: 2007-10-02 | M22: 2007-10-02 | N22: 00:00:00 | Q22: 2007-10-02 | R22: 00:00:00
A23: 11/7/2007 00:00:00 | B23: 0 | C23: 15543.22 | D23: 0 | E23: 0 | F23: 1727.03 | G23: 54 | H23: 12/10/2007 00:00:00 | I23: 2007-11-07 | J23: 2007-11-07 | M23: 2007-11-07 | N23: 00:00:00 | Q23: 2007-11-07 | R23: 00:00:00
A24: 12/7/2007 00:00:00 | B24: 16605.76 | C24: 0 | D24: 0 | E24: 0 | F24: 1845.09 | G24: 24 | H24: 1/10/2008 00:00:00 | I24: 2007-12-07 | J24: 2007-12-07 | M24: 2007-12-07 | N24: 00:00:00 | Q24: 2007-12-07 | R24: 00:00:00
A25: 10/12/2007 00:00:00 | B25: 0 | C25: 0 | D25: 10014.3 | E25: 0 | F25: 1112.7 | G25: 80 | H25: 11/10/2007 00:00:00 | I25: 2007-10-12 | J25: 2007-10-12 | M25: 2007-10-12 | N25: 00:00:00 | Q25: 2007-10-12 | R25: 00:00:00
A26: 12/7/2007 00:00:00 | B26: 16605.76 | C26: 15543.22 | D26: 10014.3 | E26: 0 | F26: 6549.66 | G26: 117 | H26: 1/10/2008 00:00:00 | I26: 2007-12-07 | J26: 2007-12-07 | M26: 2007-12-07 | N26: 00:00:00 | Q26: 2007-12-07 | R26: 00:00:00
A27: 4/13/2007 00:00:00 | B27: 0 | C27: 0 | D27: 0 | E27: 0 | F27: 177.8 | G27: 262 | H27: 5/10/2007 00:00:00 | I27: 2007-04-13 | J27: 2007-04-13 | M27: 2007-04-13 | N27: 00:00:00 | Q27: 2007-04-13 | R27: 00:00:00
A28: 4/13/2007 00:00:00 | B28: 0 | C28: 0 | D28: 0 | E28: 0 | F28: 177.8 | G28: 262 | H28: 5/10/2007 00:00:00 | I28: 2007-04-13 | J28: 2007-04-13 | M28: 2007-04-13 | N28: 00:00:00 | Q28: 2007-04-13 | R28: 00:00:00
A29: 11/6/2007 00:00:00 | B29: 0 | C29: 560 | D29: 0 | E29: 0 | F29: 0 | G29: 55 | H29: 12/10/2007 00:00:00 | I29: 2007-11-06 | J29: 2007-11-06 | M29: 2007-11-06 | N29: 00:00:00 | Q29: 2007-11-06 | R29: 00:00:00
A30: 11/6/2007 00:00:00 | B30: 0 | C30: 560 | D30: 0 | E30: 0 | F30: 0 | G30: 55 | H30: 12/10/2007 00:00:00 | I30: 2007-11-06 | J30: 2007-11-06 | M30: 2007-11-06 | N30: 00:00:00 | Q30: 2007-11-06 | R30: 00:00:00
A31: 1/16/2007 00:00:00 | B31: 0 | C31: 0 | D31: 0 | E31: 0 | F31: 122.18 | G31: 349 | H31: 2/10/2007 00:00:00 | I31: 2007-01-16 | J31: 2007-01-16 | M31: 2007-01-16 | N31: 00:00:00 | Q31: 2007-01-16 | R31: 00:00:00
A32: 2/9/2007 00:00:00 | B32: 0 | C32: 0 | D32: 0 | E32: 0 | F32: 200.68 | G32: 325 | H32: 3/10/2007 00:00:00 | I32: 2007-02-09 | J32: 2007-02-09 | M32: 2007-02-09 | N32: 00:00:00 | Q32: 2007-02-09 | R32: 00:00:00
A33: 2/21/2006 00:00:00 | B33: 0 | C33: 0 | D33: 0 | E33: 0 | F33: 814.5 | G33: 678 | H33: 3/10/2006 00:00:00 | I33: 2006-02-21 | J33: 2006-02-21 | M33: 2006-02-21 | N33: 00:00:00 | Q33: 2006-02-21 | R33: 00:00:00
A34: 3/15/2006 00:00:00 | B34: 0 | C34: 0 | D34: 0 | E34: 0 | F34: 1221.75 | G34: 656 | H34: 4/10/2006 00:00:00 | I34: 2006-03-15 | J34: 2006-03-15 | M34: 2006-03-15 | N34: 00:00:00 | Q34: 2006-03-15 | R34: 00:00:00
A35: 4/17/2006 00:00:00 | B35: 0 | C35: 0 | D35: 0 | E35: 0 | F35: 789.2 | G35: 623 | H35: 5/10/2006 00:00:00 | I35: 2006-04-17 | J35: 2006-04-17 | M35: 2006-04-17 | N35: 00:00:00 | Q35: 2006-04-17 | R35: 00:00:00
A36: 5/16/2006 00:00:00 | B36: 0 | C36: 0 | D36: 0 | E36: 0 | F36: 755.47 | G36: 594 | H36: 6/10/2006 00:00:00 | I36: 2006-05-16 | J36: 2006-05-16 | M36: 2006-05-16 | N36: 00:00:00 | Q36: 2006-05-16 | R36: 00:00:00
A37: 7/11/2006 00:00:00 | B37: 0 | C37: 0 | D37: 0 | E37: 0 | F37: 377.85 | G37: 538 | H37: 8/10/2006 00:00:00 | I37: 2006-07-11 | J37: 2006-07-11 | M37: 2006-07-11 | N37: 00:00:00 | Q37: 2006-07-11 | R37: 00:00:00
A38: 8/14/2006 00:00:00 | B38: 0 | C38: 0 | D38: 0 | E38: 0 | F38: 75.9 | G38: 504 | H38: 9/10/2006 00:00:00 | I38: 2006-08-14 | J38: 2006-08-14 | M38: 2006-08-14 | N38: 00:00:00 | Q38: 2006-08-14 | R38: 00:00:00
A39: 9/5/2006 00:00:00 | B39: 0 | C39: 0 | D39: 0 | E39: -59.54 | F39: 0 | G39: 482 | H39: 10/10/2006 00:00:00 | I39: 2006-09-05 | J39: 2006-09-05 | M39: 2006-09-05 | N39: 00:00:00 | Q39: 2006-09-05 | R39: 00:00:00
A40: 3/16/2007 00:00:00 | B40: 0 | C40: 0 | D40: 0 | E40: 0 | F40: 1002.73 | G40: 290 | H40: 4/10/2007 00:00:00 | I40: 2007-03-16 | J40: 2007-03-16 | M40: 2007-03-16 | N40: 00:00:00 | Q40: 2007-03-16 | R40: 00:00:00
A41: 5/17/2007 00:00:00 | B41: 0 | C41: 0 | D41: 0 | E41: 0 | F41: 371.38 | G41: 228 | H41: 6/10/2007 00:00:00 | I41: 2007-05-17 | J41: 2007-05-17 | M41: 2007-05-17 | N41: 00:00:00 | Q41: 2007-05-17 | R41: 00:00:00
A42: 6/18/2007 00:00:00 | B42: 0 | C42: 0 | D42: 0 | E42: 0 | F42: 928.45 | G42: 196 | H42: 7/10/2007 00:00:00 | I42: 2007-06-18 | J42: 2007-06-18 | M42: 2007-06-18 | N42: 00:00:00 | Q42: 2007-06-18 | R42: 00:00:00
A43: 1/16/2007 00:00:00 | B43: 0 | C43: 0 | D43: 0 | E43: 0 | F43: 1055.06 | G43: 349 | H43: 2/10/2007 00:00:00 | I43: 2007-01-16 | J43: 2007-01-16 | M43: 2007-01-16 | N43: 00:00:00 | Q43: 2007-01-16 | R43: 00:00:00
A44: 2/16/2007 00:00:00 | B44: 0 | C44: 0 | D44: 0 | E44: 0 | F44: 1477.09 | G44: 318 | H44: 3/10/2007 00:00:00 | I44: 2007-02-16 | J44: 2007-02-16 | M44: 2007-02-16 | N44: 00:00:00 | Q44: 2007-02-16 | R44: 00:00:00
A45: 3/16/2007 00:00:00 | B45: 0 | C45: 0 | D45: 0 | E45: 0 | F45: 1688.1 | G45: 290 | H45: 4/10/2007 00:00:00 | I45: 2007-03-16 | J45: 2007-03-16 | M45: 2007-03-16 | N45: 00:00:00 | Q45: 2007-03-16 | R45: 00:00:00
A46: 5/17/2007 00:00:00 | B46: 0 | C46: 0 | D46: 0 | E46: 0 | F46: 14.35 | G46: 228 | H46: 6/10/2007 00:00:00 | I46: 2007-05-17 | J46: 2007-05-17 | M46: 2007-05-17 | N46: 00:00:00 | Q46: 2007-05-17 | R46: 00:00:00
A47: 6/18/2007 00:00:00 | B47: 0 | C47: 0 | D47: 0 | E47: -59.54 | F47: 10894.69 | G47: 678 | H47: 7/10/2007 00:00:00 | I47: 2007-06-18 | J47: 2007-06-18 | M47: 2007-06-18 | N47: 00:00:00 | Q47: 2007-06-18 | R47: 00:00:00
A48: 7/13/2007 00:00:00 | B48: 0 | C48: 0 | D48: 0 | E48: 0 | F48: 1279.9 | G48: 171 | H48: 8/10/2007 00:00:00 | I48: 2007-07-13 | J48: 2007-07-13 | M48: 2007-07-13 | N48: 00:00:00 | Q48: 2007-07-13 | R48: 00:00:00
A49: 7/13/2007 00:00:00 | B49: 0 | C49: 0 | D49: 0 | E49: 0 | F49: 1279.9 | G49: 171 | H49: 8/10/2007 00:00:00 | I49: 2007-07-13 | J49: 2007-07-13 | M49: 2007-07-13 | N49: 00:00:00 | Q49: 2007-07-13 | R49: 00:00:00
A50: 12/15/2006 00:00:00 | B50: 0 | C50: 0 | D50: 0 | E50: 3578.7 | F50: 267.3 | G50: 381 | H50: 1/10/2007 00:00:00 | I50: 2006-12-15 | J50: 2006-12-15 | M50: 2006-12-15 | N50: 00:00:00 | Q50: 2006-12-15 | R50: 00:00:00
A51: 7/9/2007 00:00:00 | B51: 0 | C51: 0 | D51: 0 | E51: 0 | F51: 998.7 | G51: 175 | H51: 8/10/2007 00:00:00 | I51: 2007-07-09 | J51: 2007-07-09 | M51: 2007-07-09 | N51: 00:00:00 | Q51: 2007-07-09 | R51: 00:00:00
A52: 7/9/2007 00:00:00 | B52: 0 | C52: 0 | D52: 0 | E52: 3578.7 | F52: 1266 | G52: 381 | H52: 8/10/2007 00:00:00 | I52: 2007-07-09 | J52: 2007-07-09 | M52: 2007-07-09 | N52: 00:00:00 | Q52: 2007-07-09 | R52: 00:00:00
A53: 7/13/2007 00:00:00 | B53: 0 | C53: 0 | D53: 0 | E53: 0 | F53: 426.4 | G53: 171 | H53: 8/10/2007 00:00:00 | I53: 2007-07-13 | J53: 2007-07-13 | M53: 2007-07-13 | N53: 00:00:00 | Q53: 2007-07-13 | R53: 00:00:00
A54: 7/13/2007 00:00:00 | B54: 0 | C54: 0 | D54: 0 | E54: 0 | F54: 426.4 | G54: 171 | H54: 8/10/2007 00:00:00 | I54: 2007-07-13 | J54: 2007-07-13 | M54: 2007-07-13 | N54: 00:00:00 | Q54: 2007-07-13 | R54: 00:00:00
A55: 10/15/2007 00:00:00 | B55: 0 | C55: 0 | D55: 7910.81 | E55: 0 | F55: 0 | G55: 77 | H55: 11/10/2007 00:00:00 | I55: 2007-10-15 | J55: 2007-10-15 | M55: 2007-10-15 | N55: 00:00:00 | Q55: 2007-10-15 | R55: 00:00:00
A56: 2/14/2007 00:00:00 | B56: 0 | C56: 0 | D56: 0 | E56: 0 | F56: 2841.82 | G56: 320 | H56: 3/10/2007 00:00:00 | I56: 2007-02-14 | J56: 2007-02-14 | M56: 2007-02-14 | N56: 00:00:00 | Q56: 2007-02-14 | R56: 00:00:00
A57: 4/11/2007 00:00:00 | B57: 0 | C57: 0 | D57: 0 | E57: 0 | F57: 1077.83 | G57: 264 | H57: 5/10/2007 00:00:00 | I57: 2007-04-11 | J57: 2007-04-11 | M57: 2007-04-11 | N57: 00:00:00 | Q57: 2007-04-11 | R57: 00:00:00
A58: 5/4/2007 00:00:00 | B58: 0 | C58: 0 | D58: 0 | E58: 0 | F58: 2510.89 | G58: 241 | H58: 6/10/2007 00:00:00 | I58: 2007-05-04 | J58: 2007-05-04 | M58: 2007-05-04 | N58: 00:00:00 | Q58: 2007-05-04 | R58: 00:00:00
A59: 6/6/2007 00:00:00 | B59: 0 | C59: 0 | D59: 0 | E59: 0 | F59: 490.03 | G59: 208 | H59: 7/10/2007 00:00:00 | I59: 2007-06-06 | J59: 2007-06-06 | M59: 2007-06-06 | N59: 00:00:00 | Q59: 2007-06-06 | R59: 00:00:00
A60: 7/6/2007 00:00:00 | B60: 0 | C60: 0 | D60: 0 | E60: 0 | F60: 857.41 | G60: 178 | H60: 8/10/2007 00:00:00 | I60: 2007-07-06 | J60: 2007-07-06 | M60: 2007-07-06 | N60: 00:00:00 | Q60: 2007-07-06 | R60: 00:00:00
A61: 8/1/2007 00:00:00 | B61: 0 | C61: 0 | D61: 0 | E61: 0 | F61: 428.7 | G61: 152 | H61: 9/10/2007 00:00:00 | I61: 2007-08-01 | J61: 2007-08-01 | M61: 2007-08-01 | N61: 00:00:00 | Q61: 2007-08-01 | R61: 00:00:00
A62: 12/19/2007 00:00:00 | B62: 1166.6 | C62: 0 | D62: 0 | E62: 0 | F62: 61.4 | G62: 12 | H62: 1/10/2008 00:00:00 | I62: 2007-12-19 | J62: 2007-12-19 | M62: 2007-12-19 | N62: 00:00:00 | Q62: 2007-12-19 | R62: 00:00:00
A63: 12/19/2007 00:00:00 | B63: 1166.6 | C63: 0 | D63: 7910.81 | E63: 0 | F63: 8268.08 | G63: 320 | H63: 1/10/2008 00:00:00 | I63: 2007-12-19 | J63: 2007-12-19 | M63: 2007-12-19 | N63: 00:00:00 | Q63: 2007-12-19 | R63: 00:00:00
A64: 10/12/2007 00:00:00 | B64: 0 | C64: 0 | D64: 0 | E64: 0 | F64: 1488.1 | G64: 80 | H64: 11/10/2007 00:00:00 | I64: 2007-10-12 | J64: 2007-10-12 | M64: 2007-10-12 | N64: 00:00:00 | Q64: 2007-10-12 | R64: 00:00:00
A65: 10/12/2007 00:00:00 | B65: 0 | C65: 0 | D65: 0 | E65: 0 | F65: 1488.1 | G65: 80 | H65: 11/10/2007 00:00:00 | I65: 2007-10-12 | J65: 2007-10-12 | M65: 2007-10-12 | N65: 00:00:00 | Q65: 2007-10-12 | R65: 00:00:00
A66: 11/6/2007 00:00:00 | B66: 0 | C66: 2547 | D66: 0 | E66: 0 | F66: 0 | G66: 55 | H66: 12/10/2007 00:00:00 | I66: 2007-11-06 | J66: =VALUE(LEFT(A66,LEN(A66)-9)) -> 2007-11-06 | M66: 2007-11-06 | N66: 00:00:00 | Q66: 2007-11-06 | R66: 00:00:00
A67: 11/6/2007 00:00:00 | B67: 0 | C67: 2547 | D67: 0 | E67: 0 | F67: 0 | G67: 55 | H67: 12/10/2007 00:00:00 | I67: 2007-11-06 | J67: 2007-11-06 | M67: 2007-11-06 | N67: 00:00:00 | Q67: 2007-11-06 | R67: 00:00:00
A68: 7/23/2007 00:00:00 | B68: 0 | C68: 0 | D68: 0 | E68: 6075.46 | F68: 0 | G68: 161 | H68: 8/10/2007 00:00:00 | I68: 2007-07-23 | J68: 2007-07-23 | M68: 2007-07-23 | N68: 00:00:00 | Q68: 2007-07-23 | R68: 00:00:00
A69: 7/13/2007 00:00:00 | B69: 0 | C69: 0 | D69: 0 | E69: 0 | F69: 638.7 | G69: 171 | H69: 8/10/2007 00:00:00 | I69: 2007-07-13 | J69: 2007-07-13 | M69: 2007-07-13 | N69: 00:00:00 | Q69: 2007-07-13 | R69: 00:00:00
A70: 8/16/2007 00:00:00 | B70: 0 | C70: 0 | D70: 0 | E70: 0 | F70: 399.19 | G70: 137 | H70: 9/10/2007 00:00:00 | I70: 2007-08-16 | J70: 2007-08-16 | M70: 2007-08-16 | N70: 00:00:00 | Q70: 2007-08-16 | R70: 00:00:00
A71: 9/17/2007 00:00:00 | B71: 0 | C71: 0 | D71: 0 | E71: 0 | F71: 558.86 | G71: 105 | H71: 10/10/2007 00:00:00 | I71: 2007-09-17 | J71: 2007-09-17 | M71: 2007-09-17 | N71: 00:00:00 | Q71: 2007-09-17 | R71: 00:00:00
A72: 10/25/2007 00:00:00 | B72: 0 | C72: 0 | D72: 0 | E72: 0 | F72: 453.25 | G72: 67 | H72: 11/10/2007 00:00:00 | I72: 2007-10-25 | J72: 2007-10-25 | M72: 2007-10-25 | N72: 00:00:00 | Q72: 2007-10-25 | R72: 00:00:00
A73: 10/25/2007 00:00:00 | B73: 0 | C73: 0 | D73: 0 | E73: 6075.46 | F73: 2050 | G73: 171 | H73: 11/10/2007 00:00:00 | I73: 2007-10-25 | J73: 2007-10-25 | M73: 2007-10-25 | N73: 00:00:00 | Q73: 2007-10-25 | R73: 00:00:00
A74: 7/24/2007 00:00:00 | B74: 0 | C74: 0 | D74: 0 | E74: 189.3 | F74: 0 | G74: 160 | H74: 8/10/2007 00:00:00 | I74: 2007-07-24 | J74: 2007-07-24 | M74: 2007-07-24 | N74: 00:00:00 | Q74: 2007-07-24 | R74: 00:00:00
A75: 9/17/2007 00:00:00 | B75: 0 | C75: 0 | D75: 0 | E75: 0 | F75: 3847.3 | G75: 105 | H75: 10/10/2007 00:00:00 | I75: 2007-09-17 | J75: 2007-09-17 | M75: 2007-09-17 | N75: 00:00:00 | Q75: 2007-09-17 | R75: 00:00:00
A76: 10/10/2007 00:00:00 | B76: 0 | C76: 0 | D76: 0 | E76: 0 | F76: 286.6 | G76: 82 | H76: 11/10/2007 00:00:00 | I76: 2007-10-10 | J76: 2007-10-10 | M76: 2007-10-10 | N76: 00:00:00 | Q76: 2007-10-10 | R76: 00:00:00
A77: 10/10/2007 00:00:00 | B77: 0 | C77: 0 | D77: 0 | E77: 189.3 | F77: 4133.9 | G77: 160 | H77: 11/10/2007 00:00:00 | I77: 2007-10-10 | J77: 2007-10-10 | M77: 2007-10-10 | N77: 00:00:00 | Q77: 2007-10-10 | R77: 00:00:00
A78: 7/17/2007 00:00:00 | B78: 0 | C78: 0 | D78: 0 | E78: 0 | F78: 199.05 | G78: 167 | H78: 8/10/2007 00:00:00 | I78: 2007-07-17 | J78: 2007-07-17 | M78: 2007-07-17 | N78: 00:00:00 | Q78: 2007-07-17 | R78: 00:00:00
A79: 9/11/2007 00:00:00 | B79: 0 | C79: 0 | D79: 0 | E79: 0 | F79: 43.35 | G79: 111 | H79: 10/10/2007 00:00:00 | I79: 2007-09-11 | J79: 2007-09-11 | M79: 2007-09-11 | N79: 00:00:00 | Q79: 2007-09-11 | R79: 00:00:00
A80: 9/11/2007 00:00:00 | B80: 0 | C80: 0 | D80: 0 | E80: 0 | F80: 242.4 | G80: 167 | H80: 10/10/2007 00:00:00 | I80: 2007-09-11 | J80: 2007-09-11 | M80: 2007-09-11 | N80: 00:00:00 | Q80: 2007-09-11 | R80: 00:00:00
A81: 6/22/2007 00:00:00 | B81: 0 | C81: 0 | D81: 0 | E81: 0 | F81: 522.84 | G81: 192 | H81: 7/10/2007 00:00:00 | I81: 2007-06-22 | J81: 2007-06-22 | M81: 2007-06-22 | N81: 00:00:00 | Q81: 2007-06-22 | R81: 00:00:00
A82: 7/18/2007 00:00:00 | B82: 0 | C82: 0 | D82: 0 | E82: 0 | F82: 348.56 | G82: 166 | H82: 8/10/2007 00:00:00 | I82: 2007-07-18 | J82: 2007-07-18 | M82: 2007-07-18 | N82: 00:00:00 | Q82: 2007-07-18 | R82: 00:00:00
A83: 7/18/2007 00:00:00 | B83: 0 | C83: 0 | D83: 0 | E83: 0 | F83: 871.4 | G83: 192 | H83: 8/10/2007 00:00:00 | I83: 2007-07-18 | J83: 2007-07-18 | M83: 2007-07-18 | N83: 00:00:00 | Q83: 2007-07-18 | R83: 00:00:00
A84: 11/12/2007 00:00:00 | B84: 0 | C84: 8983.8 | D84: 0 | E84: 0 | F84: 781.2 | G84: 49 | H84: 12/10/2007 00:00:00 | I84: 2007-11-12 | J84: 2007-11-12 | M84: 2007-11-12 | N84: 00:00:00 | Q84: 2007-11-12 | R84: 00:00:00
A85: 11/12/2007 00:00:00 | B85: 0 | C85: 8983.8 | D85: 0 | E85: 0 | F85: 781.2 | G85: 49 | H85: 12/10/2007 00:00:00 | I85: 2007-11-12 | J85: 2007-11-12 | M85: 2007-11-12 | N85: 00:00:00 | Q85: 2007-11-12 | R85: 00:00:00
A86: 2/14/2007 00:00:00 | B86: 0 | C86: 0 | D86: 0 | E86: 18 | F86: 0 | G86: 320 | H86: 3/10/2007 00:00:00 | I86: 2007-02-14 | J86: 2007-02-14 | M86: 2007-02-14 | N86: 00:00:00 | Q86: 2007-02-14 | R86: 00:00:00
A87: 8/30/2007 00:00:00 | B87: 0 | C87: 0 | D87: 0 | E87: 4931 | F87: 0 | G87: 123 | H87: 10/10/2007 00:00:00 | I87: 2007-08-30 | J87: 2007-08-30 | M87: 2007-08-30 | N87: 00:00:00 | Q87: 2007-08-30 | R87: 00:00:00
A88: 4/11/2007 00:00:00 | B88: 0 | C88: 0 | D88: 0 | E88: 0 | F88: 866.01 | G88: 264 | H88: 5/10/2007 00:00:00 | I88: 2007-04-11 | J88: 2007-04-11 | M88: 2007-04-11 | N88: 00:00:00 | Q88: 2007-04-11 | R88: 00:00:00
A89: 5/4/2007 00:00:00 | B89: 0 | C89: 0 | D89: 0 | E89: 0 | F89: 1225.72 | G89: 241 | H89: 6/10/2007 00:00:00 | I89: 2007-05-04 | J89: 2007-05-04 | M89: 2007-05-04 | N89: 00:00:00 | Q89: 2007-05-04 | R89: 00:00:00
A90: 6/6/2007 00:00:00 | B90: 0 | C90: 0 | D90: 0 | E90: 0 | F90: 690.15 | G90: 208 | H90: 7/10/2007 00:00:00 | I90: 2007-06-06 | J90: 2007-06-06 | M90: 2007-06-06 | N90: 00:00:00 | Q90: 2007-06-06 | R90: 00:00:00
A91: 7/6/2007 00:00:00 | B91: 0 | C91: 0 | D91: 0 | E91: 0 | F91: 521.6 | G91: 178 | H91: 8/10/2007 00:00:00 | I91: 2007-07-06 | J91: 2007-07-06 | M91: 2007-07-06 | N91: 00:00:00 | Q91: 2007-07-06 | R91: 00:00:00
A92: 8/1/2007 00:00:00 | B92: 0 | C92: 0 | D92: 0 | E92: 0 | F92: 160.56 | G92: 152 | H92: 9/10/2007 00:00:00 | I92: 2007-08-01 | J92: 2007-08-01 | M92: 2007-08-01 | N92: 00:00:00 | Q92: 2007-08-01 | R92: 00:00:00
A93: 10/11/2007 00:00:00 | B93: 0 | C93: 0 | D93: 365.45 | E93: 0 | F93: 126.05 | G93: 81 | H93: 11/10/2007 00:00:00 | I93: 2007-10-11 | J93: 2007-10-11 | M93: 2007-10-11 | N93: 00:00:00 | Q93: 2007-10-11 | R93: 00:00:00
A94: 10/12/2007 00:00:00 | B94: 0 | C94: 0 | D94: -252.7 | E94: 0 | F94: -13.3 | G94: 80 | H94: 11/10/2007 00:00:00 | I94: 2007-10-12 | J94: 2007-10-12 | M94: 2007-10-12 | N94: 00:00:00 | Q94: 2007-10-12 | R94: 00:00:00
A95: 11/6/2007 00:00:00 | B95: 0 | C95: 1424.05 | D95: 0 | E95: 0 | F95: 74.95 | G95: 55 | H95: 12/10/2007 00:00:00 | I95: 2007-11-06 | J95: 2007-11-06 | M95: 2007-11-06 | N95: 00:00:00 | Q95: 2007-11-06 | R95: 00:00:00
A96: 11/16/2007 00:00:00 | B96: 0 | C96: -1424.05 | D96: 0 | E96: 0 | F96: -74.95 | G96: 45 | H96: 12/10/2007 00:00:00 | I96: 2007-11-16 | J96: 2007-11-16 | M96: 2007-11-16 | N96: 00:00:00 | Q96: 2007-11-16 | R96: 00:00:00
A97: 12/7/2007 00:00:00 | B97: 1424.05 | C97: 0 | D97: 0 | E97: 0 | F97: 74.95 | G97: 24 | H97: 1/10/2008 00:00:00 | I97: 2007-12-07 | J97: 2007-12-07 | M97: 2007-12-07 | N97: 00:00:00 | Q97: 2007-12-07 | R97: 00:00:00
A98: 9/15/2006 00:00:00 | B98: 0 | C98: 0 | D98: 0 | E98: 0 | F98: 137.11 | G98: 472 | H98: 10/10/2006 00:00:00 | I98: 2006-09-15 | J98: 2006-09-15 | M98: 2006-09-15 | N98: 00:00:00 | Q98: 2006-09-15 | R98: 00:00:00
A99: 3/19/2007 00:00:00 | B99: 0 | C99: 0 | D99: 0 | E99: 0 | F99: 8.6 | G99: 287 | H99: 4/10/2007 00:00:00 | I99: 2007-03-19 | J99: 2007-03-19 | M99: 2007-03-19 | N99: 00:00:00 | Q99: 2007-03-19 | R99: 00:00:00
A100: 4/11/2007 00:00:00 | B100: 0 | C100: 0 | D100: 0 | E100: 0 | F100: 337.17 | G100: 264 | H100: 5/10/2007 00:00:00 | I100: 2007-04-11 | J100: 2007-04-11 | M100: 2007-04-11 | N100: 00:00:00 | Q100: 2007-04-11 | R100: 00:00:00
A101: 5/14/2007 00:00:00 | B101: 0 | C101: 0 | D101: 0 | E101: 0 | F101: 893.62 | G101: 231 | H101: 6/10/2007 00:00:00 | I101: 2007-05-14 | J101: 2007-05-14 | M101: 2007-05-14 | N101: 00:00:00 | Q101: 2007-05-14 | R101: 00:00:00
A102: 8/1/2007 00:00:00 | B102: 0 | C102: 0 | D102: 0 | E102: 0 | F102: 21.7 | G102: 152 | H102: 9/10/2007 00:00:00 | I102: 2007-08-01 | J102: 2007-08-01 | M102: 2007-08-01 | N102: 00:00:00 | Q102: 2007-08-01 | R102: 00:00:00
A103: 9/4/2007 00:00:00 | B103: 0 | C103: 0 | D103: 0 | E103: 0 | F103: 46.24 | G103: 118 | H103: 10/10/2007 00:00:00 | I103: 2007-09-04 | J103: 2007-09-04 | M103: 2007-09-04 | N103: 00:00:00 | Q103: 2007-09-04 | R103: 00:00:00
A104: 7/30/2007 00:00:00 | B104: 0 | C104: 0 | D104: 0 | E104: 1552.35 | F104: 0 | G104: 154 | H104: 9/10/2007 00:00:00 | I104: 2007-07-30 | J104: 2007-07-30 | M104: 2007-07-30 | N104: 00:00:00 | Q104: 2007-07-30 | R104: 00:00:00
A105: 10/12/2007 00:00:00 | B105: 0 | C105: 0 | D105: 0 | E105: 0 | F105: 195.2 | G105: 80 | H105: 11/10/2007 00:00:00 | I105: 2007-10-12 | J105: 2007-10-12 | M105: 2007-10-12 | N105: 00:00:00 | Q105: 2007-10-12 | R105: 00:00:00
A106: 10/2/2007 00:00:00 | B106: 0 | C106: 0 | D106: 1800 | E106: 0 | F106: 0 | G106: 90 | H106: 11/10/2007 00:00:00 | I106: 2007-10-02 | J106: 2007-10-02 | M106: 2007-10-02 | N106: 00:00:00 | Q106: 2007-10-02 | R106: 00:00:00
A107: 12/7/2007 00:00:00 | B107: 4484.5 | C107: 0 | D107: 0 | E107: 0 | F107: 0 | G107: 24 | H107: 1/10/2008 00:00:00 | I107: 2007-12-07 | J107: 2007-12-07 | M107: 2007-12-07 | N107: 00:00:00 | Q107: 2007-12-07 | R107: 00:00:00
A108: 5/15/2007 00:00:00 | B108: 0 | C108: 0 | D108: 0 | E108: 0 | F108: 1131.13 | G108: 230 | H108: 6/10/2007 00:00:00 | I108: 2007-05-15 | J108: 2007-05-15 | M108: 2007-05-15 | N108: 00:00:00 | Q108: 2007-05-15 | R108: 00:00:00
A109: 6/6/2007 00:00:00 | B109: 0 | C109: 0 | D109: 0 | E109: 0 | F109: 2714.7 | G109: 208 | H109: 7/10/2007 00:00:00 | I109: 2007-06-06 | J109: 2007-06-06 | M109: 2007-06-06 | N109: 00:00:00 | Q109: 2007-06-06 | R109: 00:00:00
A110: 7/9/2007 00:00:00 | B110: 0 | C110: 0 | D110: 0 | E110: 0 | F110: 678.68 | G110: 175 | H110: 8/10/2007 00:00:00 | I110: 2007-07-09 | J110: 2007-07-09 | M110: 2007-07-09 | N110: 00:00:00 | Q110: 2007-07-09 | R110: 00:00:00
A111: 12/10/2007 00:00:00 | B111: 3385.8 | C111: 0 | D111: 0 | E111: 0 | F111: 178.2 | G111: 21 | H111: 1/10/2008 00:00:00 | I111: 2007-12-10 | J111: 2007-12-10 | M111: 2007-12-10 | N111: 00:00:00 | Q111: 2007-12-10 | R111: 00:00:00
A112: 11/6/2007 00:00:00 | B112: 0 | C112: 2831 | D112: 0 | E112: 0 | F112: 0 | G112: 55 | H112: 12/10/2007 00:00:00 | I112: 2007-11-06 | J112: 2007-11-06 | M112: 2007-11-06 | N112: 00:00:00 | Q112: 2007-11-06 | R112: 00:00:00
A113: 12/10/2007 00:00:00 | B113: 9294.35 | C113: 2831 | D113: 1912.75 | E113: 6501.35 | F113: 9994.09 | G113: 472 | H113: 1/10/2008 00:00:00 | I113: 2007-12-10 | J113: 2007-12-10 | M113: 2007-12-10 | N113: 00:00:00 | Q113: 2007-12-10 | R113: 00:00:00
A114: 12/14/2007 00:00:00 | B114: 2287 | C114: 0 | D114: 0 | E114: 0 | F114: 0 | G114: 17 | H114: 1/10/2008 00:00:00 | I114: 2007-12-14 | J114: 2007-12-14 | M114: 2007-12-14 | N114: 00:00:00 | Q114: 2007-12-14 | R114: 00:00:00
A115: 12/14/2007 00:00:00 | B115: 2287 | C115: 0 | D115: 0 | E115: 0 | F115: 0 | G115: 17 | H115: 1/10/2008 00:00:00 | I115: 2007-12-14 | J115: 2007-12-14 | M115: 2007-12-14 | N115: 00:00:00 | Q115: 2007-12-14 | R115: 00:00:00
A116: 9/17/2007 00:00:00 | B116: 0 | C116: 0 | D116: 0 | E116: 18308.7 | F116: 2034.3 | G116: 105 | H116: 10/10/2007 00:00:00 | I116: 2007-09-17 | J116: 2007-09-17 | M116: 2007-09-17 | N116: 00:00:00 | Q116: 2007-09-17 | R116: 00:00:00
A117: 12/13/2007 00:00:00 | B117: 216.9 | C117: 0 | D117: 0 | E117: 0 | F117: 24.1 | G117: 18 | H117: 1/10/2008 00:00:00 | I117: 2007-12-13 | J117: 2007-12-13 | M117: 2007-12-13 | N117: 00:00:00 | Q117: 2007-12-13 | R117: 00:00:00
A118: 12/13/2007 00:00:00 | B118: 216.9 | C118: 0 | D118: 0 | E118: 18308.7 | F118: 2058.4 | G118: 105 | H118: 1/10/2008 00:00:00 | I118: 2007-12-13 | J118: 2007-12-13 | M118: 2007-12-13 | N118: 00:00:00 | Q118: 2007-12-13 | R118: 00:00:00
A119: 5/21/2007 00:00:00 | B119: 0 | C119: 0 | D119: 0 | E119: 0 | F119: 270.4 | G119: 224 | H119: 6/10/2007 00:00:00 | I119: 2007-05-21 | J119: 2007-05-21 | M119: 2007-05-21 | N119: 00:00:00 | Q119: 2007-05-21 | R119: 00:00:00
A120: 10/10/2007 00:00:00 | B120: 0 | C120: 0 | D120: 0 | E120: 0 | F120: 334.3 | G120: 82 | H120: 11/10/2007 00:00:00 | I120: 2007-10-10 | J120: 2007-10-10 | M120: 2007-10-10 | N120: 00:00:00 | Q120: 2007-10-10 | R120: 00:00:00
A121: 8/21/2007 00:00:00 | B121: 0 | C121: 0 | D121: 0 | E121: 0 | F121: 874.8 | G121: 132 | H121: 9/10/2007 00:00:00 | I121: 2007-08-21 | J121: 2007-08-21 | M121: 2007-08-21 | N121: 00:00:00 | Q121: 2007-08-21 | R121: 00:00:00
A122: 11/15/2007 00:00:00 | B122: 0 | C122: 0 | D122: 0 | E122: 0 | F122: 155.2 | G122: 46 | H122: 12/10/2007 00:00:00 | I122: 2007-11-15 | J122: 2007-11-15 | M122: 2007-11-15 | N122: 00:00:00 | Q122: 2007-11-15 | R122: 00:00:00
A123: 11/15/2007 00:00:00 | B123: 0 | C123: 0 | D123: 0 | E123: 0 | F123: 1634.7 | G123: 224 | H123: 12/10/2007 00:00:00 | I123: 2007-11-15 | J123: 2007-11-15 | M123: 2007-11-15 | N123: 00:00:00 | Q123: 2007-11-15 | R123: 00:00:00
A124: 10/2/2007 00:00:00 | B124: 0 | C124: 0 | D124: 0 | E124: 0 | F124: 85.9 | G124: 90 | H124: 11/10/2007 00:00:00 | I124: 2007-10-02 | J124: 2007-10-02 | M124: 2007-10-02 | N124: 00:00:00 | Q124: 2007-10-02 | R124: 00:00:00
A125: 12/7/2007 00:00:00 | B125: 877 | C125: 0 | D125: 0 | E125: 0 | F125: 0 | G125: 24 | H125: 1/10/2008 00:00:00 | I125: 2007-12-07 | J125: 2007-12-07 | M125: 2007-12-07 | N125: 00:00:00 | Q125: 2007-12-07 | R125: 00:00:00
A126: 12/7/2007 00:00:00 | B126: 877 | C126: 0 | D126: 0 | E126: 0 | F126: 85.9 | G126: 90 | H126: 1/10/2008 00:00:00 | I126: 2007-12-07 | J126: 2007-12-07 | M126: 2007-12-07 | N126: 00:00:00 | Q126: 2007-12-07 | R126: 00:00:00
A127: 9/17/2007 00:00:00 | B127: 0 | C127: 0 | D127: 0 | E127: 0 | F127: 420.63 | G127: 105 | H127: 10/10/2007 00:00:00 | I127: 2007-09-17 | J127: 2007-09-17 | M127: 2007-09-17 | N127: 00:00:00 | Q127: 2007-09-17 | R127: 00:00:00
A128: 10/10/2007 00:00:00 | B128: 0 | C128: 0 | D128: 0 | E128: 0 | F128: 841.26 | G128: 82 | H128: 11/10/2007 00:00:00 | I128: 2007-10-10 | J128: 2007-10-10 | M128: 2007-10-10 | N128: 00:00:00 | Q128: 2007-10-10 | R128: 00:00:00
A129: 11/16/2007 00:00:00 | B129: 0 | C129: 3974.04 | D129: 0 | E129: 0 | F129: 209.16 | G129: 45 | H129: 12/10/2007 00:00:00 | I129: 2007-11-16 | J129: 2007-11-16 | M129: 2007-11-16 | N129: 00:00:00 | Q129: 2007-11-16 | R129: 00:00:00
A130: 11/16/2007 00:00:00 | B130: 0 | C130: 3974.04 | D130: 0 | E130: 0 | F130: 1471.05 | G130: 105 | H130: 12/10/2007 00:00:00 | I130: 2007-11-16 | J130: =VALUE(LEFT(A130,LEN(A130)-9)) -> 2007-11-16 | M130: 2007-11-16 | N130: 00:00:00 | Q130: 2007-11-16 | R130: 00:00:00
A131: 9/25/2007 00:00:00 | B131: 0 | C131: 0 | D131: 0 | E131: 1595.74 | F131: 0 | G131: 97 | H131: 10/10/2007 00:00:00 | I131: 2007-09-25 | J131: 2007-09-25 | M131: 2007-09-25 | N131: 00:00:00 | Q131: 2007-09-25 | R131: 00:00:00
A132: 12/6/2005 00:00:00 | B132: 0 | C132: 0 | D132: 0 | E132: 45.71 | F132: 0 | G132: 755 | H132: 1/10/2006 00:00:00 | I132: 2005-12-06 | J132: 2005-12-06 | M132: 2005-12-06 | N132: 00:00:00 | Q132: 2005-12-06 | R132: 00:00:00
A133: 8/30/2007 00:00:00 | B133: 0 | C133: 0 | D133: 0 | E133: 393.9 | F133: 0 | G133: 123 | H133: 10/10/2007 00:00:00 | I133: 2007-08-30 | J133: 2007-08-30 | M133: 2007-08-30 | N133: 00:00:00 | Q133: 2007-08-30 | R133: 00:00:00
A134: 8/30/2007 00:00:00 | B134: 0 | C134: 0 | D134: 0 | E134: 3102.89 | F134: 0 | G134: 123 | H134: 10/10/2007 00:00:00 | I134: 2007-08-30 | J134: 2007-08-30 | M134: 2007-08-30 | N134: 00:00:00 | Q134: 2007-08-30 | R134: 00:00:00
A135: 9/25/2007 00:00:00 | B135: 0 | C135: 0 | D135: 0 | E135: 5138.24 | F135: 0 | G135: 755 | H135: 10/10/2007 00:00:00 | I135: 2007-09-25 | J135: 2007-09-25 | M135: 2007-09-25 | N135: 00:00:00 | Q135: 2007-09-25 | R135: 00:00:00
A136: 8/1/2007 00:00:00 | B136: 0 | C136: 0 | D136: 0 | E136: 1312.05 | F136: 0 | G136: 152 | H136: 9/10/2007 00:00:00 | I136: 2007-08-01 | J136: 2007-08-01 | M136: 2007-08-01 | N136: 00:00:00 | Q136: 2007-08-01 | R136: 00:00:00
A137: 8/24/2006 00:00:00 | B137: 0 | C137: 0 | D137: 0 | E137: 0 | F137: 286.1 | G137: 494 | H137: 9/10/2006 00:00:00 | I137: 2006-08-24 | J137: 2006-08-24 | M137: 2006-08-24 | N137: 00:00:00 | Q137: 2006-08-24 | R137: 00:00:00
A138: 12/7/2007 00:00:00 | B138: 5681.47 | C138: 0 | D138: 0 | E138: 0 | F138: 299.03 | G138: 24 | H138: 1/10/2008 00:00:00 | I138: 2007-12-07 | J138: 2007-12-07 | M138: 2007-12-07 | N138: 00:00:00 | Q138: 2007-12-07 | R138: 00:00:00
A139: 6/7/2007 00:00:00 | B139: 0 | C139: 0 | D139: 0 | E139: 0 | F139: 68.05 | G139: 207 | H139: 7/10/2007 00:00:00 | I139: 2007-06-07 | J139: 2007-06-07 | M139: 2007-06-07 | N139: 00:00:00 | Q139: 2007-06-07 | R139: 00:00:00
A140: 5/4/2007 00:00:00 | B140: 0 | C140: 0 | D140: 0 | E140: 0 | F140: 51.7 | G140: 241 | H140: 6/10/2007 00:00:00 | I140: 2007-05-04 | J140: 2007-05-04 | M140: 2007-05-04 | N140: 00:00:00 | Q140: 2007-05-04 | R140: 00:00:00
A141: 6/6/2007 00:00:00 | B141: 0 | C141: 0 | D141: 0 | E141: 0 | F141: 36.85 | G141: 208 | H141: 7/10/2007 00:00:00 | I141: 2007-06-06 | J141: 2007-06-06 | M141: 2007-06-06 | N141: 00:00:00 | Q141: 2007-06-06 | R141: 00:00:00
A142: 10/2/2007 00:00:00 | B142: 0 | C142: 0 | D142: 0 | E142: 0 | F142: 456.02 | G142: 90 | H142: 11/10/2007 00:00:00 | I142: 2007-10-02 | J142: 2007-10-02 | M142: 2007-10-02 | N142: 00:00:00 | Q142: 2007-10-02 | R142: 00:00:00
A143: 11/6/2007 00:00:00 | B143: 0 | C143: 0 | D143: 0 | E143: 0 | F143: 456.02 | G143: 55 | H143: 12/10/2007 00:00:00 | I143: 2007-11-06 | J143: 2007-11-06 | M143: 2007-11-06 | N143: 00:00:00 | Q143: 2007-11-06 | R143: 00:00:00
A144: 7/10/2007 00:00:00 | B144: 0 | C144: 0 | D144: 0 | E144: 0 | F144: 48 | G144: 174 | H144: 8/10/2007 00:00:00 | I144: 2007-07-10 | J144: 2007-07-10 | M144: 2007-07-10 | N144: 00:00:00 | Q144: 2007-07-10 | R144: 00:00:00
A145: 8/17/2007 00:00:00 | B145: 0 | C145: 0 | D145: 0 | E145: 0 | F145: 103.15 | G145: 136 | H145: 9/10/2007 00:00:00 | I145: 2007-08-17 | J145: 2007-08-17 | M145: 2007-08-17 | N145: 00:00:00 | Q145: 2007-08-17 | R145: 00:00:00
A146: 10/2/2007 00:00:00 | B146: 0 | C146: 0 | D146: 0 | E146: 0 | F146: 56.85 | G146: 90 | H146: 11/10/2007 00:00:00 | I146: 2007-10-02 | J146: 2007-10-02 | M146: 2007-10-02 | N146: 00:00:00 | Q146: 2007-10-02 | R146: 00:00:00
A147: 10/9/2007 00:00:00 | B147: 0 | C147: 0 | D147: 0 | E147: 0 | F147: 66.35 | G147: 83 | H147: 11/10/2007 00:00:00 | I147: 2007-10-09 | J147: 2007-10-09 | M147: 2007-10-09 | N147: 00:00:00 | Q147: 2007-10-09 | R147: 00:00:00
A148: 12/14/2007 00:00:00 | B148: 727 | C148: 0 | D148: 0 | E148: 0 | F148: 0 | G148: 17 | H148: 1/10/2008 00:00:00 | I148: 2007-12-14 | J148: 2007-12-14 | M148: 2007-12-14 | N148: 00:00:00 | Q148: 2007-12-14 | R148: 00:00:00
A149: 12/14/2007 00:00:00 | B149: 6408.47 | C149: 0 | D149: 0 | E149: 1312.05 | F149: 1928.12 | G149: 494 | H149: 1/10/2008 00:00:00 | I149: 2007-12-14 | J149: 2007-12-14 | M149: 2007-12-14 | N149: 00:00:00 | Q149: 2007-12-14 | R149: 00:00:00
A150: 7/9/2007 00:00:00 | B150: 0 | C150: 0 | D150: 0 | E150: 0 | F150: 599.55 | G150: 175 | H150: 8/10/2007 00:00:00 | I150: 2007-07-09 | J150: 2007-07-09 | M150: 2007-07-09 | N150: 00:00:00 | Q150: 2007-07-09 | R150: 00:00:00
A151: 8/1/2007 00:00:00 | B151: 0 | C151: 0 | D151: 0 | E151: 0 | F151: 23.45 | G151: 152 | H151: 9/10/2007 00:00:00 | I151: 2007-08-01 | J151: 2007-08-01 | M151: 2007-08-01 | N151: 00:00:00 | Q151: 2007-08-01 | R151: 00:00:00
A152: 8/8/2007 00:00:00 | B152: 0 | C152: 0 | D152: 0 | E152: 0 | F152: 328.37 | G152: 145 | H152: 9/10/2007 00:00:00 | I152: 2007-08-08 | J152: 2007-08-08 | M152: 2007-08-08 | N152: 00:00:00 | Q152: 2007-08-08 | R152: 00:00:00
A153: 9/5/2007 00:00:00 | B153: 0 | C153: 0 | D153: 0 | E153: 0 | F153: 36.49 | G153: 117 | H153: 10/10/2007 00:00:00 | I153: 2007-09-05 | J153: 2007-09-05 | M153: 2007-09-05 | N153: 00:00:00 | Q153: 2007-09-05 | R153: 00:00:00
A154: 9/5/2007 00:00:00 | B154: 0 | C154: 0 | D154: 0 | E154: 0 | F154: 987.86 | G154: 175 | H154: 10/10/2007 00:00:00 | I154: 2007-09-05 | J154: 2007-09-05 | M154: 2007-09-05 | N154: 00:00:00 | Q154: 2007-09-05 | R154: 00:00:00
A155: 10/17/2007 00:00:00 | B155: 0 | C155: 0 | D155: 0 | E155: 0 | F155: 987.89 | G155: 75 | H155: 11/10/2007 00:00:00 | I155: 2007-10-17 | J155: 2007-10-17 | M155: 2007-10-17 | N155: 00:00:00 | Q155: 2007-10-17 | R155: 00:00:00
A156: 11/12/2007 00:00:00 | B156: 0 | C156: 25510.21 | D156: 0 | E156: 0 | F156: 1342.64 | G156: 49 | H156: 12/10/2007 00:00:00 | I156: 2007-11-12 | J156: 2007-11-12 | M156: 2007-11-12 | N156: 00:00:00 | Q156: 2007-11-12 | R156: 00:00:00
A157: 11/12/2007 00:00:00 | B157: 0 | C157: 25510.21 | D157: 0 | E157: 0 | F157: 2330.53 | G157: 75 | H157: 12/10/2007 00:00:00 | I157: 2007-11-12 | J157: 2007-11-12 | M157: 2007-11-12 | N157: 00:00:00 | Q157: 2007-11-12 | R157: 00:00:00
A158: 9/17/2007 00:00:00 | B158: 0 | C158: 0 | D158: 0 | E158: 381.15 | F158: 466.15 | G158: 105 | H158: 10/10/2007 00:00:00 | I158: 2007-09-17 | J158: 2007-09-17 | M158: 2007-09-17 | N158: 00:00:00 | Q158: 2007-09-17 | R158: 00:00:00
A159: 9/17/2007 00:00:00 | B159: 0 | C159: 0 | D159: 0 | E159: 381.15 | F159: 466.15 | G159: 105 | H159: 10/10/2007 00:00:00 | I159: 2007-09-17 | J159: 2007-09-17 | M159: 2007-09-17 | N159: 00:00:00 | Q159: 2007-09-17 | R159: 00:00:00
A160: 1/16/2007 00:00:00 | B160: 0 | C160: 0 | D160: 0 | E160: 0 | F160: 1425.98 | G160: 349 | H160: 2/10/2007 00:00:00 | I160: 2007-01-16 | J160: 2007-01-16 | M160: 2007-01-16 | N160: 00:00:00 | Q160: 2007-01-16 | R160: 00:00:00
A161: 2/16/2007 00:00:00 | B161: 0 | C161: 0 | D161: 0 | E161: 0 | F161: 855.59 | G161: 318 | H161: 3/10/2007 00:00:00 | I161: 2007-02-16 | J161: 2007-02-16 | M161: 2007-02-16 | N161: 00:00:00 | Q161: 2007-02-16 | R161: 00:00:00
A162: 5/9/2007 00:00:00 | B162: 0 | C162: 0 | D162: 0 | E162: 0 | F162: 1425.98 | G162: 236 | H162: 6/10/2007 00:00:00 | I162: 2007-05-09 | J162: 2007-05-09 | M162: 2007-05-09 | N162: 00:00:00 | Q162: 2007-05-09 | R162: 00:00:00
A163: 6/8/2007 00:00:00 | B163: 0 | C163: 0 | D163: 0 | E163: 0 | F163: 684.21 | G163: 206 | H163: 7/10/2007 00:00:00 | I163: 2007-06-08 | J163: 2007-06-08 | M163: 2007-06-08 | N163: 00:00:00 | Q163: 2007-06-08 | R163: 00:00:00
A164: 11/15/2007 00:00:00 | B164: 0 | C164: 2237.72 | D164: 0 | E164: 0 | F164: 117.77 | G164: 46 | H164: 12/10/2007 00:00:00 | I164: 2007-11-15 | J164: 2007-11-15 | M164: 2007-11-15 | N164: 00:00:00 | Q164: 2007-11-15 | R164: 00:00:00
A165: 11/14/2006 00:00:00 | B165: 0 | C165: 0 | D165: 0 | E165: 0 | F165: 1140.78 | G165: 412 | H165: 12/10/2006 00:00:00 | I165: 2006-11-14 | J165: 2006-11-14 | M165: 2006-11-14 | N165: 00:00:00 | Q165: 2006-11-14 | R165: 00:00:00
A166: 8/2/2007 00:00:00 | B166: 0 | C166: 0 | D166: 0 | E166: 759.9 | F166: 0 | G166: 151 | H166: 9/10/2007 00:00:00 | I166: 2007-08-02 | J166: 2007-08-02 | M166: 2007-08-02 | N166: 00:00:00 | Q166: 2007-08-02 | R166: 00:00:00
A167: 11/15/2007 00:00:00 | B167: 0 | C167: 2237.72 | D167: 0 | E167: 759.9 | F167: 5650.31 | G167: 412 | H167: 12/10/2007 00:00:00 | I167: 2007-11-15 | J167: 2007-11-15 | M167: 2007-11-15 | N167: 00:00:00 | Q167: 2007-11-15 | R167: 00:00:00
A168: 7/13/2007 00:00:00 | B168: 0 | C168: 0 | D168: 0 | E168: 0 | F168: 281.4 | G168: 171 | H168: 8/10/2007 00:00:00 | I168: 2007-07-13 | J168: 2007-07-13 | M168: 2007-07-13 | N168: 00:00:00 | Q168: 2007-07-13 | R168: 00:00:00
A169: 7/13/2007 00:00:00 | B169: 0 | C169: 0 | D169: 0 | E169: 0 | F169: 281.4 | G169: 171 | H169: 8/10/2007 00:00:00 | I169: 2007-07-13 | J169: 2007-07-13 | M169: 2007-07-13 | N169: 00:00:00 | Q169: 2007-07-13 | R169: 00:00:00
A170: 10/10/2007 00:00:00 | B170: 0 | C170: 0 | D170: 0 | E170: 0 | F170: 1375 | G170: 82 | H170: 11/10/2007 00:00:00 | I170: 2007-10-10 | J170: 2007-10-10 | M170: 2007-10-10 | N170: 00:00:00 | Q170: 2007-10-10 | R170: 00:00:00
A171: 10/10/2007 00:00:00 | B171: 0 | C171: 0 | D171: 0 | E171: 0 | F171: 1375 | G171: 82 | H171: 11/10/2007 00:00:00 | I171: 2007-10-10 | J171: 2007-10-10 | M171: 2007-10-10 | N171: 00:00:00 | Q171: 2007-10-10 | R171: 00:00:00
A172: 4/19/2007 00:00:00 | B172: 0 | C172: 0 | D172: 0 | E172: 0 | F172: 446.36 | G172: 256 | H172: 5/10/2007 00:00:00 | I172: 2007-04-19 | J172: 2007-04-19 | M172: 2007-04-19 | N172: 00:00:00 | Q172: 2007-04-19 | R172: 00:00:00
A173: 6/11/2007 00:00:00 | B173: 0 | C173: 0 | D173: 0 | E173: 0 | F173: 828.95 | G173: 203 | H173: 7/10/2007 00:00:00 | I173: 2007-06-11 | J173: 2007-06-11 | M173: 2007-06-11 | N173: 00:00:00 | Q173: 2007-06-11 | R173: 00:00:00
A174: 6/11/2007 00:00:00 | B174: 0 | C174: 0 | D174: 0 | E174: 0 | F174: 1275.31 | G174: 256 | H174: 7/10/2007 00:00:00 | I174: 2007-06-11 | J174: 2007-06-11 | M174: 2007-06-11 | N174: 00:00:00 | Q174: 2007-06-11 | R174: 00:00:00
A175: 8/8/2007 00:00:00 | B175: 0 | C175: 0 | D175: 0 | E175: 0 | F175: 1119.83 | G175: 145 | H175: 9/10/2007 00:00:00 | I175: 2007-08-08 | J175: 2007-08-08 | M175: 2007-08-08 | N175: 00:00:00 | Q175: 2007-08-08 | R175: 00:00:00
A176: 9/5/2007 00:00:00 | B176: 0 | C176: 0 | D176: 0 | E176: 0 | F176: 124.43 | G176: 117 | H176: 10/10/2007 00:00:00 | I176: 2007-09-05 | J176: 2007-09-05 | M176: 2007-09-05 | N176: 00:00:00 | Q176: 2007-09-05 | R176: 00:00:00
A177: 9/5/2007 00:00:00 | B177: 0 | C177: 0 | D177: 0 | E177: 0 | F177: 1244.26 | G177: 145 | H177: 10/10/2007 00:00:00 | I177: 2007-09-05 | J177: 2007-09-05 | M177: 2007-09-05 | N177: 00:00:00 | Q177: 2007-09-05 | R177: 00:00:00
A178: 7/17/2007 00:00:00 | B178: 0 | C178: 0 | D178: 0 | E178: 8635.15 | F178: 0 | G178: 167 | H178: 8/10/2007 00:00:00 | I178: 2007-07-17 | J178: 2007-07-17 | M178: 2007-07-17 | N178: 00:00:00 | Q178: 2007-07-17 | R178: 00:00:00
A179: 11/12/2007 00:00:00 | B179: 0 | C179: 0 | D179: 0 | E179: 0 | F179: 230.6 | G179: 49 | H179: 12/10/2007 00:00:00 | I179: 2007-11-12 | J179: 2007-11-12 | M179: 2007-11-12 | N179: 00:00:00 | Q179: 2007-11-12 | R179: 00:00:00
A180: 3/16/2007 00:00:00 | B180: 0 | C180: 0 | D180: 0 | E180: 0 | F180: 1719.47 | G180: 290 | H180: 4/10/2007 00:00:00 | I180: 2007-03-16 | J180: 2007-03-16 | M180: 2007-03-16 | N180: 00:00:00 | Q180: 2007-03-16 | R180: 00:00:00
A181: 4/19/2007 00:00:00 | B181: 0 | C181: 0 | D181: 0 | E181: 0 | F181: 2006.04 | G181: 256 | H181: 5/10/2007 00:00:00 | I181: 2007-04-19 | J181: 2007-04-19 | M181: 2007-04-19 | N181: 00:00:00 | Q181: 2007-04-19 | R181: 00:00:00
A182: 5/9/2007 00:00:00 | B182: 0 | C182: 0 | D182: 0 | E182: 0 | F182: 1432.89 | G182: 236 | H182: 6/10/2007 00:00:00 | I182: 2007-05-09 | J182: 2007-05-09 | M182: 2007-05-09 | N182: 00:00:00 | Q182: 2007-05-09 | R182: 00:00:00
A183: 6/8/2007 00:00:00 | B183: 0 | C183: 0 | D183: 0 | E183: 0 | F183: 573.16 | G183: 206 | H183: 7/10/2007 00:00:00 | I183: 2007-06-08 | J183: 2007-06-08 | M183: 2007-06-08 | N183: 00:00:00 | Q183: 2007-06-08 | R183: 00:00:00
A184: 10/5/2007 00:00:00 | B184: 0 | C184: 0 | D184: 1969.35 | E184: 0 | F184: 455.7 | G184: 87 | H184: 11/10/2007 00:00:00 | I184: 2007-10-05 | J184: 2007-10-05 | M184: 2007-10-05 | N184: 00:00:00 | Q184: 2007-10-05 | R184: 00:00:00
A185: 5/21/2007 00:00:00 | B185: 0 | C185: 0 | D185: 0 | E185: 0 | F185: 730.8 | G185: 224 | H185: 6/10/2007 00:00:00 | I185: 2007-05-21 | J185: 2007-05-21 | M185: 2007-05-21 | N185: 00:00:00 | Q185: 2007-05-21 | R185: 00:00:00
A186: 7/13/2007 00:00:00 | B186: 0 | C186: 0 | D186: 0 | E186: 0 | F186: 730.8 | G186: 171 | H186: 8/10/2007 00:00:00 | I186: 2007-07-13 | J186: 2007-07-13 | M186: 2007-07-13 | N186: 00:00:00 | Q186: 2007-07-13 | R186: 00:00:00
A187: 8/10/2007 00:00:00 | B187: 0 | C187: 0 | D187: 0 | E187: 0 | F187: 974.4 | G187: 143 | H187: 9/10/2007 00:00:00 | I187: 2007-08-10 | J187: 2007-08-10 | M187: 2007-08-10 | N187: 00:00:00 | Q187: 2007-08-10 | R187: 00:00:00
A188: 9/17/2007 00:00:00 | B188: 0 | C188: 0 | D188: 0 | E188: 0 | F188: 1218 | G188: 105 | H188: 10/10/2007 00:00:00 | I188: 2007-09-17 | J188: 2007-09-17 | M188: 2007-09-17 | N188: 00:00:00 | Q188: 2007-09-17 | R188: 00:00:00
A189: 6/8/2007 00:00:00 | B189: 0 | C189: 0 | D189: 0 | E189: 0 | F189: 845.8 | G189: 206 | H189: 7/10/2007 00:00:00 | I189: 2007-06-08 | J189: 2007-06-08 | M189: 2007-06-08 | N189: 00:00:00 | Q189: 2007-06-08 | R189: 00:00:00
A190: 12/13/2007 00:00:00 | B190: 14497.2 | C190: 0 | D190: 0 | E190: 0 | F190: 1610.8 | G190: 18 | H190: 1/10/2008 00:00:00 | I190: 2007-12-13 | J190: 2007-12-13 | M190: 2007-12-13 | N190: 00:00:00 | Q190: 2007-12-13 | R190: 00:00:00
A191: 12/13/2007 00:00:00 | B191: 14497.2 | C191: 0 | D191: 1969.35 | E191: 8635.15 | F191: 12528.46 | G191: 290 | H191: 1/10/2008 00:00:00 | I191: 2007-12-13 | J191: 2007-12-13 | M191: 2007-12-13 | N191: 00:00:00 | Q191: 2007-12-13 | R191: 00:00:00
A192: 8/2/2007 00:00:00 | B192: 0 | C192: 0 | D192: 0 | E192: 33.55 | F192: 0 | G192: 151 | H192: 9/10/2007 00:00:00 | I192: 2007-08-02 | J192: 2007-08-02 | M192: 2007-08-02 | N192: 00:00:00 | Q192: 2007-08-02 | R192: 00:00:00
A193: 10/31/2007 00:00:00 | B193: 0 | C193: 0 | D193: 8100 | E193: 0 | F193: 2431.2 | G193: 61 | H193: 12/10/2007 00:00:00 | I193: 2007-10-31 | J193: 2007-10-31 | M193: 2007-10-31 | N193: 00:00:00 | Q193: 2007-10-31 | R193: 00:00:00
A194: 10/31/2007 00:00:00 | B194: 0 | C194: 0 | D194: 8100 | E194: 33.55 | F194: 2431.2 | G194: 151 | H194: 12/10/2007 00:00:00 | I194: 2007-10-31 | J194: =VALUE(LEFT(A194,LEN(A194)-9)) -> 2007-10-31 | M194: 2007-10-31 | N194: 00:00:00 | Q194: 2007-10-31 | R194: 00:00:00
A195: 9/20/2006 00:00:00 | B195: 0 | C195: 0 | D195: 0 | E195: 0.01 | F195: 0 | G195: 467 | H195: 10/10/2006 00:00:00 | I195: 2006-09-20 | J195: 2006-09-20 | M195: 2006-09-20 | N195: 00:00:00 | Q195: 2006-09-20 | R195: 00:00:00
A196: 8/2/2007 00:00:00 | B196: 0 | C196: 0 | D196: 0 | E196: 908.11 | F196: 0 | G196: 151 | H196: 9/10/2007 00:00:00 | I196: 2007-08-02 | J196: 2007-08-02 | M196: 2007-08-02 | N196: 00:00:00 | Q196: 2007-08-02 | R196: 00:00:00
A197: 9/5/2007 00:00:00 | B197: 0 | C197: 0 | D197: 0 | E197: 0 | F197: 8527.7 | G197: 117 | H197: 10/10/2007 00:00:00 | I197: 2007-09-05 | J197: 2007-09-05 | M197: 2007-09-05 | N197: 00:00:00 | Q197: 2007-09-05 | R197: 00:00:00
A198: 9/5/2007 00:00:00 | B198: 0 | C198: 0 | D198: 0 | E198: 908.12 | F198: 8527.7 | G198: 467 | H198: 10/10/2007 00:00:00 | I198: 2007-09-05 | J198: 2007-09-05 | M198: 2007-09-05 | N198: 00:00:00 | Q198: 2007-09-05 | R198: 00:00:00
A199: 8/6/2007 00:00:00 | B199: 0 | C199: 0 | D199: 0 | E199: 27888.8 | F199: 0 | G199: 147 | H199: 9/10/2007 00:00:00 | I199: 2007-08-06 | J199: 2007-08-06 | M199: 2007-08-06 | N199: 00:00:00 | Q199: 2007-08-06 | R199: 00:00:00
A200: 11/8/2007 00:00:00 | B200: 0 | C200: 5917.13 | D200: 0 | E200: 0 | F200: 657.46 | G200: 53 | H200: 12/10/2007 00:00:00 | I200: 2007-11-08 | J200: 2007-11-08 | M200: 2007-11-08 | N200: 00:00:00 | Q200: 2007-11-08 | R200: 00:00:00
... 625 more rows

Sheet Sheet7

Sheet Macro Sheet Tabs ==>
A1: =ROW()&")" -> 1) | B1: Macro Means Code
A2: 2) | B2: Show Developer Ribbon, Orb (Office Button), Excel Options, Popular Tab of Left, check "Show Developer tab in Ribbon" | G2: In Excel 2007, you must use the ".xlsm" extension in order to use Macros. You must also set the security level in the Code Group in the Developer Ribbon to "Disable all Macros with notification"; then each time you open the workbook, click the "Options" button that appears when you open the workbook, then click "Enable".
A3: 3) | B3: Turn the Macro Recorder on to have Excel follow you around and write code for you.
A4: 4) | B4: Be sure to Turn off the Macro Recorder when you are done
A5: 5) | B5: If you store Macros in "This workbook", they are only available in this workbook
A6: 6) | B6: If you store Macros in "Personal workbook", they are stored in the hidden workbook named "Personal" and the Macros will be available in all workbooks on your computer. To edit a Macro in a Personal workbook, you must unhide the workbook using the "Unhide" button in the Window Group on the View Ribbon.
A7: 7) | B7: The VBA editor is where you write code (Alt + F11)
A8: 8) | B8: Relative Macros record Relative Cell references and movement
A9: 9) | B9: Absolute Macros record Absolute Cell references and movement
A10: 10) | B10: Use Alt + F8 to see list of Macros
A11: 11) | B11: Absolute Macros record Absolute Cell references and movement
B13: Paste Special, Values | H13: Color
B14: 1 | E14: 1
B15: 1 | E15: 2
B16: 1 | E16: =SUM(E14:E15) -> 3
B17: 1 | F17: 3
B18: 1
B19: 1
B20: =SUM(B14:B19) -> 6 | D20: 6
F24: 2
F25: 3
F26: 1
F27: 1
F28: =[1]!SumBold(F24:F27) -> 3
F31: 1254323.45 | G31: =SpellNumber(F31) -> 

Sheet T(46)
A1: =ROW()&")" -> 1) | B1: In 2007, add Developer Ribbon: Alt + F + I, then check Developer Ribbon check box
A2: =ROW()&")" -> 2) | B2: The MACRO recorder is like a tape recorder: it will follow your actions in Excel and instead of recording the sound or visual of your actions, it writes the code that represents your actions.
A3: =ROW()&")" -> 3) | B3: Recording an Absolute MACRO: 1) The Relative/Absolute recording button must be off; 2) The MACRO records your actions absolutely, that is to say when you click in the cell A1, it records cell A1, not a relative position.
A4: =ROW()&")" -> 4) | B4: After you are done, click the Stop Recording button.
A5: =ROW()&")" -> 5) | B5: Alt + F8 opens the list of MACROS. You can click the Options button to see or change your keyboard shortcut. Click the Edit button to see the code that the MACRO recorder wrote. After you have read the code, click the close button on the VBA editor window.
B8: Your Company
B9: Income Statement
B10: For the Month Ended January 31, 2007
B11: Revenues
D12: 5000
B13: Expenses
B14: Expense 1 | C14: 68
B15: Expense 2 | C15: 53
B16: Expense 3 | C16: 54
B17: Expense 4 | C17: 71
B18: Expense 5 | C18: 57
B19: Expense 6 | C19: 60
B20: Expense 7 | C20: 62
B21: Expense 8 | C21: 54
B22: Expense 9 | C22: 67
B23: Expense 10 | C23: 58
B24: Expense 11 | C24: 50
B25: Total Expenses | D25: =SUM(C14:C24) -> 654
B26: Net Income | D26: =D12-D25 -> 4346

Sheet T(46.1)
A1: =ROW()&")" -> 1) | B1: In 2007, add Developer Ribbon: Alt + F + I, then check Developer Ribbon check box
A2: =ROW()&")" -> 2) | B2: The MACRO recorder is like a tape recorder: it will follow your actions in Excel and instead of recording the sound or visual of your actions, it writes the code that represents your actions.
A3: =ROW()&")" -> 3) | B3: Recording an Absolute MACRO: 1) The Relative/Absolute recording button must be off; 2) The MACRO records your actions absolutely, that is to say when you click in the cell A1, it records cell A1, not a relative position.
A4: =ROW()&")" -> 4) | B4: After you are done, click the Stop Recording button.
A5: =ROW()&")" -> 5) | B5: Alt + F8 opens the list of MACROS. You can click the Options button to see or change your keyboard shortcut. Click the Edit button to see the code that the MACRO recorder wrote. After you have read the code, click the close button on the VBA editor window.
B8: Your Company
B9: Income Statement
B10: For the Month Ended January 31, 2007
B11: Revenues
D12: 5000
B13: Expenses
B14: Expense 1 | C14: 68
B15: Expense 2 | C15: 53
B16: Expense 3 | C16: 54
B17: Expense 4 | C17: 71
B18: Expense 5 | C18: 57
B19: Expense 6 | C19: 60
B20: Expense 7 | C20: 62
B21: Expense 8 | C21: 54
B22: Expense 9 | C22: 67
B23: Expense 10 | C23: 58
B24: Expense 11 | C24: 50
B25: Total Expenses | D25: =SUM(C14:C24) -> 654
B26: Net Income | D26: =D12-D25 -> 4346

Sheet T(47)
A1: =ROW()&")" -> 1) | B1: In 2007, add Developer Ribbon: Alt + F + I, then check Developer Ribbon check box
A2: =ROW()&")" -> 2) | B2: The MACRO recorder is like a tape recorder: it will follow your actions in Excel and instead of recording the sound or visual of your actions, it writes the code that represents your actions.
A3: =ROW()&")" -> 3) | B3: Recording an Relative MACRO: 1) The Relative/Absolute recording button must be on; 2) The MACRO records your actions relatively that is to say when you click in the cell 4 rows above, it will always click in the cell 4 above from the realative starting point.
A4: =ROW()&")" -> 4) | B4: After you are done, click the Stop Recording button.
A5: =ROW()&")" -> 5) | B5: Alt + F8 opens the list of MACROS. You can click the Options button to see or change your keyboard shortcut. Click the Edit button to see the code that the MACRO recorder wrote. After you have read the code, click the close button on the VBA editor window.
B7: First | C7: Last | D7: Address | E7: City | F7: State | G7: Zip | H7: Phone | I7: E1 | J7: E2
B8: Steve | C8: Chin | D8: 14 17th St. | E8: Seattle | F8: WA | G8: 98104 | H8: 206-572-3409 | I8: =B8&"_"&C8&"@notaol.com" -> Steve_Chin@notaol.com | J8: Chin_14 17th St.@notaol.com
B9: Troun | C9: Tenn | D9: 6 19th St. | E9: Seattle | F9: WA | G9: 98106 | H9: 206-667-3154 | I9: Troun_Tenn@notaol.com | J9: Tenn_6 19th St.@notaol.com
B10: Rhond | C10: Tradfren | D10: 10 13th St. | E10: Seattle | F10: WA | G10: 98117 | H10: 206-574-1265 | I10: Rhond_Tradfren@notaol.com | J10: Tradfren_10 13th St.@notaol.com
B11: Sheli | C11: Das | D11: 2 15th St. | E11: Seattle | F11: WA | G11: 98111 | H11: 206-637-4014 | I11: Sheli_Das@notaol.com | J11: Das_2 15th St.@notaol.com
B12: Jon | C12: Teddy | D12: 3 17th St. | E12: Seattle | F12: WA | G12: 98114 | H12: 206-515-5102 | I12: Jon_Teddy@notaol.com | J12: Teddy_3 17th St.@notaol.com
B13: Jeri | C13: Yessler | D13: 12 16th St. | E13: Seattle | F13: WA | G13: 98114 | H13: 206-583-2943 | I13: Jeri_Yessler@notaol.com | J13: Yessler_12 16th St.@notaol.com
B14: Luke | C14: Suix | D14: 8 19th St. | E14: Seattle | F14: WA | G14: 98113 | H14: 206-774-4449 | I14: Luke_Suix@notaol.com | J14: Suix_8 19th St.@notaol.com
B15: Luke | C15: Red | D15: 15 16th St. | E15: Seattle | F15: WA | G15: 98108 | H15: 206-685-2311 | I15: Luke_Red@notaol.com | J15: Red_15 16th St.@notaol.com
B16: Jeri | C16: Smythe | D16: 14 19th St. | E16: Seattle | F16: WA | G16: 98112 | H16: 206-574-6156 | I16: Jeri_Smythe@notaol.com | J16: Smythe_14 19th St.@notaol.com
B17: Luke | C17: Rad | D17: 3 16th St. | E17: Seattle | F17: WA | G17: 98106 | H17: 206-599-3338 | I17: Luke_Rad@notaol.com | J17: Rad_3 16th St.@notaol.com
B18: Jon | C18: Dap | D18: 5 19th St. | E18: Seattle | F18: WA | G18: 98116 | H18: 206-679-1485 | I18: Jon_Dap@notaol.com | J18: Dap_5 19th St.@notaol.com
B19: Steve | C19: Gupis | D19: 6 17th St. | E19: Seattle | F19: WA | G19: 98111 | H19: 206-609-1507 | I19: Steve_Gupis@notaol.com | J19: Gupis_6 17th St.@notaol.com
B20: Jon | C20: Summi | D20: 4 14th St. | E20: Seattle | F20: WA | G20: 98104 | H20: 206-733-4318 | I20: Jon_Summi@notaol.com | J20: Summi_4 14th St.@notaol.com
B21: Sheli | C21: Fun | D21: 7 15th St. | E21: Seattle | F21: WA | G21: 98110 | H21: 206-691-7629 | I21: Sheli_Fun@notaol.com | J21: Fun_7 15th St.@notaol.com

Sheet T(47.1)
A1: =ROW()&")" -> 1) | B1: In 2007, add Developer Ribbon: Alt + F + I, then check Developer Ribbon check box
A2: =ROW()&")" -> 2) | B2: The MACRO recorder is like a tape recorder: it will follow your actions in Excel and instead of recording the sound or visual of your actions, it writes the code that represents your actions.
A3: =ROW()&")" -> 3) | B3: Recording an Relative MACRO: 1) The Relative/Absolute recording button must be on; 2) The MACRO records your actions relatively that is to say when you click in the cell 4 rows above, it will always click in the cell 4 above from the realative starting point.
A4: =ROW()&")" -> 4) | B4: After you are done, click the Stop Recording button.
A5: =ROW()&")" -> 5) | B5: Alt + F8 opens the list of MACROS. You can click the Options button to see or change your keyboard shortcut. Click the Edit button to see the code that the MACRO recorder wrote. After you have read the code, click the close button on the VBA editor window.
B7: First | C7: Last | D7: Address | E7: City | F7: State | G7: Zip | H7: Phone | I7: E1 | J7: E2
B9: Steve
B10: Chin
B11: 14 17th St.
B12: Seattle
B13: WA
B14: 98104
B15: 206-572-3409
B16: =B9&"_"&B10&"@notaol.com" -> Steve_Chin@notaol.com
B17: =B10&"_"&B11&"@notaol.com" -> Chin_14 17th St.@notaol.com
B19: Troun
B20: Tenn
B21: 6 19th St.
B22: Seattle
B23: WA
B24: 98106
B25: 206-667-3154
B26: =B19&"_"&B20&"@notaol.com" -> Troun_Tenn@notaol.com
B27: =B20&"_"&B21&"@notaol.com" -> Tenn_6 19th St.@notaol.com
B29: Rhond
B30: Tradfren
B31: 10 13th St.
B32: Seattle
B33: WA
B34: 98117
B35: 206-574-1265
B36: =B29&"_"&B30&"@notaol.com" -> Rhond_Tradfren@notaol.com
B37: =B30&"_"&B31&"@notaol.com" -> Tradfren_10 13th St.@notaol.com
B39: Sheli
B40: Das
B41: 2 15th St.
B42: Seattle
B43: WA
B44: 98111
B45: 206-637-4014
B46: =B39&"_"&B40&"@notaol.com" -> Sheli_Das@notaol.com
B47: =B40&"_"&B41&"@notaol.com" -> Das_2 15th St.@notaol.com
B49: Jon
B50: Teddy
B51: 3 17th St.
B52: Seattle
B53: WA
B54: 98114
B55: 206-515-5102
B56: =B49&"_"&B50&"@notaol.com" -> Jon_Teddy@notaol.com
B57: =B50&"_"&B51&"@notaol.com" -> Teddy_3 17th St.@notaol.com
B59: Jeri
B60: Yessler
B61: 12 16th St.
B62: Seattle
B63: WA
B64: 98114
B65: 206-583-2943
B66: =B59&"_"&B60&"@notaol.com" -> Jeri_Yessler@notaol.com
B67: =B60&"_"&B61&"@notaol.com" -> Yessler_12 16th St.@notaol.com
B69: Luke
B70: Suix
B71: 8 19th St.
B72: Seattle
B73: WA
B74: 98113
B75: 206-774-4449
B76: =B69&"_"&B70&"@notaol.com" -> Luke_Suix@notaol.com
B77: =B70&"_"&B71&"@notaol.com" -> Suix_8 19th St.@notaol.com
B79: Luke
B80: Red
B81: 15 16th St.
B82: Seattle
B83: WA
B84: 98108
B85: 206-685-2311
B86: =B79&"_"&B80&"@notaol.com" -> Luke_Red@notaol.com
B87: =B80&"_"&B81&"@notaol.com" -> Red_15 16th St.@notaol.com
B89: Jeri
B90: Smythe
B91: 14 19th St.
B92: Seattle
B93: WA
B94: 98112
B95: 206-574-6156
B96: =B89&"_"&B90&"@notaol.com" -> Jeri_Smythe@notaol.com
B97: =B90&"_"&B91&"@notaol.com" -> Smythe_14 19th St.@notaol.com
B99: Luke
B100: Rad
B101: 3 16th St.
B102: Seattle
B103: WA
B104: 98106
B105: 206-599-3338
B106: =B99&"_"&B100&"@notaol.com" -> Luke_Rad@notaol.com
B107: =B100&"_"&B101&"@notaol.com" -> Rad_3 16th St.@notaol.com
B109: Jon
B110: Dap
B111: 5 19th St.
B112: Seattle
B113: WA
B114: 98116
B115: 206-679-1485
B116: =B109&"_"&B110&"@notaol.com" -> Jon_Dap@notaol.com
B117: =B110&"_"&B111&"@notaol.com" -> Dap_5 19th St.@notaol.com
B119: Steve
B120: Gupis
B121: 6 17th St.
B122: Seattle
B123: WA
B124: 98111
B125: 206-609-1507
B126: =B119&"_"&B120&"@notaol.com" -> Steve_Gupis@notaol.com
B127: =B120&"_"&B121&"@notaol.com" -> Gupis_6 17th St.@notaol.com
B129: Jon
B130: Summi
B131: 4 14th St.
B132: Seattle
B133: WA
B134: 98104
B135: 206-733-4318
B136: =B129&"_"&B130&"@notaol.com" -> Jon_Summi@notaol.com
B137: =B130&"_"&B131&"@notaol.com" -> Summi_4 14th St.@notaol.com
B139: Sheli
B140: Fun
B141: 7 15th St.
B142: Seattle
B143: WA
B144: 98110
B145: 206-691-7629
B146: =B139&"_"&B140&"@notaol.com" -> Sheli_Fun@notaol.com
B147: =B140&"_"&B141&"@notaol.com" -> Fun_7 15th St.@notaol.com

Sheet BD(1)
A1: Customer | B1: Units | C1: $ Amnt
A2: LGFWEH | B2: 124 | C2: 368.28
A3: FFOIHW | B3: 586 | C3: 1724.7
A4: UXCDQR | B4: 24 | C4: 71.28
A5: AACHUE | B5: 123 | C5: 405.9
A6: WCPWME | B6: 39 | C6: 117
A7: SEJXYB | B7: 372 | C7: 1078.8
A8: YRGVLL | B8: 182 | C8: 498.3
A9: OCNJGX | B9: 836 | C9: 2529.9
A10: JBROGG | B10: 45 | C10: 156.6
A11: VWHKDV | B11: 124 | C11: 284.58
A12: EHUUMC | B12: 142 | C12: 524.4
A13: SIFCSD | B13: 56 | C13: 197.4
A14: PXQMOS | B14: 13 | C14: 42.9
A15: IKTHLY | B15: 10 | C15: 34.5
A16: SXNDWT | B16: 216 | C16: 565.5
A17: RUTKKY | B17: 97 | C17: 200.28
A18: HJRAPR | B18: 5 | C18: 21
A19: NPINSO | B19: 54 | C19: 129.6
A20: TXITFJ | B20: 10 | C20: 33
A21: NKIHXD | B21: 31 | C21: 130.2
A22: OWGJGP | B22: 60 | C22: 144
A23: GRJYRN | B23: 888 | C23: 2495.19
A24: WDAUAC | B24: 184 | C24: 464.28
A25: JSIDAD | B25: 421 | C25: 1191.78
A26: ANACYV | B26: 475 | C26: 1234.26
A27: YQXVIW | B27: 385 | C27: 1153.54
A28: JPQJZA | B28: 154 | C28: 421.8
A29: YVSQVX | B29: 385 | C29: 1119.06
A30: CSLNFN | B30: 399 | C30: 1145.7
A31: FLMAYI | B31: 165 | C31: 490.05
A32: TOGZBM | B32: 133 | C32: 311.31
A33: CSLNFN | B33: 62 | C33: 184.14 | E33: QAP
A34: FLMAYI | B34: 179 | C34: 532.05
A35: TOGZBM | B35: 177 | C35: 412.29
A36: VWHKDV | B36: 142 | C36: 464.4
A37: EHUUMC | B37: 246 | C37: 736.5
A38: SIFCSD | B38: 186 | C38: 613.8
A39: PXQMOS | B39: 155 | C39: 520.8
A40: IKTHLY | B40: 1093 | C40: 3467.67
A41: SXNDWT | B41: 1577 | C41: 6393.72
A42: RUTKKY | B42: 649 | C42: 1986.12
A43: HJRAPR | B43: 739 | C43: 2342.52
B44: =SUM(B2:B43) -> 11943 | C44: =SUM(C2:C43) -> 36939.1
A45: *** Total *** | B45: 11943 | C45: 36939.1

Sheet T(48)
A1: =ROW()&")" -> 1) | B1: The key to data analysis in Excel is that you have to have the data in the right format: 1) Column headers are field names; 2) Rows are records; 3) No blank rows, columns, fields names, cells (cells not totally neccecary, but benifical) -- this format is refered to by various names such as Excel List, Excel Table, Database Format, Table; 4) All non-data muct be at least on cell away from the Table of data.
A2: 2) | B2: Because data often does not come in this format, we must be able to quickly take bad data and make it Table Data.
A3: 3) | B3: The key to cleaning up data is to look for patterns that will allows you use Excel's bag of tricks. The patterns that we will find are "spaces between words" for the Text To Column trick and "blank cells" between cells filled with data for our Delete rows trick.
A4: 4) | B4: Inserting cells is great with raw data, but be careful with inserting cells if you have formulas with relative cell references.
A5: 5) | B5: Text To Columns is a great feature, but make sure that you have lots of cells to the right of that data that can be filled with data.
A6: 6) | B6: Go To, Special, Blanks, then deleting Rows is great for quickly deleting many empty rows.
B13: Date | C13: Category | D13: Customer | E13: Product Dept | F13: Units | G13: Sales | N13: Date | O13: Category | P13: Customer | Q13: Product Dept | R13: Units | S13: Sales
B14: JAN | C14: STOR | D14: HJRAPR | E14: RAD | F14: 5 | G14: 21 | N14: JAN | O14: STOR | P14: LGFWEH | Q14: RAD | R14: 124 | S14: 368.28
B15: JAN | C15: STOR | D15: IKTHLY | E15: RAD | F15: 10 | G15: 34.5 | N15: JAN | O15: STOR | P15: FFOIHW | Q15: RAD | R15: 586 | S15: 1724.7
B16: JAN | C16: STOR | D16: TXITFJ | E16: RAD | F16: 10 | G16: 33 | N16: JAN | O16: STOR | P16: UXCDQR | Q16: RAD | R16: 24 | S16: 71.28
B17: JAN | C17: STOR | D17: PXQMOS | E17: RAD | F17: 13 | G17: 42.9 | N17: JAN | O17: STOR | P17: AACHUE | Q17: RAD | R17: 123 | S17: 405.9
B18: JAN | C18: STOR | D18: UXCDQR | E18: RAD | F18: 24 | G18: 71.28 | N18: JAN | O18: STOR | P18: WCPWME | Q18: RAD | R18: 39 | S18: 117
B19: JAN | C19: STOR | D19: NKIHXD | E19: RAD | F19: 31 | G19: 130.2 | N19: JAN | O19: STOR | P19: SEJXYB | Q19: RAD | R19: 372 | S19: 1078.8
B20: JAN | C20: STOR | D20: WCPWME | E20: RAD | F20: 39 | G20: 117 | N20: JAN | O20: STOR | P20: YRGVLL | Q20: RAD | R20: 182 | S20: 498.3
B21: JAN | C21: STOR | D21: JBROGG | E21: RAD | F21: 45 | G21: 156.6 | N21: JAN | O21: STOR | P21: OCNJGX | Q21: RAD | R21: 836 | S21: 2529.9
B22: JAN | C22: STOR | D22: NPINSO | E22: RAD | F22: 54 | G22: 129.6 | N22: JAN | O22: STOR | P22: JBROGG | Q22: RAD | R22: 45 | S22: 156.6
B23: JAN | C23: STOR | D23: SIFCSD | E23: RAD | F23: 56 | G23: 197.4 | N23: JAN | O23: STOR | P23: VWHKDV | Q23: RAD | R23: 124 | S23: 284.58
B24: JAN | C24: STOR | D24: OWGJGP | E24: RAD | F24: 60 | G24: 144 | N24: JAN | O24: STOR | P24: EHUUMC | Q24: RAD | R24: 142 | S24: 524.4
B25: FEB | C25: STOR | D25: CSLNFN | E25: QAP | F25: 62 | G25: 184.14 | N25: JAN | O25: STOR | P25: SIFCSD | Q25: RAD | R25: 56 | S25: 197.4
B26: JAN | C26: STOR | D26: RUTKKY | E26: RAD | F26: 97 | G26: 200.28 | N26: JAN | O26: STOR | P26: PXQMOS | Q26: RAD | R26: 13 | S26: 42.9
B27: JAN | C27: STOR | D27: AACHUE | E27: RAD | F27: 123 | G27: 405.9 | N27: JAN | O27: STOR | P27: IKTHLY | Q27: RAD | R27: 10 | S27: 34.5
B28: JAN | C28: STOR | D28: LGFWEH | E28: RAD | F28: 124 | G28: 368.28 | N28: JAN | O28: STOR | P28: SXNDWT | Q28: RAD | R28: 216 | S28: 565.5
B29: JAN | C29: STOR | D29: VWHKDV | E29: RAD | F29: 124 | G29: 284.58 | N29: JAN | O29: STOR | P29: RUTKKY | Q29: RAD | R29: 97 | S29: 200.28
B30: JAN | C30: STOR | D30: TOGZBM | E30: RAD | F30: 133 | G30: 311.31 | N30: JAN | O30: STOR | P30: HJRAPR | Q30: RAD | R30: 5 | S30: 21
B31: JAN | C31: STOR | D31: EHUUMC | E31: RAD | F31: 142 | G31: 524.4 | N31: JAN | O31: STOR | P31: NPINSO | Q31: RAD | R31: 54 | S31: 129.6
B32: FEB | C32: STOR | D32: VWHKDV | E32: QAP | F32: 142 | G32: 464.4 | N32: JAN | O32: STOR | P32: TXITFJ | Q32: RAD | R32: 10 | S32: 33
B33: JAN | C33: STOR | D33: JPQJZA | E33: RAD | F33: 154 | G33: 421.8 | N33: JAN | O33: STOR | P33: NKIHXD | Q33: RAD | R33: 31 | S33: 130.2
B34: FEB | C34: STOR | D34: PXQMOS | E34: QAP | F34: 155 | G34: 520.8 | N34: JAN | O34: STOR | P34: OWGJGP | Q34: RAD | R34: 60 | S34: 144
B35: JAN | C35: STOR | D35: FLMAYI | E35: RAD | F35: 165 | G35: 490.05 | N35: JAN | O35: STOR | P35: GRJYRN | Q35: RAD | R35: 888 | S35: 2495.19
B36: FEB | C36: STOR | D36: TOGZBM | E36: QAP | F36: 177 | G36: 412.29 | N36: JAN | O36: STOR | P36: WDAUAC | Q36: RAD | R36: 184 | S36: 464.28
B37: FEB | C37: STOR | D37: FLMAYI | E37: QAP | F37: 179 | G37: 532.05 | N37: JAN | O37: STOR | P37: JSIDAD | Q37: RAD | R37: 421 | S37: 1191.78
B38: JAN | C38: STOR | D38: YRGVLL | E38: RAD | F38: 182 | G38: 498.3 | N38: JAN | O38: STOR | P38: ANACYV | Q38: RAD | R38: 475 | S38: 1234.26
B39: JAN | C39: STOR | D39: WDAUAC | E39: RAD | F39: 184 | G39: 464.28 | N39: JAN | O39: STOR | P39: YQXVIW | Q39: RAD | R39: 385 | S39: 1153.54
B40: FEB | C40: STOR | D40: SIFCSD | E40: QAP | F40: 186 | G40: 613.8 | N40: JAN | O40: STOR | P40: JPQJZA | Q40: RAD | R40: 154 | S40: 421.8
B41: JAN | C41: STOR | D41: SXNDWT | E41: RAD | F41: 216 | G41: 565.5 | N41: JAN | O41: STOR | P41: YVSQVX | Q41: RAD | R41: 385 | S41: 1119.06
B42: FEB | C42: STOR | D42: EHUUMC | E42: QAP | F42: 246 | G42: 736.5 | N42: JAN | O42: STOR | P42: CSLNFN | Q42: RAD | R42: 399 | S42: 1145.7
B43: JAN | C43: STOR | D43: SEJXYB | E43: RAD | F43: 372 | G43: 1078.8 | N43: JAN | O43: STOR | P43: FLMAYI | Q43: RAD | R43: 165 | S43: 490.05
B44: JAN | C44: STOR | D44: YQXVIW | E44: RAD | F44: 385 | G44: 1153.54 | N44: JAN | O44: STOR | P44: TOGZBM | Q44: RAD | R44: 133 | S44: 311.31
B45: JAN | C45: STOR | D45: YVSQVX | E45: RAD | F45: 385 | G45: 1119.06 | N45: JAN | O45: STOR | P45: CSLNFN | Q45: QAP | R45: 62 | S45: 184.14
B46: JAN | C46: STOR | D46: CSLNFN | E46: RAD | F46: 399 | G46: 1145.7 | N46: JAN | O46: STOR | P46: FLMAYI | Q46: QAP | R46: 179 | S46: 532.05
B47: JAN | C47: STOR | D47: JSIDAD | E47: RAD | F47: 421 | G47: 1191.78 | N47: JAN | O47: STOR | P47: TOGZBM | Q47: QAP | R47: 177 | S47: 412.29
B48: JAN | C48: STOR | D48: ANACYV | E48: RAD | F48: 475 | G48: 1234.26 | N48: JAN | O48: STOR | P48: VWHKDV | Q48: QAP | R48: 142 | S48: 464.4
B49: JAN | C49: STOR | D49: FFOIHW | E49: RAD | F49: 586 | G49: 1724.7 | N49: JAN | O49: STOR | P49: EHUUMC | Q49: QAP | R49: 246 | S49: 736.5
B50: FEB | C50: STOR | D50: RUTKKY | E50: QAP | F50: 649 | G50: 1986.12 | N50: JAN | O50: STOR | P50: SIFCSD | Q50: QAP | R50: 186 | S50: 613.8
B51: FEB | C51: STOR | D51: HJRAPR | E51: QAP | F51: 739 | G51: 2342.52 | N51: JAN | O51: STOR | P51: PXQMOS | Q51: QAP | R51: 155 | S51: 520.8
B52: JAN | C52: STOR | D52: OCNJGX | E52: RAD | F52: 836 | G52: 2529.9 | N52: JAN | O52: STOR | P52: IKTHLY | Q52: QAP | R52: 1093 | S52: 3467.67
B53: JAN | C53: STOR | D53: GRJYRN | E53: RAD | F53: 888 | G53: 2495.19 | N53: JAN | O53: STOR | P53: SXNDWT | Q53: QAP | R53: 1577 | S53: 6393.72
B54: FEB | C54: STOR | D54: IKTHLY | E54: QAP | F54: 1093 | G54: 3467.67 | N54: JAN | O54: STOR | P54: RUTKKY | Q54: QAP | R54: 649 | S54: 1986.12
B55: FEB | C55: STOR | D55: SXNDWT | E55: QAP | F55: 1577 | G55: 6393.72 | N55: JAN | O55: STOR | P55: HJRAPR | Q55: QAP | R55: 739 | S55: 2342.52 | U55: =SUM('[2]T(48)'!R14:R55) -> 11943 | V55: =SUM('[2]T(48)'!S14:S55) -> 36939.1

Sheet Jan2006
A1: Date | B1: Region | C1: Sales Rep | D1: Customer | E1: Product | F1: Price | G1: Units | H1: COGS | I1: Sales | J1: Gross Profit
A2: 2006-01-05 | B2: West | C2: Rhonda | D2: ExcelIsVeryFun.com | E2: Deuce | F2: 25 | G2: 345 | H2: 5088.75 | I2: 8625 | J2: 3536.25
A3: 2006-01-11 | B3: North | C3: Sheliadawn | D3: McLendon's Hardware | E3: Sunshine | F3: 19 | G3: 333 | H3: 5915.745 | I3: 6327 | J3: 411.255
A4: 2006-01-12 | B4: West | C4: Troung | D4: ExcelIsVeryFun.com | E4: Bellen | F4: 21 | G4: 93 | H4: 1718.64 | I4: 1953 | J4: 234.36
A5: 2006-01-19 | B5: NorthEast | C5: Jon | D5: Whole Foods | E5: Quad | F5: 24 | G5: 256 | H5: 3379.2 | I5: 6144 | J5: 2764.8
A6: 2006-01-03 | B6: West | C6: Rhonda | D6: Solar and Wind Inc. | E6: Sunshine | F6: 19 | G6: 22 | H6: 246.62 | I6: 418 | J6: 171.38
A7: 2006-01-08 | B7: MidWest | C7: Rhonda | D7: Yahoo | E7: Aspen | F7: 14 | G7: 324 | H7: 2676.24 | I7: 4536 | J7: 1859.76
A8: 2006-01-25 | B8: MidWest | C8: Sheliadawn | D8: Google | E8: Bellen | F8: 21 | G8: 208 | H8: 1965.6 | I8: 4368 | J8: 2402.4
A9: 2006-01-30 | B9: SouthEast | C9: Jon | D9: Nature Company | E9: Carlota | F9: 22 | G9: 62 | H9: 1200.32 | I9: 1364 | J9: 163.68

Sheet PT
B3: Years | C3: Values
B4: 2005 | D4: 2006 | F4: 2007
A5: Date | B5: Average of Sales | C5: StdDevp of Sales | D5: Average of Sales | E5: StdDevp of Sales | F5: Average of Sales | G5: StdDevp of Sales
A6: Jan | D6: 4216.875 | E6: 2631.970765 | F6: 5092 | G6: 3332.144467
A7: Feb | B7: 5148.5 | C7: 3734.5 | D7: 6112.333333 | E7: 2472.111603 | F7: 4797.714286 | G7: 3125.491034
A8: Mar | B8: 4670.8 | C8: 2756.710895 | D8: 5734.428571 | E8: 930.860563
A9: Apr | B9: 5586.75 | C9: 2653.650634 | D9: 3102.083333 | E9: 2376.771285
A10: Grand Total | B10: 4959.5 | C10: 2899.716215 | D10: 4614.222222 | E10: 2592.505803 | F10: 4954.666667 | G10: 3240.675602

Sheet PT2
A3: Sum of Sales | B3: Column Labels
A4: Row Labels | B4: 2005 | C4: 2006 | D4: Grand Total
A5: Aspen | B5: 16058 | C5: 30646 | D5: 46704
A6: Bellen | B6: 67851 | C6: 47145 | D6: 114996
A7: Carlota | B7: 40898 | C7: 82324 | D7: 123222
A8: Deuce | B8: 28950 | C8: 54275 | D8: 83225
A9: Quad | B9: 46656 | C9: 22200 | D9: 68856
A10: Regal | B10: 27405 | C10: 25170 | D10: 52575
A11: Sunset | B11: 66528 | C11: 69153 | D11: 135681
A12: Sunshine | B12: 39767 | C12: 55024 | D12: 94791
A13: SunSpot | B13: 38592 | C13: 50656 | D13: 89248
A14: Yanaki | B14: 32000 | C14: 53300 | D14: 85300
A15: Grand Total | B15: 404705 | C15: 489893 | D15: 894598

Sheet GP%PT
A3: GP% | B3: Column Labels
A4: Row Labels | B4: 2005 | C4: 2006 | D4: 2007 | E4: Grand Total
A5: MidWest | B5: 0.3283879305 | C5: 0.4050854717 | D5: 0.065 | E5: 0.3724872771
A6: North | B6: 0.3326992316 | C6: 0.4028259763 | D6: 0.4394473774 | E6: 0.3700213405
A7: NorthEast | B7: 0.3960000196 | C7: 0.373285195 | D7: 0.2430385164 | E7: 0.3810516479
A8: SouthEast | B8: 0.4061818157 | C8: 0.4296582245 | D8: 0.2801646038 | E8: 0.4024409319
A9: West | B9: 0.3892483474 | C9: 0.3695209586 | D9: 0.4736007463 | E9: 0.3875859943
A10: Grand Total | B10: 0.3702991562 | C10: 0.3937642404 | D10: 0.3793566335 | E10: 0.3828580437

Sheet PT4
B3: Years | C3: Date | D3: Values
B4: 2006
B5: Jan | E5: Feb
A6: Product | B6: Sales | C6: Diff | D6: Diff % | E6: Sales | F6: Diff | G6: Diff %
A7: Aspen | B7: 4536 | E7: 3948 | F7: -588 | G7: -0.1296296296
A8: Bellen | B8: 6321 | E8: 9282 | F8: 2961 | G8: 0.4684385382
A9: Carlota | B9: 1364 | E9: 5940 | F9: 4576 | G9: 3.35483871
A10: Deuce | B10: 8625 | E10: 2275 | F10: -6350 | G10: -0.7362318841
A11: Quad | B11: 6144 | E11: 2472 | F11: -3672 | G11: -0.59765625
A12: Sunset | E12: 8043 | F12: 8043
A13: Sunshine | B13: 6745 | E13: 7847 | F13: 1102 | G13: 0.1633802817
A14: SunSpot | E14: 6864 | F14: 6864
A15: Yanaki | E15: 8340 | F15: 8340
A16: Grand Total | B16: 33735 | E16: 55011 | F16: 21276 | G16: 0.6306803024

Sheet Amazon.com
A1: Customer | B1: Amazon.com
A3: Sum of Sales | B3: Column Labels
A4: Row Labels | B4: 2005 | C4: 2006 | D4: Grand Total
A5: Bellen | B5: 6951 | C5: 10080 | D5: 17031
A6: Carlota | C6: 12474 | D6: 12474
A7: Deuce | C7: 2425 | D7: 2425
A8: Sunset | B8: 5670 | D8: 5670
A9: Sunshine | C9: 2546 | D9: 2546
A10: SunSpot | B10: 5664 | D10: 5664
A11: Grand Total | B11: 18285 | C11: 27525 | D11: 45810

Sheet Costco
A1: Customer | B1: Costco
A3: Sum of Sales | B3: Column Labels
A4: Row Labels | B4: 2005 | C4: 2006 | D4: 2007 | E4: Grand Total
A5: Aspen | B5: 5698 | E5: 5698
A6: Bellen | B6: 7959 | C6: 9954 | E6: 17913
A7: Quad | B7: 18744 | E7: 18744
A8: Sunshine | C8: 3382 | D8: 1862 | E8: 5244
A9: SunSpot | C9: 1344 | E9: 1344
A10: Grand Total | B10: 32401 | C10: 14680 | D10: 1862 | E10: 48943

Sheet ExcelIsVeryFun.com
A1: Customer | B1: ExcelIsVeryFun.com
A3: Sum of Sales | B3: Column Labels
A4: Row Labels | B4: 2005 | C4: 2006 | D4: 2007 | E4: Grand Total
A5: Aspen | B5: 3500 | C5: 5586 | E5: 9086
A6: Bellen | C6: 1953 | E6: 1953
A7: Carlota | C7: 6028 | E7: 6028
A8: Deuce | B8: 4075 | C8: 8625 | E8: 12700
A9: Quad | B9: 8352 | C9: 3816 | E9: 12168
A10: Regal | B10: 2400 | C10: 9660 | E10: 12060
A11: Sunset | B11: 4767 | E11: 4767
A12: Sunshine | B12: 4123 | C12: 7790 | D12: 798 | E12: 12711
A13: SunSpot | C13: 6912 | E13: 6912
A14: Yanaki | B14: 7220 | C14: 7460 | E14: 14680
A15: Grand Total | B15: 34437 | C15: 57830 | D15: 798 | E15: 93065

Sheet Google
A1: Customer | B1: Google
A3: Sum of Sales | B3: Column Labels
A4: Row Labels | B4: 2005 | C4: 2006 | D4: 2007 | E4: Grand Total
A5: Bellen | C5: 15561 | E5: 15561
A6: Carlota | B6: 968 | E6: 968
A7: Quad | B7: 13392 | D7: 6216 | E7: 19608
A8: Regal | B8: 1725 | C8: 3405 | E8: 5130
A9: Sunset | B9: 7959 | C9: 13398 | E9: 21357
A10: Sunshine | B10: 3914 | C10: 11438 | E10: 15352
A11: SunSpot | C11: 5184 | E11: 5184
A12: Yanaki | C12: 8320 | E12: 8320
A13: Grand Total | B13: 27958 | C13: 57306 | D13: 6216 | E13: 91480

Sheet Home Depot
A1: Customer | B1: Home Depot
A3: Sum of Sales | B3: Column Labels
A4: Row Labels | B4: 2005 | C4: 2006 | D4: 2007 | E4: Grand Total
A5: Aspen | C5: 1316 | E5: 1316
A6: Bellen | B6: 24948 | E6: 24948
A7: Carlota | C7: 1628 | E7: 1628
A8: Deuce | C8: 3050 | D8: 1675 | E8: 4725
A9: Sunset | B9: 13734 | C9: 9975 | E9: 23709
A10: SunSpot | B10: 12192 | E10: 12192
A11: Grand Total | B11: 50874 | C11: 15969 | D11: 1675 | E11: 68518

Sheet McLendon's Hardware
A1: Customer | B1: McLendon's Hardware
A3: Sum of Sales | B3: Column Labels
A4: Row Labels | B4: 2005 | C4: 2006 | D4: Grand Total
A5: Bellen | C5: 9282 | D5: 9282
A6: Carlota | B6: 8470 | D6: 8470
A7: Quad | B7: 1968 | C7: 4152 | D7: 6120
A8: Sunset | B8: 1827 | D8: 1827
A9: Sunshine | B9: 7030 | C9: 13889 | D9: 20919
A10: SunSpot | B10: 9376 | C10: 5744 | D10: 15120
A11: Yanaki | C11: 4580 | D11: 4580
A12: Grand Total | B12: 28671 | C12: 37647 | D12: 66318

Sheet Nature Company
A1: Customer | B1: Nature Company
A3: Sum of Sales | B3: Column Labels
A4: Row Labels | B4: 2005 | C4: 2006 | D4: Grand Total
A5: Aspen | C5: 3948 | D5: 3948
A6: Bellen | C6: 315 | D6: 315
A7: Carlota | B7: 1936 | C7: 10296 | D7: 12232
A8: Quad | B8: 3744 | D8: 3744
A9: Sunset | B9: 7434 | C9: 8043 | D9: 15477
A10: Sunshine | B10: 5434 | C10: 4731 | D10: 10165
A11: SunSpot | C11: 6704 | D11: 6704
A12: Yanaki | B12: 1800 | D12: 1800
A13: Grand Total | B13: 20348 | C13: 34037 | D13: 54385

Sheet Office Depot
A1: Customer | B1: Office Depot
A3: Sum of Sales | B3: Column Labels
A4: Row Labels | B4: 2005 | C4: 2006 | D4: Grand Total
A5: Carlota | B5: 8382 | D5: 8382
A6: Deuce | C6: 24025 | D6: 24025
A7: Regal | B7: 3750 | D7: 3750
A8: Sunset | C8: 4725 | D8: 4725
A9: SunSpot | B9: 2944 | D9: 2944
A10: Yanaki | B10: 6820 | D10: 6820
A11: Grand Total | B11: 21896 | C11: 28750 | D11: 50646

Sheet Peet's Coffee
A1: Customer | B1: Peet's Coffee
A3: Sum of Sales | B3: Column Labels
A4: Row Labels | B4: 2005 | C4: 2006 | D4: 2007 | E4: Grand Total
A5: Aspen | B5: 2002 | E5: 2002
A6: Bellen | B6: 5313 | E6: 5313
A7: Carlota | C7: 18722 | E7: 18722
A8: Deuce | C8: 375 | E8: 375
A9: Quad | D9: 2568 | E9: 2568
A10: Regal | B10: 6870 | E10: 6870
A11: SunSpot | C11: 6864 | E11: 6864
A12: Yanaki | B12: 3360 | E12: 3360
A13: Grand Total | B13: 17545 | C13: 25961 | D13: 2568 | E13: 46074

Sheet Sherman Williams
A1: Customer | B1: Sherman Williams
A3: Sum of Sales | B3: Column Labels
A4: Row Labels | B4: 2005 | C4: 2006 | D4: 2007 | E4: Grand Total
A5: Aspen | B5: 70 | E5: 70
A6: Bellen | B6: 9786 | E6: 9786
A7: Carlota | B7: 7634 | C7: 5720 | E7: 13354
A8: Deuce | D8: 1150 | E8: 1150
A9: Regal | B9: 3210 | C9: 6765 | E9: 9975
A10: Sunset | C10: 8547 | E10: 8547
A11: Sunshine | C11: 4636 | E11: 4636
A12: SunSpot | D12: 7376 | E12: 7376
A13: Yanaki | B13: 5460 | C13: 5460 | E13: 10920
A14: Grand Total | B14: 26160 | C14: 31128 | D14: 8526 | E14: 65814

Sheet Solar and Wind Inc.
A1: Customer | B1: Solar and Wind Inc.
A3: Sum of Sales | B3: Column Labels
A4: Row Labels | B4: 2005 | C4: 2006 | D4: 2007 | E4: Grand Total
A5: Aspen | B5: 4102 | C5: 4438 | E5: 8540
A6: Bellen | B6: 12894 | E6: 12894
A7: Carlota | B7: 8030 | C7: 5940 | E7: 13970
A8: Deuce | B8: 11425 | C8: 15775 | E8: 27200
A9: Regal | B9: 5040 | C9: 4515 | E9: 9555
A10: Sunset | B10: 2394 | D10: 5880 | E10: 8274
A11: Sunshine | B11: 3496 | C11: 418 | E11: 3914
A12: Yanaki | B12: 1860 | C12: 6280 | E12: 8140
A13: Grand Total | B13: 49241 | C13: 37366 | D13: 5880 | E13: 92487

Sheet The Economist
A1: Customer | B1: The Economist
A3: Sum of Sales | B3: Column Labels
A4: Row Labels | B4: 2005 | C4: 2006 | D4: 2007 | E4: Grand Total
A5: Aspen | C5: 4634 | E5: 4634
A6: Carlota | B6: 1078 | E6: 1078
A7: Deuce | B7: 10575 | D7: 12100 | E7: 22675
A8: Quad | C8: 5616 | E8: 5616
A9: Regal | B9: 1995 | E9: 1995
A10: Sunset | B10: 10185 | E10: 10185
A11: Sunshine | B11: 608 | E11: 608
A12: SunSpot | C12: 3072 | D12: 3056 | E12: 6128
A13: Yanaki | D13: 5780 | E13: 5780
A14: Grand Total | B14: 24441 | C14: 13322 | D14: 20936 | E14: 58699

Sheet Whole Foods
A1: Customer | B1: Whole Foods
A3: Sum of Sales | B3: Column Labels
A4: Row Labels | B4: 2005 | C4: 2006 | D4: 2007 | E4: Grand Total
A5: Aspen | C5: 6188 | E5: 6188
A6: Carlota | C6: 6226 | E6: 6226
A7: Quad | C7: 6144 | D7: 8352 | E7: 14496
A8: Regal | C8: 825 | E8: 825
A9: Sunset | B9: 6909 | E9: 6909
A10: Sunshine | B10: 7315 | C10: 6194 | E10: 13509
A11: SunSpot | C11: 8928 | E11: 8928
A12: Yanaki | B12: 2340 | C12: 1860 | E12: 4200
A13: Grand Total | B13: 16564 | C13: 36365 | D13: 8352 | E13: 61281

Sheet Yahoo
A1: Customer | B1: Yahoo
A3: Sum of Sales | B3: Column Labels
A4: Row Labels | B4: 2005 | C4: 2006 | D4: 2007 | E4: Grand Total
A5: Aspen | B5: 686 | C5: 4536 | E5: 5222
A6: Bellen | D6: 14448 | E6: 14448
A7: Carlota | B7: 4400 | C7: 15290 | E7: 19690
A8: Deuce | B8: 2875 | E8: 2875
A9: Quad | B9: 456 | C9: 2472 | E9: 2928
A10: Regal | B10: 2415 | E10: 2415
A11: Sunset | B11: 5649 | C11: 24465 | E11: 30114
A12: Sunshine | B12: 7847 | D12: 3059 | E12: 10906
A13: SunSpot | B13: 8416 | C13: 5904 | E13: 14320
A14: Yanaki | B14: 3140 | C14: 19340 | E14: 22480
A15: Grand Total | B15: 35884 | C15: 72007 | D15: 17507 | E15: 125398

Sheet PT3
A1: Customer | B1: (All)
A3: Sum of Sales | B3: Column Labels
A4: Row Labels | B4: 2005 | C4: 2006 | D4: 2007 | E4: Grand Total
A5: Aspen | B5: 16058 | C5: 30646 | E5: 46704
A6: Bellen | B6: 67851 | C6: 47145 | D6: 14448 | E6: 129444
A7: Carlota | B7: 40898 | C7: 82324 | E7: 123222
A8: Deuce | B8: 28950 | C8: 54275 | D8: 14925 | E8: 98150
A9: Quad | B9: 46656 | C9: 22200 | D9: 17136 | E9: 85992
A10: Regal | B10: 27405 | C10: 25170 | E10: 52575
A11: Sunset | B11: 66528 | C11: 69153 | D11: 5880 | E11: 141561
A12: Sunshine | B12: 39767 | C12: 55024 | D12: 5719 | E12: 100510
A13: SunSpot | B13: 38592 | C13: 50656 | D13: 10432 | E13: 99680
A14: Yanaki | B14: 32000 | C14: 53300 | D14: 5780 | E14: 91080
A15: Grand Total | B15: 404705 | C15: 489893 | D15: 74320 | E15: 968918

Sheet PivotTable
A1: =ROW()&")" -> 1) | B1: Data must be in Proper Excel Table format before you can make a Pivot Table | N1: Proper Format
A2: =ROW()&")" -> 2) | B2: In Excel 2003, start Pivot Table by going to the Data Menu, Pivot Table | N2: Create PT in 2003
A3: =ROW()&")" -> 3) | B3: In Excel 2007, start Pivot Table by going to the Insert Ribbon, Table Group, Pivot Table | N3: Create PT in 2007
A4: =ROW()&")" -> 4) | B4: Excel 2007 Drag and drop to move fields in the Field List Area | N4: Drag & Drop in 2003
A5: 5) | B5: Excel 2003 Drag and drop to move fields from the Field List Area to the Pivot Table area in the sheet | N5: Drag & Drop in 2007 | O5: Region, Product, Year, Month
A6: 6) | B6: If you are in Excel 2007 and you want the old 2003 method of drag and drop, right-click in the Pivot Table sheet, point to Pivot Table Options, Click on the Display Tab, then select "Classic Pivot Table layout" | N6: Change 2007 to 2003
A7: 7) | B7: Right-click Date Field and Group by date (be sure to select Year when you have more than 1 year of dates) | N7: Group Dates
A8: 8) | B8: Double clicking a cell in a Pivot Table will create a new sheet with all the records that made up that cell | N8: Drill Down
A9: 9) | B9: Fright-click Field in Pivot Table and point to "Value Field Settings" to Change Function | N9: Value Field Settings: Function
A10: 10) | B10: Fright-click Field in Pivot Table and point to "Value Field Settings" to Change Number Format | N10: Value Field Settings: Number Format
A11: 11) | B11: To Change Style and Format go to Pivot Table Tools Design Ribbon, Pivot Table Styles | N11: Styles
A12: 12) | B12: To Create Pivot Chart go to Pivot Table Tools Options Ribbon, Tools Group, Pivot Chart button | N12: Pivot Chart: Product Year
A13: 13) | B13: To Create Pivot Table Formula go to Pivot Table Tools Options Ribbon, Tools Group, Formula button | N13: Formula: Year, GP %
A14: 14) | B14: Fright-click Field in Pivot Table and point to "Value Field Settings" to Change "Show Value As" and select "Difference From" | N14: Product, Month, Jan-Apr, Diff From
A15: 15) | B15: Fright-click Field in Pivot Table and point to "Value Field Settings" to Change "Show Value As" and select "% Difference From" | N15: Product, Month, Jan-Apr, % Diff From
A16: 16) | B16: Report (2007) or Page (2003) Filter will filter the whole Pivot Table. | N16: Report Filter, 2006, products, Region, Show Report Filter Pages
A17: 17) | B17: In 2007 if you go to the Pivot Table Tools Options Ribbon, Pivot Table Group, then Options, Then "Show Report Filter Pages", a new sheet will be created with a new Pivot Table for each of the field elements in the "Report Filter" Field.
A18: 18) | B18: In 2003 if you click on the Pivot Table button on the Pivot Table Toolbar, then click on the "Show Pages", a new sheet will be created with a new Pivot Table for each of the field elements in the "Page Filter" Field.
B21: Date | C21: Region | D21: Sales Rep | E21: Customer | F21: Product | G21: Price | H21: Units | I21: COGS | J21: Sales | K21: Gross Profit | O21: check GP%
B22: 2005-08-05 | C22: North | D22: Luke | E22: Peet's Coffee | F22: Yanaki | G22: 20 | H22: 168 | I22: 2956.8 | J22: 3360 | K22: 403.2 | O22: =SUMPRODUCT((C22:C230="MidWest")*(YEAR(B22:B230)=2005)*K22:K230)/SUMPRODUCT((C22:C230="MidWest")*(YEAR(B22:B230)=2005)*J22:J230) -> 0.3283879305
B23: 2007-01-16 | C23: SouthEast | D23: Troung | E23: Yahoo | F23: Sunshine | G23: 19 | H23: 161 | I23: 1682.45 | J23: 3059 | K23: 1376.55
B24: 2006-07-27 | C24: NorthEast | D24: Rhonda | E24: Google | F24: SunSpot | G24: 16 | H24: 324 | I24: 3888 | J24: 5184 | K24: 1296
B25: 2006-03-09 | C25: West | D25: Steven | E25: Solar and Wind Inc. | F25: Regal | G25: 15 | H25: 301 | I25: 1670.55 | J25: 4515 | K25: 2844.45
B26: 2005-03-01 | C26: NorthEast | D26: Steven | E26: Whole Foods | F26: Sunset | G26: 21 | H26: 178 | I26: 3495.03 | J26: 3738 | K26: 242.97
B27: 2005-04-19 | C27: North | D27: Rhonda | E27: Solar and Wind Inc. | F27: Bellen | G27: 21 | H27: 149 | I27: 1846.11 | J27: 3129 | K27: 1282.89
B28: 2006-05-19 | C28: NorthEast | D28: Rhonda | E28: Sherman Williams | F28: Sunshine | G28: 19 | H28: 244 | I28: 2735.24 | J28: 4636 | K28: 1900.76
B29: 2005-07-26 | C29: SouthEast | D29: Steven | E29: The Economist | F29: Sunshine | G29: 19 | H29: 32 | I29: 273.6 | J29: 608 | K29: 334.4
B30: 2005-11-30 | C30: NorthEast | D30: Rhonda | E30: The Economist | F30: Carlota | G30: 22 | H30: 49 | I30: 1007.93 | J30: 1078 | K30: 70.07
B31: 2006-07-30 | C31: West | D31: Steven | E31: Yahoo | F31: Carlota | G31: 22 | H31: 408 | I31: 6103.68 | J31: 8976 | K31: 2872.32
B32: 2006-12-19 | C32: North | D32: Chin | E32: Office Depot | F32: Sunset | G32: 21 | H32: 225 | I32: 2598.75 | J32: 4725 | K32: 2126.25
B33: 2005-03-08 | C33: MidWest | D33: Jon | E33: Yahoo | F33: SunSpot | G33: 16 | H33: 121 | I33: 716.32 | J33: 1936 | K33: 1219.68
B34: 2007-01-19 | C34: West | D34: Sheliadawn | E34: Google | F34: Quad | G34: 24 | H34: 259 | I34: 2797.2 | J34: 6216 | K34: 3418.8
B35: 2005-08-20 | C35: West | D35: Steven | E35: Whole Foods | F35: Yanaki | G35: 20 | H35: 117 | I35: 1591.2 | J35: 2340 | K35: 748.8
B36: 2005-06-11 | C36: NorthEast | D36: Steven | E36: McLendon's Hardware | F36: Sunset | G36: 21 | H36: 2 | I36: 23.1 | J36: 42 | K36: 18.9
B37: 2005-12-01 | C37: NorthEast | D37: Troung | E37: Peet's Coffee | F37: Aspen | G37: 14 | H37: 143 | I37: 1101.1 | J37: 2002 | K37: 900.9
B38: 2006-12-04 | C38: NorthEast | D38: Luke | E38: Home Depot | F38: Aspen | G38: 14 | H38: 94 | I38: 565.88 | J38: 1316 | K38: 750.12
B39: 2005-08-26 | C39: North | D39: Jon | E39: ExcelIsVeryFun.com | F39: Yanaki | G39: 20 | H39: 219 | I39: 3285 | J39: 4380 | K39: 1095
B40: 2006-02-21 | C40: SouthEast | D40: Jon | E40: Peet's Coffee | F40: SunSpot | G40: 16 | H40: 429 | I40: 3775.2 | J40: 6864 | K40: 3088.8
B41: 2005-09-28 | C41: SouthEast | D41: Troung | E41: Nature Company | F41: Sunset | G41: 21 | H41: 354 | I41: 3196.62 | J41: 7434 | K41: 4237.38
B42: 2005-07-29 | C42: West | D42: Rhonda | E42: Home Depot | F42: SunSpot | G42: 16 | H42: 440 | I42: 6195.2 | J42: 7040 | K42: 844.8
B43: 2006-12-29 | C43: MidWest | D43: Jeri | E43: Yahoo | F43: Yanaki | G43: 20 | H43: 345 | I43: 4071 | J43: 6900 | K43: 2829
B44: 2005-12-06 | C44: North | D44: Jon | E44: The Economist | F44: Deuce | G44: 25 | H44: 118 | I44: 2212.5 | J44: 2950 | K44: 737.5
B45: 2005-06-23 | C45: NorthEast | D45: Luke | E45: McLendon's Hardware | F45: Carlota | G45: 22 | H45: 385 | I45: 3642.1 | J45: 8470 | K45: 4827.9
B46: 2005-09-21 | C46: NorthEast | D46: Rhonda | E46: ExcelIsVeryFun.com | F46: Sunshine | G46: 19 | H46: 217 | I46: 2391.34 | J46: 4123 | K46: 1731.66
B47: 2005-07-31 | C47: North | D47: Sheliadawn | E47: Office Depot | F47: Carlota | G47: 22 | H47: 381 | I47: 7376.16 | J47: 8382 | K47: 1005.84
B48: 2006-05-15 | C48: West | D48: Sheliadawn | E48: McLendon's Hardware | F48: Quad | G48: 24 | H48: 157 | I48: 1695.6 | J48: 3768 | K48: 2072.4
B49: 2006-12-02 | C49: NorthEast | D49: Rhonda | E49: Home Depot | F49: Sunset | G49: 21 | H49: 2 | I49: 18.06 | J49: 42 | K49: 23.94
B50: 2006-11-27 | C50: MidWest | D50: Jon | E50: Costco | F50: Bellen | G50: 21 | H50: 52 | I50: 404.04 | J50: 1092 | K50: 687.96
B51: 2006-01-30 | C51: SouthEast | D51: Jon | E51: Nature Company | F51: Carlota | G51: 22 | H51: 62 | I51: 1200.32 | J51: 1364 | K51: 163.68
B52: 2005-10-11 | C52: NorthEast | D52: Steven | E52: Home Depot | F52: SunSpot | G52: 16 | H52: 322 | I52: 3864 | J52: 5152 | K52: 1288
B53: 2006-11-13 | C53: MidWest | D53: Steven | E53: Office Depot | F53: Deuce | G53: 25 | H53: 18 | I53: 247.5 | J53: 450 | K53: 202.5
B54: 2006-01-25 | C54: MidWest | D54: Sheliadawn | E54: Google | F54: Bellen | G54: 21 | H54: 208 | I54: 1965.6 | J54: 4368 | K54: 2402.4
B55: 2005-10-01 | C55: West | D55: Rhonda | E55: Office Depot | F55: Regal | G55: 15 | H55: 250 | I55: 2062.5 | J55: 3750 | K55: 1687.5
B56: 2006-06-28 | C56: NorthEast | D56: Troung | E56: Google | F56: Sunset | G56: 21 | H56: 333 | I56: 3146.85 | J56: 6993 | K56: 3846.15
B57: 2006-02-05 | C57: MidWest | D57: Luke | E57: Yahoo | F57: Quad | G57: 24 | H57: 103 | I57: 1062.96 | J57: 2472 | K57: 1409.04
B58: 2006-04-12 | C58: SouthEast | D58: Rhonda | E58: ExcelIsVeryFun.com | F58: Regal | G58: 15 | H58: 317 | I58: 2757.9 | J58: 4755 | K58: 1997.1
B59: 2006-11-18 | C59: SouthEast | D59: Chin | E59: McLendon's Hardware | F59: Sunshine | G59: 19 | H59: 267 | I59: 1877.01 | J59: 5073 | K59: 3195.99
B60: 2006-02-17 | C60: North | D60: Jon | E60: Office Depot | F60: Deuce | G60: 25 | H60: 91 | I60: 1342.25 | J60: 2275 | K60: 932.75
B61: 2005-11-09 | C61: North | D61: Chin | E61: Solar and Wind Inc. | F61: Deuce | G61: 25 | H61: 457 | I61: 10682.375 | J61: 11425 | K61: 742.625
B62: 2006-04-09 | C62: SouthEast | D62: Jeri | E62: Solar and Wind Inc. | F62: Deuce | G62: 25 | H62: 12 | I62: 204 | J62: 300 | K62: 96
B63: 2006-02-13 | C63: West | D63: Steven | E63: Solar and Wind Inc. | F63: Carlota | G63: 22 | H63: 270 | I63: 5227.2 | J63: 5940 | K63: 712.8
B64: 2005-12-02 | C64: SouthEast | D64: Jon | E64: Nature Company | F64: Sunshine | G64: 19 | H64: 103 | I64: 880.65 | J64: 1957 | K64: 1076.35
B65: 2005-10-31 | C65: North | D65: Chin | E65: Solar and Wind Inc. | F65: Carlota | G65: 22 | H65: 365 | I65: 4737.7 | J65: 8030 | K65: 3292.3
B66: 2006-05-18 | C66: SouthEast | D66: Chin | E66: The Economist | F66: Quad | G66: 24 | H66: 234 | I66: 3313.44 | J66: 5616 | K66: 2302.56
B67: 2005-12-12 | C67: North | D67: Sheliadawn | E67: Office Depot | F67: Yanaki | G67: 20 | H67: 341 | I67: 3955.6 | J67: 6820 | K67: 2864.4
B68: 2005-09-22 | C68: NorthEast | D68: Chin | E68: Costco | F68: Bellen | G68: 21 | H68: 39 | I68: 368.55 | J68: 819 | K68: 450.45
B69: 2006-07-27 | C69: MidWest | D69: Troung | E69: Sherman Williams | F69: Carlota | G69: 22 | H69: 260 | I69: 4290 | J69: 5720 | K69: 1430
B70: 2006-11-23 | C70: SouthEast | D70: Chin | E70: Amazon.com | F70: Sunshine | G70: 19 | H70: 134 | I70: 1502.14 | J70: 2546 | K70: 1043.86
B71: 2006-10-12 | C71: NorthEast | D71: Jeri | E71: Amazon.com | F71: Bellen | G71: 21 | H71: 81 | I71: 1003.59 | J71: 1701 | K71: 697.41
B72: 2006-12-03 | C72: NorthEast | D72: Troung | E72: ExcelIsVeryFun.com | F72: Quad | G72: 24 | H72: 159 | I72: 2098.8 | J72: 3816 | K72: 1717.2
B73: 2007-02-18 | C73: SouthEast | D73: Sheliadawn | E73: Whole Foods | F73: Quad | G73: 24 | H73: 348 | I73: 4593.6 | J73: 8352 | K73: 3758.4
B74: 2006-03-02 | C74: SouthEast | D74: Rhonda | E74: Whole Foods | F74: Carlota | G74: 22 | H74: 283 | I74: 2801.7 | J74: 6226 | K74: 3424.3
B75: 2005-09-05 | C75: MidWest | D75: Troung | E75: ExcelIsVeryFun.com | F75: Aspen | G75: 14 | H75: 149 | I75: 1209.88 | J75: 2086 | K75: 876.12
B76: 2006-10-18 | C76: NorthEast | D76: Troung | E76: Yahoo | F76: Sunset | G76: 21 | H76: 272 | I76: 5026.56 | J76: 5712 | K76: 685.44
B77: 2006-07-25 | C77: MidWest | D77: Chin | E77: Whole Foods | F77: Aspen | G77: 14 | H77: 309 | I77: 2552.34 | J77: 4326 | K77: 1773.66
B78: 2007-01-06 | C78: West | D78: Troung | E78: Peet's Coffee | F78: Quad | G78: 24 | H78: 107 | I78: 1155.6 | J78: 2568 | K78: 1412.4
B79: 2005-08-26 | C79: North | D79: Sheliadawn | E79: Yahoo | F79: Yanaki | G79: 20 | H79: 157 | I79: 1852.6 | J79: 3140 | K79: 1287.4
B80: 2007-02-18 | C80: North | D80: Jon | E80: ExcelIsVeryFun.com | F80: Sunshine | G80: 19 | H80: 42 | I80: 343.14 | J80: 798 | K80: 454.86
B81: 2006-01-08 | C81: MidWest | D81: Rhonda | E81: Yahoo | F81: Aspen | G81: 14 | H81: 324 | I81: 2676.24 | J81: 4536 | K81: 1859.76
B82: 2006-03-15 | C82: NorthEast | D82: Rhonda | E82: Google | F82: Bellen | G82: 21 | H82: 213 | I82: 2012.85 | J82: 4473 | K82: 2460.15
B83: 2005-06-26 | C83: SouthEast | D83: Luke | E83: Google | F83: Sunshine | G83: 19 | H83: 206 | I83: 3444.32 | J83: 3914 | K83: 469.68
B84: 2006-04-20 | C84: West | D84: Jon | E84: Solar and Wind Inc. | F84: Deuce | G84: 25 | H84: 255 | I84: 3761.25 | J84: 6375 | K84: 2613.75
B85: 2006-08-29 | C85: North | D85: Jon | E85: Home Depot | F85: Sunset | G85: 21 | H85: 150 | I85: 1354.5 | J85: 3150 | K85: 1795.5
B86: 2006-09-04 | C86: North | D86: Chin | E86: Sherman Williams | F86: Regal | G86: 15 | H86: 451 | I86: 5073.75 | J86: 6765 | K86: 1691.25
B87: 2006-06-16 | C87: MidWest | D87: Rhonda | E87: Google | F87: Sunshine | G87: 19 | H87: 189 | I87: 2118.69 | J87: 3591 | K87: 1472.31
B88: 2005-10-28 | C88: North | D88: Jon | E88: The Economist | F88: Deuce | G88: 25 | H88: 305 | I88: 5185 | J88: 7625 | K88: 2440
B89: 2005-03-05 | C89: NorthEast | D89: Chin | E89: McLendon's Hardware | F89: Sunshine | G89: 19 | H89: 121 | I89: 1333.42 | J89: 2299 | K89: 965.58
B90: 2006-08-28 | C90: SouthEast | D90: Rhonda | E90: Whole Foods | F90: Sunshine | G90: 19 | H90: 326 | I90: 3406.7 | J90: 6194 | K90: 2787.3
B91: 2005-09-21 | C91: NorthEast | D91: Steven | E91: Home Depot | F91: Sunset | G91: 21 | H91: 290 | I91: 5359.2 | J91: 6090 | K91: 730.8
B92: 2005-07-06 | C92: SouthEast | D92: Troung | E92: Solar and Wind Inc. | F92: Aspen | G92: 14 | H92: 278 | I92: 2296.28 | J92: 3892 | K92: 1595.72
B93: 2007-02-05 | C93: West | D93: Luke | E93: Yahoo | F93: Bellen | G93: 21 | H93: 234 | I93: 2702.7 | J93: 4914 | K93: 2211.3
B94: 2006-08-01 | C94: West | D94: Jeri | E94: ExcelIsVeryFun.com | F94: Sunshine | G94: 19 | H94: 410 | I94: 6855.2 | J94: 7790 | K94: 934.8
B95: 2005-07-27 | C95: NorthEast | D95: Chin | E95: Google | F95: Carlota | G95: 22 | H95: 44 | I95: 658.24 | J95: 968 | K95: 309.76
B96: 2007-01-08 | C96: MidWest | D96: Jeri | E96: Home Depot | F96: Deuce | G96: 25 | H96: 67 | I96: 1566.125 | J96: 1675 | K96: 108.875
B97: 2005-12-05 | C97: NorthEast | D97: Steven | E97: Solar and Wind Inc. | F97: Sunset | G97: 21 | H97: 114 | I97: 1412.46 | J97: 2394 | K97: 981.54
B98: 2005-09-27 | C98: NorthEast | D98: Sheliadawn | E98: ExcelIsVeryFun.com | F98: Yanaki | G98: 20 | H98: 62 | I98: 682 | J98: 1240 | K98: 558
B99: 2005-07-18 | C99: North | D99: Jon | E99: Amazon.com | F99: Sunset | G99: 21 | H99: 270 | I99: 3118.5 | J99: 5670 | K99: 2551.5
B100: 2006-04-30 | C100: West | D100: Jon | E100: Google | F100: Regal | G100: 15 | H100: 109 | I100: 735.75 | J100: 1635 | K100: 899.25
B101: 2005-11-09 | C101: NorthEast | D101: Troung | E101: ExcelIsVeryFun.com | F101: Yanaki | G101: 20 | H101: 80 | I101: 720 | J101: 1600 | K101: 880
B102: 2007-01-31 | C102: North | D102: Chin | E102: Sherman Williams | F102: SunSpot | G102: 16 | H102: 461 | I102: 3319.2 | J102: 7376 | K102: 4056.8
B103: 2005-02-27 | C103: SouthEast | D103: Sheliadawn | E103: ExcelIsVeryFun.com | F103: Aspen | G103: 14 | H103: 101 | I103: 523.18 | J103: 1414 | K103: 890.82
B104: 2005-12-19 | C104: SouthEast | D104: Chin | E104: Costco | F104: Quad | G104: 24 | H104: 316 | I104: 4171.2 | J104: 7584 | K104: 3412.8
B105: 2006-06-04 | C105: West | D105: Jeri | E105: Solar and Wind Inc. | F105: Aspen | G105: 14 | H105: 317 | I105: 2618.42 | J105: 4438 | K105: 1819.58
B106: 2006-11-03 | C106: West | D106: Sheliadawn | E106: Nature Company | F106: Carlota | G106: 22 | H106: 406 | I106: 4912.6 | J106: 8932 | K106: 4019.4
B107: 2006-11-02 | C107: NorthEast | D107: Luke | E107: Nature Company | F107: Sunshine | G107: 19 | H107: 249 | I107: 2034.33 | J107: 4731 | K107: 2696.67
B108: 2005-08-28 | C108: West | D108: Rhonda | E108: The Economist | F108: Sunset | G108: 21 | H108: 485 | I108: 4583.25 | J108: 10185 | K108: 5601.75
B109: 2006-06-01 | C109: NorthEast | D109: Steven | E109: McLendon's Hardware | F109: Yanaki | G109: 20 | H109: 229 | I109: 1969.4 | J109: 4580 | K109: 2610.6
B110: 2006-05-16 | C110: NorthEast | D110: Sheliadawn | E110: Peet's Coffee | F110: Carlota | G110: 22 | H110: 425 | I110: 8742.25 | J110: 9350 | K110: 607.75
B111: 2005-12-04 | C111: West | D111: Sheliadawn | E111: Google | F111: Quad | G111: 24 | H111: 462 | I111: 6098.4 | J111: 11088 | K111: 4989.6
B112: 2006-03-19 | C112: MidWest | D112: Luke | E112: Yahoo | F112: Carlota | G112: 22 | H112: 287 | I112: 4735.5 | J112: 6314 | K112: 1578.5
B113: 2006-02-11 | C113: North | D113: Jon | E113: Yahoo | F113: Yanaki | G113: 20 | H113: 417 | I113: 3586.2 | J113: 8340 | K113: 4753.8
B114: 2006-04-21 | C114: North | D114: Jeri | E114: ExcelIsVeryFun.com | F114: SunSpot | G114: 16 | H114: 432 | I114: 3110.4 | J114: 6912 | K114: 3801.6
B115: 2005-06-29 | C115: SouthEast | D115: Troung | E115: Costco | F115: Bellen | G115: 21 | H115: 340 | I115: 3070.2 | J115: 7140 | K115: 4069.8
B116: 2006-04-01 | C116: NorthEast | D116: Jon | E116: McLendon's Hardware | F116: Quad | G116: 24 | H116: 16 | I116: 142.08 | J116: 384 | K116: 241.92
B117: 2005-08-22 | C117: NorthEast | D117: Jon | E117: Peet's Coffee | F117: Bellen | G117: 21 | H117: 253 | I117: 2284.59 | J117: 5313 | K117: 3028.41
B118: 2007-02-08 | C118: North | D118: Jeri | E118: The Economist | F118: Yanaki | G118: 20 | H118: 289 | I118: 5404.3 | J118: 5780 | K118: 375.7
B119: 2006-01-03 | C119: West | D119: Rhonda | E119: Solar and Wind Inc. | F119: Sunshine | G119: 19 | H119: 22 | I119: 246.62 | J119: 418 | K119: 171.38
B120: 2007-02-19 | C120: NorthEast | D120: Sheliadawn | E120: The Economist | F120: SunSpot | G120: 16 | H120: 191 | I120: 2689.28 | J120: 3056 | K120: 366.72
B121: 2007-02-02 | C121: NorthEast | D121: Chin | E121: Sherman Williams | F121: Deuce | G121: 25 | H121: 46 | I121: 494.5 | J121: 1150 | K121: 655.5
B122: 2006-07-23 | C122: MidWest | D122: Steven | E122: Yahoo | F122: Sunset | G122: 21 | H122: 467 | I122: 3628.59 | J122: 9807 | K122: 6178.41
B123: 2005-04-14 | C123: SouthEast | D123: Jon | E123: Solar and Wind Inc. | F123: Sunshine | G123: 19 | H123: 184 | I123: 1293.52 | J123: 3496 | K123: 2202.48
B124: 2005-06-19 | C124: NorthEast | D124: Jon | E124: Sherman Williams | F124: Regal | G124: 15 | H124: 214 | I124: 3001.35 | J124: 3210 | K124: 208.65
B125: 2005-10-20 | C125: MidWest | D125: Chin | E125: Yahoo | F125: SunSpot | G125: 16 | H125: 405 | I125: 4860 | J125: 6480 | K125: 1620
B126: 2005-03-24 | C126: North | D126: Jeri | E126: Costco | F126: Quad | G126: 24 | H126: 308 | I126: 6504.96 | J126: 7392 | K126: 887.04
B127: 2006-04-28 | C127: MidWest | D127: Chin | E127: Solar and Wind Inc. | F127: Deuce | G127: 25 | H127: 21 | I127: 462 | J127: 525 | K127: 63
B128: 2005-10-27 | C128: North | D128: Chin | E128: Home Depot | F128: Bellen | G128: 21 | H128: 33 | I128: 311.85 | J128: 693 | K128: 381.15
B129: 2005-05-13 | C129: North | D129: Rhonda | E129: Sherman Williams | F129: Carlota | G129: 22 | H129: 347 | I129: 2824.58 | J129: 7634 | K129: 4809.42
B130: 2006-12-08 | C130: SouthEast | D130: Steven | E130: Office Depot | F130: Deuce | G130: 25 | H130: 476 | I130: 10472 | J130: 11900 | K130: 1428
B131: 2006-11-20 | C131: MidWest | D131: Jon | E131: Amazon.com | F131: Carlota | G131: 22 | H131: 238 | I131: 3560.48 | J131: 5236 | K131: 1675.52
B132: 2005-03-24 | C132: NorthEast | D132: Rhonda | E132: Whole Foods | F132: Sunshine | G132: 19 | H132: 385 | I132: 4023.25 | J132: 7315 | K132: 3291.75
B133: 2006-08-07 | C133: North | D133: Jeri | E133: Whole Foods | F133: Yanaki | G133: 20 | H133: 93 | I133: 1264.8 | J133: 1860 | K133: 595.2
B134: 2005-09-11 | C134: SouthEast | D134: Troung | E134: Yahoo | F134: Quad | G134: 24 | H134: 19 | I134: 196.08 | J134: 456 | K134: 259.92
B135: 2005-11-17 | C135: North | D135: Troung | E135: Peet's Coffee | F135: Regal | G135: 15 | H135: 458 | I135: 2541.9 | J135: 6870 | K135: 4328.1
B136: 2006-04-04 | C136: NorthEast | D136: Steven | E136: Solar and Wind Inc. | F136: Yanaki | G136: 20 | H136: 113 | I136: 1695 | J136: 2260 | K136: 565
B137: 2006-01-19 | C137: NorthEast | D137: Jon | E137: Whole Foods | F137: Quad | G137: 24 | H137: 256 | I137: 3379.2 | J137: 6144 | K137: 2764.8
B138: 2005-02-28 | C138: SouthEast | D138: Troung | E138: Home Depot | F138: Bellen | G138: 21 | H138: 423 | I138: 5152.14 | J138: 8883 | K138: 3730.86
B139: 2005-05-27 | C139: North | D139: Chin | E139: Solar and Wind Inc. | F139: Bellen | G139: 21 | H139: 363 | I139: 4192.65 | J139: 7623 | K139: 3430.35
B140: 2005-05-13 | C140: MidWest | D140: Chin | E140: Costco | F140: Quad | G140: 24 | H140: 157 | I140: 1620.24 | J140: 3768 | K140: 2147.76
B141: 2005-07-03 | C141: North | D141: Sheliadawn | E141: Google | F141: Quad | G141: 24 | H141: 96 | I141: 852.48 | J141: 2304 | K141: 1451.52
B142: 2005-12-24 | C142: NorthEast | D142: Chin | E142: Office Depot | F142: SunSpot | G142: 16 | H142: 184 | I142: 1619.2 | J142: 2944 | K142: 1324.8
B143: 2005-10-19 | C143: West | D143: Jon | E143: Sherman Williams | F143: Yanaki | G143: 20 | H143: 273 | I143: 3166.8 | J143: 5460 | K143: 2293.2
B144: 2005-06-10 | C144: West | D144: Steven | E144: Amazon.com | F144: SunSpot | G144: 16 | H144: 271 | I144: 2558.24 | J144: 4336 | K144: 1777.76
B145: 2006-04-08 | C145: SouthEast | D145: Luke | E145: Amazon.com | F145: Deuce | G145: 25 | H145: 97 | I145: 2134 | J145: 2425 | K145: 291
B146: 2005-10-02 | C146: MidWest | D146: Sheliadawn | E146: Yahoo | F146: Sunset | G146: 21 | H146: 269 | I146: 4971.12 | J146: 5649 | K146: 677.88
B147: 2006-07-13 | C147: NorthEast | D147: Luke | E147: Office Depot | F147: Deuce | G147: 25 | H147: 376 | I147: 6392 | J147: 9400 | K147: 3008
B148: 2006-05-21 | C148: SouthEast | D148: Chin | E148: Costco | F148: Sunshine | G148: 19 | H148: 178 | I148: 1521.9 | J148: 3382 | K148: 1860.1
B149: 2005-09-23 | C149: SouthEast | D149: Sheliadawn | E149: Nature Company | F149: Carlota | G149: 22 | H149: 71 | I149: 921.58 | J149: 1562 | K149: 640.42
B150: 2006-03-29 | C150: West | D150: Troung | E150: Home Depot | F150: Sunset | G150: 21 | H150: 323 | I150: 3052.35 | J150: 6783 | K150: 3730.65
B151: 2006-07-14 | C151: North | D151: Troung | E151: Yahoo | F151: SunSpot | G151: 16 | H151: 369 | I151: 4428 | J151: 5904 | K151: 1476
B152: 2005-03-09 | C152: West | D152: Steven | E152: Yahoo | F152: Aspen | G152: 14 | H152: 49 | I152: 294.98 | J152: 686 | K152: 391.02
B153: 2006-09-30 | C153: SouthEast | D153: Jon | E153: Whole Foods | F153: SunSpot | G153: 16 | H153: 214 | I153: 1540.8 | J153: 3424 | K153: 1883.2
B154: 2005-04-11 | C154: NorthEast | D154: Steven | E154: Sherman Williams | F154: Bellen | G154: 21 | H154: 466 | I154: 5675.88 | J154: 9786 | K154: 4110.12
B155: 2006-02-15 | C155: North | D155: Jon | E155: Nature Company | F155: Sunset | G155: 21 | H155: 383 | I155: 3619.35 | J155: 8043 | K155: 4423.65
B156: 2005-07-31 | C156: SouthEast | D156: Troung | E156: Amazon.com | F156: SunSpot | G156: 16 | H156: 83 | I156: 770.24 | J156: 1328 | K156: 557.76
B157: 2006-07-05 | C157: NorthEast | D157: Sheliadawn | E157: McLendon's Hardware | F157: SunSpot | G157: 16 | H157: 359 | I157: 5054.72 | J157: 5744 | K157: 689.28
B158: 2005-07-19 | C158: NorthEast | D158: Chin | E158: ExcelIsVeryFun.com | F158: Sunset | G158: 21 | H158: 227 | I158: 3241.56 | J158: 4767 | K158: 1525.44
B159: 2006-11-26 | C159: North | D159: Sheliadawn | E159: Whole Foods | F159: SunSpot | G159: 16 | H159: 301 | I159: 1781.92 | J159: 4816 | K159: 3034.08
B160: 2006-12-22 | C160: MidWest | D160: Steven | E160: The Economist | F160: Aspen | G160: 14 | H160: 331 | I160: 2734.06 | J160: 4634 | K160: 1899.94
B161: 2006-06-25 | C161: North | D161: Sheliadawn | E161: Nature Company | F161: Bellen | G161: 21 | H161: 15 | I161: 173.25 | J161: 315 | K161: 141.75
B162: 2005-08-02 | C162: MidWest | D162: Jeri | E162: McLendon's Hardware | F162: SunSpot | G162: 16 | H162: 215 | I162: 2580 | J162: 3440 | K162: 860
B163: 2006-02-24 | C163: SouthEast | D163: Jeri | E163: McLendon's Hardware | F163: Bellen | G163: 21 | H163: 442 | I163: 4176.9 | J163: 9282 | K163: 5105.1
B164: 2006-10-09 | C164: West | D164: Troung | E164: Yahoo | F164: Yanaki | G164: 20 | H164: 205 | I164: 2788 | J164: 4100 | K164: 1312
B165: 2006-03-02 | C165: NorthEast | D165: Steven | E165: Peet's Coffee | F165: Carlota | G165: 22 | H165: 233 | I165: 3844.5 | J165: 5126 | K165: 1281.5
B166: 2005-09-27 | C166: North | D166: Rhonda | E166: McLendon's Hardware | F166: Sunset | G166: 21 | H166: 85 | I166: 1053.15 | J166: 1785 | K166: 731.85
B167: 2006-10-15 | C167: North | D167: Troung | E167: McLendon's Hardware | F167: Sunshine | G167: 19 | H167: 131 | I167: 2190.32 | J167: 2489 | K167: 298.68
B168: 2006-04-04 | C168: North | D168: Sheliadawn | E168: Google | F168: Bellen | G168: 21 | H168: 320 | I168: 3696 | J168: 6720 | K168: 3024
B169: 2006-01-12 | C169: West | D169: Troung | E169: ExcelIsVeryFun.com | F169: Bellen | G169: 21 | H169: 93 | I169: 1718.64 | J169: 1953 | K169: 234.36
B170: 2005-11-19 | C170: North | D170: Rhonda | E170: Sherman Williams | F170: Aspen | G170: 14 | H170: 5 | I170: 40.6 | J170: 70 | K170: 29.4
B171: 2005-06-01 | C171: MidWest | D171: Rhonda | E171: Solar and Wind Inc. | F171: Yanaki | G171: 20 | H171: 93 | I171: 1739.1 | J171: 1860 | K171: 120.9
B172: 2006-09-06 | C172: West | D172: Chin | E172: Solar and Wind Inc. | F172: Deuce | G172: 25 | H172: 343 | I172: 6431.25 | J172: 8575 | K172: 2143.75
B173: 2007-01-05 | C173: SouthEast | D173: Jon | E173: The Economist | F173: Deuce | G173: 25 | H173: 484 | I173: 10648 | J173: 12100 | K173: 1452
B174: 2006-07-28 | C174: NorthEast | D174: Chin | E174: Amazon.com | F174: Carlota | G174: 22 | H174: 329 | I174: 3112.34 | J174: 7238 | K174: 4125.66
B175: 2006-05-16 | C175: SouthEast | D175: Rhonda | E175: ExcelIsVeryFun.com | F175: Carlota | G175: 22 | H175: 274 | I175: 2230.36 | J175: 6028 | K175: 3797.64
B176: 2006-07-14 | C176: NorthEast | D176: Chin | E176: Costco | F176: SunSpot | G176: 16 | H176: 84 | I176: 1008 | J176: 1344 | K176: 336
B177: 2005-03-03 | C177: North | D177: Jon | E177: Home Depot | F177: Sunset | G177: 21 | H177: 364 | I177: 6726.72 | J177: 7644 | K177: 917.28
B178: 2006-08-07 | C178: West | D178: Chin | E178: Peet's Coffee | F178: Deuce | G178: 25 | H178: 15 | I178: 221.25 | J178: 375 | K178: 153.75
B179: 2006-08-04 | C179: West | D179: Chin | E179: Costco | F179: Bellen | G179: 21 | H179: 422 | I179: 4874.1 | J179: 8862 | K179: 3987.9
B180: 2005-06-16 | C180: West | D180: Luke | E180: Home Depot | F180: Bellen | G180: 21 | H180: 309 | I180: 2790.27 | J180: 6489 | K180: 3698.73
B181: 2005-09-06 | C181: SouthEast | D181: Chin | E181: Nature Company | F181: Carlota | G181: 22 | H181: 17 | I181: 254.32 | J181: 374 | K181: 119.68
B182: 2006-12-29 | C182: North | D182: Steven | E182: Peet's Coffee | F182: Carlota | G182: 22 | H182: 193 | I182: 2505.14 | J182: 4246 | K182: 1740.86
B183: 2005-07-25 | C183: NorthEast | D183: Luke | E183: Yahoo | F183: Sunshine | G183: 19 | H183: 413 | I183: 2903.39 | J183: 7847 | K183: 4943.61
B184: 2007-02-23 | C184: North | D184: Steven | E184: Yahoo | F184: Bellen | G184: 21 | H184: 454 | I184: 4099.62 | J184: 9534 | K184: 5434.38
B185: 2005-11-06 | C185: SouthEast | D185: Steven | E185: Google | F185: Regal | G185: 15 | H185: 115 | I185: 1173 | J185: 1725 | K185: 552
B186: 2006-10-26 | C186: SouthEast | D186: Steven | E186: Home Depot | F186: Deuce | G186: 25 | H186: 122 | I186: 2851.75 | J186: 3050 | K186: 198.25
B187: 2006-01-11 | C187: North | D187: Sheliadawn | E187: McLendon's Hardware | F187: Sunshine | G187: 19 | H187: 333 | I187: 5915.745 | J187: 6327 | K187: 411.255
B188: 2005-10-08 | C188: NorthEast | D188: Rhonda | E188: Solar and Wind Inc. | F188: Aspen | G188: 14 | H188: 15 | I188: 121.8 | J188: 210 | K188: 88.2
B189: 2005-07-27 | C189: West | D189: Luke | E189: Whole Foods | F189: Sunset | G189: 21 | H189: 151 | I189: 1744.05 | J189: 3171 | K189: 1426.95
B190: 2006-02-21 | C190: North | D190: Jon | E190: Google | F190: Sunshine | G190: 19 | H190: 413 | I190: 4315.85 | J190: 7847 | K190: 3531.15
B191: 2005-03-13 | C191: SouthEast | D191: Troung | E191: Yahoo | F191: Regal | G191: 15 | H191: 161 | I191: 1038.45 | J191: 2415 | K191: 1376.55
B192: 2006-05-01 | C192: MidWest | D192: Sheliadawn | E192: ExcelIsVeryFun.com | F192: Regal | G192: 15 | H192: 327 | I192: 2697.75 | J192: 4905 | K192: 2207.25
B193: 2006-01-05 | C193: West | D193: Rhonda | E193: ExcelIsVeryFun.com | F193: Deuce | G193: 25 | H193: 345 | I193: 5088.75 | J193: 8625 | K193: 3536.25
B194: 2006-05-29 | C194: NorthEast | D194: Troung | E194: Google | F194: Sunset | G194: 21 | H194: 305 | I194: 3778.95 | J194: 6405 | K194: 2626.05
B195: 2005-06-09 | C195: MidWest | D195: Rhonda | E195: Google | F195: Sunset | G195: 21 | H195: 379 | I195: 4616.22 | J195: 7959 | K195: 3342.78
B196: 2005-06-16 | C196: North | D196: Steven | E196: ExcelIsVeryFun.com | F196: Deuce | G196: 25 | H196: 163 | I196: 1507.75 | J196: 4075 | K196: 2567.25
B197: 2006-09-10 | C197: NorthEast | D197: Steven | E197: Home Depot | F197: Carlota | G197: 22 | H197: 74 | I197: 1522.18 | J197: 1628 | K197: 105.82
B198: 2006-04-03 | C198: North | D198: Jon | E198: The Economist | F198: SunSpot | G198: 16 | H198: 192 | I198: 2088.96 | J198: 3072 | K198: 983.04
B199: 2006-10-18 | C199: MidWest | D199: Jon | E199: Solar and Wind Inc. | F199: Yanaki | G199: 20 | H199: 201 | I199: 3758.7 | J199: 4020 | K199: 261.3
B200: 2005-03-08 | C200: SouthEast | D200: Jeri | E200: Home Depot | F200: Bellen | G200: 21 | H200: 423 | I200: 6040.44 | J200: 8883 | K200: 2842.56
B201: 2006-04-24 | C201: MidWest | D201: Chin | E201: Whole Foods | F201: Aspen | G201: 14 | H201: 133 | I201: 1396.5 | J201: 1862 | K201: 465.5
B202: 2005-07-21 | C202: NorthEast | D202: Steven | E202: ExcelIsVeryFun.com | F202: Regal | G202: 15 | H202: 160 | I202: 1416 | J202: 2400 | K202: 984
... 28 more rows

Sheet Scenarios
A1: =ROW()&")" -> 1) | B1: Scenarios are great when you have What-If analysis to do.
A2: =ROW()&")" -> 2) | B2: To add a group of variables as a scenario go to Data Ribbon, Data Tools Group, What-If Analysis, Scenario Manager
A3: =ROW()&")" -> 3)
C5: Jan | D5: Feb | E5: Mar | F5: Apr | G5: May | H5: Jun | I5: Jul | J5: Total
B6: Rev | C6: =C22 -> 2000 | D6: =C6*(1+$C23) -> 2070 | E6: 2142.45 | F6: 2217.43575 | G6: 2295.046001 | H6: 2375.372611 | I6: 2458.510653 | J6: =SUM(C6:I6) -> 15558.81502
B7: Ex 1 | C7: =C$6*$C24 -> 60 | D7: 62.1 | E7: 64.2735 | F7: 66.5230725 | G7: 68.85138004 | H7: 71.26117834 | I7: 73.75531958 | J7: 466.7644505
B8: Ex 2 | C8: 100 | D8: 103.5 | E8: 107.1225 | F8: 110.8717875 | G8: 114.7523001 | H8: 118.7686306 | I8: 122.9255326 | J8: 777.9407508
B9: Ex 3 | C9: 60 | D9: 62.1 | E9: 64.2735 | F9: 66.5230725 | G9: 68.85138004 | H9: 71.26117834 | I9: 73.75531958 | J9: 466.7644505
B10: Ex 4 | C10: 60 | D10: 62.1 | E10: 64.2735 | F10: 66.5230725 | G10: 68.85138004 | H10: 71.26117834 | I10: 73.75531958 | J10: 466.7644505
B11: Ex 5 | C11: 80 | D11: 82.8 | E11: 85.698 | F11: 88.69743 | G11: 91.80184005 | H11: 95.01490445 | I11: 98.34042611 | J11: 622.3526006
B12: Ex 6 | C12: 120 | D12: 124.2 | E12: 128.547 | F12: 133.046145 | G12: 137.7027601 | H12: 142.5223567 | I12: 147.5106392 | J12: 933.5289009
B13: Ex 7 | C13: 80 | D13: 82.8 | E13: 85.698 | F13: 88.69743 | G13: 91.80184005 | H13: 95.01490445 | I13: 98.34042611 | J13: 622.3526006
B14: Ex 8 | C14: 120 | D14: 124.2 | E14: 128.547 | F14: 133.046145 | G14: 137.7027601 | H14: 142.5223567 | I14: 147.5106392 | J14: 933.5289009
B15: Ex 9 | C15: 100 | D15: 103.5 | E15: 107.1225 | F15: 110.8717875 | G15: 114.7523001 | H15: 118.7686306 | I15: 122.9255326 | J15: 777.9407508
B16: Ex 10 | C16: 60 | D16: 62.1 | E16: 64.2735 | F16: 66.5230725 | G16: 68.85138004 | H16: 71.26117834 | I16: 73.75531958 | J16: 466.7644505
B17: Ex 11 | C17: 60 | D17: 62.1 | E17: 64.2735 | F17: 66.5230725 | G17: 68.85138004 | H17: 71.26117834 | I17: 73.75531958 | J17: 466.7644505
B18: Ex 12 | C18: 100 | D18: 103.5 | E18: 107.1225 | F18: 110.8717875 | G18: 114.7523001 | H18: 118.7686306 | I18: 122.9255326 | J18: 777.9407508
B19: Net Income | C19: =C6-SUM(C7:C18) -> 1000 | D19: 1035 | E19: 1071.225 | F19: 1108.717875 | G19: 1147.523001 | H19: 1187.686306 | I19: 1229.255326 | J19: 7779.407508
B21: Assumptions
B22: Rev Start | C22: 2000
B23: Rev % Increase | C23: 0.035
B24: Ex 1 | C24: 0.03
B25: Ex 2 | C25: 0.05
B26: Ex 3 | C26: 0.03
B27: Ex 4 | C27: 0.03
B28: Ex 5 | C28: 0.04
B29: Ex 6 | C29: 0.06
B30: Ex 7 | C30: 0.04
B31: Ex 8 | C31: 0.06
B32: Ex 9 | C32: 0.05
B33: Ex 10 | C33: 0.03
B34: Ex 11 | C34: 0.03
B35: Ex 12 | C35: 0.05
C36: 0.05
